Workbook

Sheet Manual
C3: Kort manual för Billma-kalkylen.
C5: Avsikten med kalkylprogrammet är att det skall vara lätt att kalkylera och offerera ett project.
C6: I kalkylprogrammet finns många inbyggda funktioner. Nedanstående flikar finns att välja bland.
C7: Kom ihåg: Vita fält går att ändra, övriga fält är låsta.
C9: OBS! Tänk på att nollställa värden i flikarna "Variabler" och "Ändringar-Kompletteringar" vid ny kalkyl.
C11: Manual | D11: Användarmanual för detta kalkylprogram.
C13: Lagar & Regler | D13: Här finns nyttig info.
C15: Indata | D15: På denna flik läggs data in som kalkylens beräkningar utgår från.
D16: Sektion 1
D17: Här lägger man in kunduppgifter och övriga uppgifter om projektet.
D19: Sektion 2
D20: Längst till vänster i denna sektion finns val av prislista. Man kan välja två
D21: olika, BUTP, som är ert utpris till konsument eller BÅFP som är det
D22: pris ni betalar till Billma.
D23: Ert pris till konsument bestämmer ni procentuellt i fliken "Anpassning"
D24: Detta fungerar enbart om man valt "BUTP" som prislista.
D25: Under prislistevalet finns valruta för Grönt bidrag. Välj "Ja" om det är aktuellt.
D26: Är aktuellt endast om det är en privatkund.
D27: Kalkylen beräknar både bidrag 19,38% och bidrag 48,5%.
D29: Eftersom kalkylen numera är anpassad för att kunna beräkna två tak till
D30: samma kund får man nu först bestämma om ett eller två tak skall beräknas.
D31: Det gör man genom att välja "J" eller "N" för både Tak 1 och Tak 2.
D32: Nu fyller man i värden till höger i sektionen för de tak man valt. Väljs bara
D33: ett tak fyller man i noll för det andra.
D35: Sektion 3 och 4.
D36: Här fylls nu i de specifika uppgifterna för varje tak. Nu är båda taken eller bara
D37: ett aktiverat. Välj nu i de olika vita valrutorna. När det gäller "Panelsektorer"
D38: kan man få hjälp genom att titta i fliken "Panelsektorer" Ett tak kan behöva
D39: delas i olika sektorer för att rätt monteringsmaterial skall beräknas.
D40: Vid val av monteringstyp, t.ex. "Tegel horisontellt", då menas att skensystemet
D41: monteras i horisontella rader
D42: Väljer man "Tegel vertikalt", då monteras skenorna i vertikala, stående rader.
D43: OBS, Oavsett horisontella eller vertikala rader så fyller man i antalet rader i
D44: vänstra kolumnen, benämnd Rad och antalet paneler i högra kolumnen Antal.
D46: Sektion 5.
D47: På denna sektion presenteras viss information baserad på inmatade uppgifter.
D48: Här finns även några valrutor skall fyllas i, "Kabel mm" och Växelriktare",
D49: oavsett om ett eller två tak beräknas.
D50: Växelriktare väljer du med hänsyn till anläggning 1 och 2. Kontrollera installerad
D51: effekt för varje tak till vänster i sektion 5. Välj växelriktare så nära installerad effekt
D52: som möjligt. Det går bra att välja en växelriktare som är några tiondelar mindre än
D53: installerad effekt.
D54: Skall batteripaket monteras väljs det också här. I valrutan för "Elmaterial"
D55: väljer man om kabel, MC4-kontakter och DC-boxar skall levereras eller ej.
D56: Om montering med Hangerbolt valts väljer man här också längd för respektive tak.
D58: Sektion 6.
D59: I denna sektion presenteras det ekonomiska resultatet. I de vita rutorna fylls
D60: egna uppgifter i gällande beräknade övriga kostnader. Monteringskostnader
D61: fylls i på fliken "Anpassning" i kronor per watt.
D62: Här ses också alla belopp avseende grönt bidrag.
D64: Längst ner finns valruta för säljares uppgifter. Dessa förs även vidare till offert.
C66: Anpassning | D66: Anpassa offert.
D67: I rutan "Påslag Material" bestäms utpriset mot slutkund genom att för varje
D68: produktgrupp göra ett procentuellt påslag. Detta fungerar enbart om man på flik
D69: "Indata" valt prislista "BUTP"
D71: Arbetskostnad per watt.
D72: Här fyller man man i ett belopp i kr som multipliceras med projektets totala
D73: antal watt. Om batteripaket monteras fyller man i en procentsats för det
D74: totala elarbetet som motsvarar arbetet med batteri och växelriktare.
D75: Arbetskostnaden kommer upp i summeringen på "Indata".
D77: Övriga villkor och Bet.villkor
D78: Här skriver man in egna villkor som automatiskt hamnar på offerten.
D80: Tilläggsprodukter.
D81: Här kan man komplettera med egna produkter som inte finns i kalkylens
D82: materiallistor. De tillagda produkterna kommer med på offerten
D84: Företagets logga.
D85: Med knappen "Hämta Logga" kan man lägga in sitt företags logga genom att
D86: leta upp loggan på sin egen dator.
D88: Företagsuppgifter
D89: Här läggs företagets uppgifter in. Kommer sedan upp på avsedda dokument.
D91: Säljare.
D92: Här lägger man in upp till tre säljare med mail och tel. I fliken "Indata" längst
D93: ner på sidan väljer man sedan vilken säljare som sålt det aktuella objektet.
C95: Variabler | D95: Ändra avstånd
D96: På denna flik kan man ändra kalkylens normala beräkningsgrunder gällande
D97: avstånd mellan fästpunkter för takbeslag och hangerbolts.
C100: Ändringar- | D100: Lägg till - Ta bort.
C101: Kompletteringar. | D101: På denna flik kan man ändra, ta bort eller lägga till produkter som kalkylen
D102: räknat fram. Man kan även lägga till från övriga produkter i materiallistan.
C104: Offert. | D104: Automatgenererad offert.
D105: Offerten genereras automatiskt utifrån inmatade värden. Kan inte ändras.
C107: Takform | D107: Panelsektorer
D108: Ingen koppling till kalkylen, enbart info om hur man lägger in panelsegment
D109: i rutorna för "Panelsektorer" i kalkylen. Se även info i "Indata" ovan.
C111: Ekonomisk spec. | D111: Denna lista kan eventuellt användas som underlag vid fakturering.
C112: för grönt bidrag.
C114: Materialspecifikation | D114: Här specifieras vilket grönt bidrag varje produkt får. OBS! Bidrag 48,5% kan man
C115: för grönt bidrag. | D115: bara få om både batteri och hybridväxelriktare monteras.
C117: Materialspec m pris | D117: På dessa båda materiallistor finns allt material utskrivet som är
C118: Materialspec u pris | D118: framtaget av kalkylen. Den ena med priser och den andra utan.
C120: Lagar och Regler. | D120: Information, tips och trix.
C123: ______________________________________________________________________________________
C126: Utskrift. (Helst i färg) | D126: Man kan skriva ut från flikarna, en i taget, på vanligt sätt med "Skriv Ut"
D127: under "Arkiv-menyn".Om man skall maila eller spara använd PDF-utskrift.
D128: Gå till "Arkiv-menyn" och välj "Exportera". och spara filen i en mapp.
D129: Detta alternativ kan se lite olika ut på olika datorer men PDF-utskrift är ett
D130: bra alternativ. Undvik att spara hela kalkylen, spara de flikar som är
D131: Intressanta för den aktuella offerten
C133: OBS! | D133: Det går också bra att skriva ut flera flikar med samma kommando. Vill man t.ex.
D134: skriva ut flikarna "Indata", "Offert" och "Materiallista" vid samma tillfälle håller
D135: man ner CTRL-tangenten och klickar på dessa flikar. De blir då vita vilket
D136: innebär att de skrivs ut samtidigt.

Sheet Indata
K1: Prisberäkning
B2: Kund
B3: Namn | H3: Datum | K3: =TODAY() -> 2026-06-26 | R3: 1
B4: Adress | H4: Personnr.
B5: Postnr/ Ort | H5: Projekt
B6: Tel | H6: Fastigh.bet.
B7: Email | H7: Leveranstid
L9: Tak 1 | O9: Tak 2
B10: Välj prislista | D10: BÅFP | E10: =IF(D10="BUTP","Till Anpassning","") ->  | G10: Huvudsäkr. | L10: 16 | O10: 35 | R10: 2
B11: Grönt bidrag | D11: Ja | G11: Takstorlek m2 | L11: 140 | O11: 140
G12: Årsförbrukn.KW | L12: 12000 | O12: 12000
B14: Välj "J" i rutan om tak 1 skall aktiveras.
B15: Indata Tak 1 | C15: J | F15: (valrutor) | J15: Panelsektorer | O15: TAK 1
B16: Monteringstyp | D16: Plant tak, papp, matta | J16: Rad | K16: Antal | N16: OBS! | R16: 3
N17: Både antal vertikala rader och
B18: Paneltyp | D18: SUNTECH STP 420W -C54 Ns FB | N18: horisontella rader fyller man i
B19: Antal paneler | D19: =IF(C15="J",Formler!P69,0) -> 0 | J19: 0 | K19: 0 | N19: under Rad
B20: Taklutning grad. | D20: 25 | J20: 0 | K20: 0 | N20: =IF(E34>L10,"OBS! Byt säkring","") -> 
B21: Azimut (Öster - | D21: 0 | J21: 0 | K21: 0 | N21: =IF(L11<E33,"OBS! Tak för litet","") -> 
B23: Välj "J" i rutan om tak 2 skall aktiveras. | AA23: =OR(C43<>"x",C43<>"X",C43=0) -> TRUE
B24: Indata Tak 2 | C24: N | F24: (valrutor) | J24: Panelsektorer | O24: TAK 2
B25: Monteringstyp | D25: Hangerbolt vertikalt | J25: Rad | K25: Antal | N25: OBS! | R25: 4
J26: 0 | K26: 0 | N26: Både antal vertikala rader och
B27: Paneltyp | D27: JUST SOLAR 430W, JST-EFMH Glas/glas | J27: 0 | K27: 0 | N27: horisontella rader fyller man i
B28: Antal paneler | D28: =IF(C24="J",Formler!Q69,0) -> 0 | J28: 0 | K28: 0 | N28: under Rad
B29: Taklutning grad. | D29: 25 | J29: 0 | K29: 0 | N29: =IF(F34>O10,"OBS! Byt säkring","") -> 
B30: Azimut (Öster - | D30: 0 | J30: 0 | K30: 0 | N30: =IF(O11<F33,"OBS! Tak för litet","") -> 
E32: Tak 1 | F32: Tak 2 | M32: Tak 1 | O32: Tak 2
B33: Kräver yta i m2 | E33: =M36*D19 -> 0 | F33: =O36*D28 -> 0 | H33: Watt/panel | M33: =IF(C15="J",Formler!G26,0) -> 420 | O33: =IF(C24="J",Formler!G33,0) -> 0 | R33: 5
B34: Install.effekt i KW (Peak) | E34: =SUM(M33*D19/1000) -> 0 | F34: =IF(C24="J",O33*D28/1000,0) -> 0 | H34: Panel bredd cm | M34: =IF(C15="J",Formler!G27,0) -> 113.4 | O34: =IF(C24="J",Formler!G34,0) -> 0
B35: Max anläggn KW (huvudsäkring) | E35: =IF(C15="J",L10*(230*3/1000),0) -> 11.04 | F35: =IF(C24="J",O10*(230*3/1000),0) -> 0 | H35: Panel höjd cm | M35: =IF(C15="J",Formler!G28,0) -> 172.2 | O35: =IF(C24="J",Formler!G35,0) -> 0
B36: Teoretisk Prod. KWh | E36: =Azimut!AB17 -> 0 | F36: =Azimut!AB33 -> 0 | H36: Panel m2 | M36: =IF(C15="J",Formler!G29,0) -> 1.952748 | O36: =IF(C24="J",Formler!G36,0) -> 0 | Q36: Antal
B37: Kostnad / watt kr. (totalt order) | E37: =Formler!M62/Formler!Z32 ->  | H37: Växelriktare 1 (välj) | M37: AFORE 15,0 KW | Q37: 0
B38: Kostnad / m2 panel kr. (totalt order) | E38: =Formler!M62/(E33+F33) ->  | H38: Växelriktare 2 (välj) | M38: AFORE 30,0 KW | Q38: 0
G39: Ny | H39: Växelrikt. Hybrid (välj) | M39: AFORE Hybrid 15 KW | Q39: 0
B40: Val av DC-kabel. | E40: Stockskruv | G40: Ny | H40: Batteripaket (välj) | M40: Batteri kompl 20KW | Q40: 0
B41: (Normalt 4 mm kabel.) | E41: Välj längd.
B42: Välj kabel , 4 mm, 6mm. | D42: Tak 1 | E42: 200 mm | H42: Välj Elmaterial nedan
B43: 4 mm DC-kabel | D43: Tak 2 | E43: 200 mm | H43: Allt på DC-sidan
B46: Prisberäkning
B47: Projektering | D47: 0 | H47: Totalt material | M47: =Beräkningar!AB95 -> 133
B48: Ställningar/lift | D48: 0 | H48: Övrigt arbete | M48: =Anpassning!O5 -> 0 | R48: 6
B49: Resor/boende | D49: 0 | H49: Totalt arbete El | M49: =Anpassning!O7 -> 0
B50: Övrigt | D50: 0 | H50: Totalt tillägg | M50: =D51 -> 0
B51: Tillägg totalt | D51: =D47+D48+D49+D50 -> 0 | H51: Övrig rabatt | M51: =Anpassning!E10 -> 
H52: Totalt exl moms | M52: =SUM(M47:M51) -> 133
B53: Grönt bidrag | H53: moms | M53: =SUM(M52*0.25) -> 33.25
B54: Elarbete.14,55% | D54: =IF(Formler!N82=TRUE,Anpassning!O7-Anpassning!O10,0) -> 0 | H54: Summering | M54: =SUM(M52:M53) -> 166.25
B55: Elarbete.48,5% | D55: =IF(Formler!N82=TRUE,Anpassning!O10,0) -> 0 | H55: Grönt bidrag 14,55% | M55: =D59*1.25*0.1455 -> 0
B56: Övrigt arbete 14,55% | D56: =IF(Formler!N82=TRUE,Anpassning!O5,0) -> 0 | H56: Grönt bidrag 48,5% | M56: =D60*1.25*0.485 -> 0
B57: Material.14,55% | D57: =IF(Formler!N82=TRUE,Beräkningar!AC95,0) -> 0
B58: Material.48,5% | D58: =IF(Formler!N82=TRUE,Beräkningar!AD95,0) -> 0 | H58: Totalt att betala | M58: =M54-M55-M56 -> 166.25
B59: Tot.underlag 14,55% | D59: =D54+D56+D57 -> 0
B60: Tot.underlag 48,5% | D60: =D55+D58 -> 0 | J60: Säljare

Sheet Anpassning
D3: Påslag material % | J3: Arbetskostnad per watt
E4: (enb. Kod (BUTP)
D5: Växelriktare | E5: 0.05 | J5: Paneler | L5: 0 | N5: W Tot | O5: =Formler!M91*Anpassning!L5 -> 0
D6: Batterier | E6: 0.07
D7: Paneler | E7: 0.1 | J7: El | L7: 0 | N7: W Tot | O7: =Formler!M91*Anpassning!L7 -> 0
D8: Underkonstruktion | E8: 0.12 | J8: =Indata!M33*Indata!D19 -> 0
D9: Övrigt elmaterial | E9: 0.15 | J9: Andel av totalt elarbete för bidrag 48,5%
J10: El=48,5% | L10: 0 | N10: % = | O10: =IF(Formler!N85=TRUE,O7*L10,0) -> 0
D14: Tilläggsprodukter | J14: Priser per st.
D15: OBS! Enbart produkter som tillhör solcellsanläggningen. | J15: (BÅFP) | O15: (BUTP)
D16: Art.nummer | E16: Antal | F16: Benämning | J16: ÅF-pris | M16: Påslag % | O16: Konsumentpris
C17: 1 | E17: 0 | J17: 0 | M17: 0 | O17: =IFERROR(SUM((J17*M17/100)+J17),0) -> 0
C18: 2 | E18: 0 | J18: 0 | M18: 0 | O18: =IFERROR(SUM((J18*M18/100)+J18),0) -> 0
C19: 3 | E19: 0 | J19: 0 | M19: 0 | O19: =IFERROR(SUM((J19*M19/100)+J19),0) -> 0
C20: 4 | E20: 0 | J20: 0 | M20: 0 | O20: =IFERROR(SUM((J20*M20/100)+J20),0) -> 0
C21: 5 | E21: 0 | J21: 0 | M21: 0 | O21: =IFERROR(SUM((J21*M21/100)+J21),0) -> 0
D22: Här går att lägga till fem artiklar, fyll i raderna och priset för (BÅFP) och lägg på % för utpris.
D23: Dessa rader läggs då till på kalkyl och materiallistor.
D26: Betalningsvillkor | N26: Offerten giltig
D27: 10 dagar efter utförd funktionskontroll. | N27: 30 dagar
D29: Övriga villkor
D30: Kunden ansvarar för takets skikt och bärighet. Eventuell grävning ingår ej.
D31: Ställningar ingår ej, får hyras på orten om kunden ej har tillgång.
D32: Arbetet utförs av behöriga montörer och elektriker.
D36: Ändra ovan till egna villkor, allt ovan återfinns på offerten.
D38: Säljare
D39: Namn | F39: Email | K39: Tel.nr.
D44: Här kan ni lägga in säljares namn och uppgifter. På "Indata"-fliken längst ner välj sedan säljare.
D46: Företagsuppgifter
D47: Företagsnamn | E47: Nimex
D48: Adress | E48: storgatan
D49: Postadress | E49: 444555
D50: Tel.nr. | E50: hjo
D51: Ovanstående uppgifter återfinns på kalkylens dokument.

Sheet Variabler
D3: Variabler 2 (mått)
D4: (Ange avstånd mellan fästpunkter.)
D5: (Om 0 anges i "Ändra" gäller "Kalkyl")
G6: Tak 1 | I6: Tak 2
E7: Kalkyl | G7: Ändra | I7: Ändra
D8: Hangerbolt H | E8: 1.05 | G8: 0 | I8: 0
D9: Hangerbolt V | E9: 0.75 | G9: 0 | I9: 0
D10: Tegelkrok H | E10: 1.05 | G10: 0 | I10: 0
D11: Tegelkrok V | E11: 0.75 | G11: 0 | I11: 0
D12: Falsfäste | E12: 0.7 | G12: 0 | I12: 0
D13: Skena tillägg cm per panel | E13: 5 | G13: 0 | I13: 0
D14: CWL-platta | E14: 1.1 | G14: 0 | I14: 0
C19: Avstånden ovan gäller avstånden mellan fästpunkter för olika monteringar.
C20: De grå fälten är kalkylens normala mått.
C22: Måtten kan ändras om ej normala mått kan användas. Fyll i nya mått i de vita rutorna
C23: för respektive tak och typ av montering. Vid noll i de vita rutorna använder kalkylen de
C24: normala avstånden.
C26: Ovanstående mått används vid kalkylens beräkning av materialåtgång.
C28: OBS! Tänk på att nollställa värden i vita kolumner innan ni börjar en ny kalkyl.

Sheet Ändringar-Kompletteringar
B2: Ändringar / Kompletteringar till aktuella kalkyler (OBS ! GÄLLER FÖR TOTAL KALKYL)
B3: Lägga till: Ange antal att addera, Ta bort: Ange antal med minustecken. | D3: Beräknat i | E3: Ändra /
B5: OBS! Kolla summarutan längst ner, skall vara noll när du startar ny kalkyl.
D6: kalkyl | E6: Lägg till | F6: Nytt antal
B7: Art.nr. | C7: Artikelnamn | D7: Kolumn1 | E7: Antal | F7: Kolumn2
B8: =Beräkningar!C9 -> 1010001-005 | C8: =Beräkningar!D9 -> AFORE Växelriktare 5,0 KW | D8: =Beräkningar!K9 -> 0 | E8: 0 | F8: =Tabell1721[[#This Row],[Kolumn1]]+Tabell1721[[#This Row],[Antal]] -> 0
B9: =Beräkningar!C10 -> 1010001-006 | C9: =Beräkningar!D10 -> AFORE Växelriktare 6,0 KW | D9: =Beräkningar!K10 -> 0 | E9: 0 | F9: =Tabell1721[[#This Row],[Kolumn1]]+Tabell1721[[#This Row],[Antal]] -> 0
B10: =Beräkningar!C11 -> 1010001-008 | C10: =Beräkningar!D11 -> AFORE Växelriktare 8,0 KW | D10: =Beräkningar!K11 -> 0 | E10: 0 | F10: =Tabell1721[[#This Row],[Kolumn1]]+Tabell1721[[#This Row],[Antal]] -> 0
B11: =Beräkningar!C12 -> 1010001-010 | C11: =Beräkningar!D12 -> AFORE Växelriktare 10,0 KW | D11: =Beräkningar!K12 -> 0 | E11: 0 | F11: =Tabell1721[[#This Row],[Kolumn1]]+Tabell1721[[#This Row],[Antal]] -> 0
B12: =Beräkningar!C13 -> 1010001-012 | C12: =Beräkningar!D13 -> AFORE Växelriktare 12,0 KW | D12: =Beräkningar!K13 -> 0 | E12: 0 | F12: =Tabell1721[[#This Row],[Kolumn1]]+Tabell1721[[#This Row],[Antal]] -> 0
B13: =Beräkningar!C14 -> 1010001-015 | C13: =Beräkningar!D14 -> AFORE Växelriktare 15,0 KW | D13: =Beräkningar!K14 -> 0 | E13: 0 | F13: =Tabell1721[[#This Row],[Kolumn1]]+Tabell1721[[#This Row],[Antal]] -> 0
B14: =Beräkningar!C15 -> 1010001-017 | C14: =Beräkningar!D15 -> AFORE Växelriktare 17,0 KW | D14: =Beräkningar!K15 -> 0 | E14: 0 | F14: =Tabell1721[[#This Row],[Kolumn1]]+Tabell1721[[#This Row],[Antal]] -> 0
B15: =Beräkningar!C16 -> 1010001-020 | C15: =Beräkningar!D16 -> AFORE Växelriktare 20,0 KW | D15: =Beräkningar!K16 -> 0 | E15: 0 | F15: =Tabell1721[[#This Row],[Kolumn1]]+Tabell1721[[#This Row],[Antal]] -> 0
B16: =Beräkningar!C17 -> 1010001-025 | C16: =Beräkningar!D17 -> AFORE Växelriktare 25,0 KW | D16: =Beräkningar!K17 -> 0 | E16: 0 | F16: =Tabell1721[[#This Row],[Kolumn1]]+Tabell1721[[#This Row],[Antal]] -> 0
B17: =Beräkningar!C18 -> 1010001-030 | C17: =Beräkningar!D18 -> AFORE Växelriktare 30,0 KW | D17: =Beräkningar!K18 -> 0 | E17: 0 | F17: =Tabell1721[[#This Row],[Kolumn1]]+Tabell1721[[#This Row],[Antal]] -> 0
B18: =Beräkningar!C19 -> 1010001-036 | C18: =Beräkningar!D19 -> AFORE Växelriktare 36,0 KW | D18: =Beräkningar!K19 -> 0 | E18: 0 | F18: =Tabell1721[[#This Row],[Kolumn1]]+Tabell1721[[#This Row],[Antal]] -> 0
B19: =Beräkningar!C20 -> 1010001-040 | C19: =Beräkningar!D20 -> AFORE Växelriktare 40,0 KW | D19: =Beräkningar!K20 -> 0 | E19: 0 | F19: =Tabell1721[[#This Row],[Kolumn1]]+Tabell1721[[#This Row],[Antal]] -> 0
B20: =Beräkningar!C21 -> 1010001-050 | C20: =Beräkningar!D21 -> AFORE Växelriktare 50,0 KW | D20: =Beräkningar!K21 -> 0 | E20: 0 | F20: =Tabell1721[[#This Row],[Kolumn1]]+Tabell1721[[#This Row],[Antal]] -> 0
B21: =Beräkningar!C22 -> 1010001-060 | C21: =Beräkningar!D22 -> AFORE Växelriktare 60,0 KW | D21: =Beräkningar!K22 -> 0 | E21: 0 | F21: =Tabell1721[[#This Row],[Kolumn1]]+Tabell1721[[#This Row],[Antal]] -> 0
B22: =Beräkningar!C23 -> 1089001-907 | C22: =Beräkningar!D23 -> AFORE Ethernet Monitor | D22: =Beräkningar!K23 -> 0 | E22: 0 | F22: =Tabell1721[[#This Row],[Kolumn1]]+Tabell1721[[#This Row],[Antal]] -> 0
B23: =Beräkningar!C24 -> 1088001-130 | C23: =Beräkningar!D24 -> AFORE Smartmeter Trefas 130KW | D23: =Beräkningar!K24 -> 0 | E23: 0 | F23: =Tabell1721[[#This Row],[Kolumn1]]+Tabell1721[[#This Row],[Antal]] -> 0
B24: =Beräkningar!C25 -> 1088001-050 | C24: =Beräkningar!D25 -> AFORE Smartmeter Trefas 50KW | D24: =Beräkningar!K25 -> 0 | E24: 0 | F24: =Tabell1721[[#This Row],[Kolumn1]]+Tabell1721[[#This Row],[Antal]] -> 0
B25: =Beräkningar!C26 -> 1015001-006 | C25: =Beräkningar!D26 -> AFORE Växelriktare Hybrid 6 KW | D25: =Beräkningar!K26 -> 0 | E25: 0 | F25: =Tabell1721[[#This Row],[Kolumn1]]+Tabell1721[[#This Row],[Antal]] -> 0
B26: =Beräkningar!C27 -> 1015001-008 | C26: =Beräkningar!D27 -> AFORE Växelriktare Hybrid 8 KW | D26: =Beräkningar!K27 -> 0 | E26: 0 | F26: =Tabell1721[[#This Row],[Kolumn1]]+Tabell1721[[#This Row],[Antal]] -> 0
B27: =Beräkningar!C28 -> 1015001-010 | C27: =Beräkningar!D28 -> AFORE Växelriktare Hybrid 10 KW | D27: =Beräkningar!K28 -> 0 | E27: 0 | F27: =Tabell1721[[#This Row],[Kolumn1]]+Tabell1721[[#This Row],[Antal]] -> 0
B28: =Beräkningar!C29 -> 1015001-012 | C28: =Beräkningar!D29 -> AFORE Växelriktare Hybrid 12 KW | D28: =Beräkningar!K29 -> 0 | E28: 0 | F28: =Tabell1721[[#This Row],[Kolumn1]]+Tabell1721[[#This Row],[Antal]] -> 0
B29: =Beräkningar!C30 -> 1015001-015 | C29: =Beräkningar!D30 -> AFORE Växelriktare Hybrid 15 KW | D29: =Beräkningar!K30 -> 0 | E29: 0 | F29: =Tabell1721[[#This Row],[Kolumn1]]+Tabell1721[[#This Row],[Antal]] -> 0
B30: =Beräkningar!C31 -> 1015001-020 | C30: =Beräkningar!D31 -> AFORE Växelriktare Hybrid 20 KW | D30: =Beräkningar!K31 -> 0 | E30: 0 | F30: =Tabell1721[[#This Row],[Kolumn1]]+Tabell1721[[#This Row],[Antal]] -> 0
B31: =Beräkningar!C32 -> 1015001-025 | C31: =Beräkningar!D32 -> AFORE Växelriktare Hybrid 25 KW | D31: =Beräkningar!K32 -> 0 | E31: 0 | F31: =Tabell1721[[#This Row],[Kolumn1]]+Tabell1721[[#This Row],[Antal]] -> 0
B32: =Beräkningar!C33 -> 1015001-030 | C32: =Beräkningar!D33 -> AFORE Växelriktare Hybrid 30 KW | D32: =Beräkningar!K33 -> 0 | E32: 0 | F32: =Tabell1721[[#This Row],[Kolumn1]]+Tabell1721[[#This Row],[Antal]] -> 0
B33: =Beräkningar!C34 -> 2220001-425FB | C33: =Beräkningar!D34 -> SUNWAY 425W-144 FB | D33: =Beräkningar!K34 -> 0 | E33: 0 | F33: =Tabell1721[[#This Row],[Kolumn1]]+Tabell1721[[#This Row],[Antal]] -> 0
B34: =Beräkningar!C35 -> 2320001-420FB | C34: =Beräkningar!D35 -> SUNTECH STP 420W -C54 Ns FB | D34: =Beräkningar!K35 -> 0 | E34: 0 | F34: =Tabell1721[[#This Row],[Kolumn1]]+Tabell1721[[#This Row],[Antal]] -> 0
B35: =Beräkningar!C36 -> 2320001-405FB | C35: =Beräkningar!D36 -> SUNTECH STP 405W -C54 Um FB | D35: =Beräkningar!K36 -> 0 | E35: 0 | F35: =Tabell1721[[#This Row],[Kolumn1]]+Tabell1721[[#This Row],[Antal]] -> 0
B36: =Beräkningar!C37 -> 2320001-435FB | C36: =Beräkningar!D37 -> SUNTECH STP435S_C54_Nshtb Glas/glas | D36: =Beräkningar!K37 -> 0 | E36: 0 | F36: =Tabell1721[[#This Row],[Kolumn1]]+Tabell1721[[#This Row],[Antal]] -> 0
B37: =Beräkningar!C38 -> 2122001-430W | C37: =Beräkningar!D38 -> JUST SOLAR 430W, JST-EFMH Glas/glas | D37: =Beräkningar!K38 -> 0 | E37: 0 | F37: =Tabell1721[[#This Row],[Kolumn1]]+Tabell1721[[#This Row],[Antal]] -> 0
B38: =Beräkningar!C39 -> 6080001-01 | C38: =Beräkningar!D39 -> ZJBENY DC-Box 1 strängar | D38: =Beräkningar!K39 -> 0 | E38: 0 | F38: =Tabell1721[[#This Row],[Kolumn1]]+Tabell1721[[#This Row],[Antal]] -> 0
B39: =Beräkningar!C40 -> 6080001-02 | C39: =Beräkningar!D40 -> ZJBENY DC-Box 2 strängar | D39: =Beräkningar!K40 -> 0 | E39: 0 | F39: =Tabell1721[[#This Row],[Kolumn1]]+Tabell1721[[#This Row],[Antal]] -> 0
B40: =Beräkningar!C41 -> 6080001-06 | C40: =Beräkningar!D41 -> ZJBENY DC-Box 3 strängar | D40: =Beräkningar!K41 -> 0 | E40: 0 | F40: =Tabell1721[[#This Row],[Kolumn1]]+Tabell1721[[#This Row],[Antal]] -> 0
B41: =Beräkningar!C42 -> 9981002-6001 | C41: =Beräkningar!D42 -> Kabel 6mm2 DC Svart Löpmeter | D41: =Beräkningar!K42 -> 0 | E41: 0 | F41: =Tabell1721[[#This Row],[Kolumn1]]+Tabell1721[[#This Row],[Antal]] -> 0
B42: =Beräkningar!C43 -> 9981001-4001 | C42: =Beräkningar!D43 -> Kabel 4mm2 DC Svart Löpmeter | D42: =Beräkningar!K43 -> 0 | E42: 0 | F42: =Tabell1721[[#This Row],[Kolumn1]]+Tabell1721[[#This Row],[Antal]] -> 0
B43: =Beräkningar!C44 -> 9981001-4500 | C43: =Beräkningar!D44 -> Kabel 4mm2 DC Svart 500 m | D43: =Beräkningar!K44 -> 0 | E43: 0 | F43: =Tabell1721[[#This Row],[Kolumn1]]+Tabell1721[[#This Row],[Antal]] -> 0
B44: =Beräkningar!C45 -> 9982001-minus | C44: =Beräkningar!D45 -> Kontakt MC4 PV-Stick Hona | D44: =Beräkningar!K45 -> 0 | E44: 0 | F44: =Tabell1721[[#This Row],[Kolumn1]]+Tabell1721[[#This Row],[Antal]] -> 0
B45: =Beräkningar!C46 -> 9982001-plus | C45: =Beräkningar!D46 -> Kontakt MC4 PV-Stick Hane | D45: =Beräkningar!K46 -> 0 | E45: 0 | F45: =Tabell1721[[#This Row],[Kolumn1]]+Tabell1721[[#This Row],[Antal]] -> 0
B46: =Beräkningar!C47 -> 9990001-05 | C46: =Beräkningar!D47 -> Märkskylt Set | D46: =Beräkningar!K47 -> 1 | E46: 0 | F46: =Tabell1721[[#This Row],[Kolumn1]]+Tabell1721[[#This Row],[Antal]] -> 1
B47: =Beräkningar!C48 -> 9981001-4100 | C47: =Beräkningar!D48 -> Kabel 4mm2 DC Svart 100 m | D47: =Beräkningar!K48 -> 0 | E47: 0 | F47: =Tabell1721[[#This Row],[Kolumn1]]+Tabell1721[[#This Row],[Antal]] -> 0
B48: =Beräkningar!C49 -> 9981003-100 | C48: =Beräkningar!D49 -> Buntband, fixeringsklämma 100 st. | D48: =Beräkningar!K49 -> 0 | E48: 0 | F48: =Tabell1721[[#This Row],[Kolumn1]]+Tabell1721[[#This Row],[Antal]] -> 0
B49: =Beräkningar!C50 -> 9981001-4250 | C49: =Beräkningar!D50 -> Kabel 4mm2 DC Svart 250 m | D49: =Beräkningar!K50 -> 0 | E49: 0 | F49: =Tabell1721[[#This Row],[Kolumn1]]+Tabell1721[[#This Row],[Antal]] -> 0
B50: =Beräkningar!C51 -> 9981001-4500R | C50: =Beräkningar!D51 -> Kabel 4mm2 DC Röd 500 m | D50: =Beräkningar!K51 -> 0 | E50: 0 | F50: =Tabell1721[[#This Row],[Kolumn1]]+Tabell1721[[#This Row],[Antal]] -> 0
B51: =Beräkningar!C52 -> 8085001-25232 | C51: =Beräkningar!D52 -> Tigo optimerare TS4-A-O 700W | D51: =Beräkningar!K52 -> 0 | E51: 0 | F51: =Tabell1721[[#This Row],[Kolumn1]]+Tabell1721[[#This Row],[Antal]] -> 0
B52: =Beräkningar!C53 -> 8086001-34452 | C52: =Beräkningar!D53 -> Tigo CCA Kit | D52: =Beräkningar!K53 -> 0 | E52: 0 | F52: =Tabell1721[[#This Row],[Kolumn1]]+Tabell1721[[#This Row],[Antal]] -> 0
B53: =Beräkningar!C54 -> 5057002-KPL | C53: =Beräkningar!D54 -> Falsplåtsklämma kompl m vinkel | D53: =Beräkningar!K54 -> 0 | E53: 0 | F53: =Tabell1721[[#This Row],[Kolumn1]]+Tabell1721[[#This Row],[Antal]] -> 0
B54: =Beräkningar!C55 -> 5051001-R04200 | C54: =Beräkningar!D55 -> Montageskena Svart 4200mm | D54: =Beräkningar!K55 -> 0 | E54: 0 | F54: =Tabell1721[[#This Row],[Kolumn1]]+Tabell1721[[#This Row],[Antal]] -> 0
B55: =Beräkningar!C56 -> 5053001-EC30 | C55: =Beräkningar!D56 -> Ändklämma Svart 30 mm | D55: =Beräkningar!K56 -> 0 | E55: 0 | F55: =Tabell1721[[#This Row],[Kolumn1]]+Tabell1721[[#This Row],[Antal]] -> 0
B56: =Beräkningar!C57 -> 5053002-IC35 | C56: =Beräkningar!D57 -> Mittklämma Svart 30-51mm | D56: =Beräkningar!K57 -> 0 | E56: 0 | F56: =Tabell1721[[#This Row],[Kolumn1]]+Tabell1721[[#This Row],[Antal]] -> 0
B57: =Beräkningar!C58 -> 5052001-RS01 | C57: =Beräkningar!D58 -> Skarvprofil för montageskena | D57: =Beräkningar!K58 -> 0 | E57: 0 | F57: =Tabell1721[[#This Row],[Kolumn1]]+Tabell1721[[#This Row],[Antal]] -> 0
B58: =Beräkningar!C59 -> 5055002-SN | C58: =Beräkningar!D59 -> Kopplingssats, Skruv+Glidlås | D58: =Beräkningar!K59 -> 0 | E58: 0 | F58: =Tabell1721[[#This Row],[Kolumn1]]+Tabell1721[[#This Row],[Antal]] -> 0
B59: =Beräkningar!C60 -> 5055001-TC04200 | C59: =Beräkningar!D60 -> Stockskruv M10x200mm, Komplett set | D59: =Beräkningar!K60 -> 0 | E59: 0 | F59: =Tabell1721[[#This Row],[Kolumn1]]+Tabell1721[[#This Row],[Antal]] -> 0
B60: =Beräkningar!C61 -> 5054001-M10200 | C60: =Beräkningar!D61 -> Stockskruv M10x200mm Enbart skruv | D60: =Beräkningar!K61 -> 0 | E60: 0 | F60: =Tabell1721[[#This Row],[Kolumn1]]+Tabell1721[[#This Row],[Antal]] -> 0
B61: =Beräkningar!C62 -> 5055001-TC04300 | C61: =Beräkningar!D62 -> Stockskruv M10x300mm, Komplett set | D61: =Beräkningar!K62 -> 0 | E61: 0 | F61: =Tabell1721[[#This Row],[Kolumn1]]+Tabell1721[[#This Row],[Antal]] -> 0
B62: =Beräkningar!C63 -> 5054001-M10300 | C62: =Beräkningar!D63 -> Stockskruv M10x300mm Enbart skruv | D62: =Beräkningar!K63 -> 0 | E62: 0 | F62: =Tabell1721[[#This Row],[Kolumn1]]+Tabell1721[[#This Row],[Antal]] -> 0
B63: =Beräkningar!C64 -> 5058003-L50 | C63: =Beräkningar!D64 -> Vinkel för stockskruv 50 mm | D63: =Beräkningar!K64 -> 0 | E63: 0 | F63: =Tabell1721[[#This Row],[Kolumn1]]+Tabell1721[[#This Row],[Antal]] -> 0
B64: =Beräkningar!C65 -> 5056001-TH01 | C64: =Beräkningar!D65 -> Tegelkrok Horisontellt | D64: =Beräkningar!K65 -> 0 | E64: 0 | F64: =Tabell1721[[#This Row],[Kolumn1]]+Tabell1721[[#This Row],[Antal]] -> 0
B65: =Beräkningar!C66 -> 5056001-TH04 | C65: =Beräkningar!D66 -> Tegelkrok Vertikalt | D65: =Beräkningar!K66 -> 0 | E65: 0 | F65: =Tabell1721[[#This Row],[Kolumn1]]+Tabell1721[[#This Row],[Antal]] -> 0
B66: =Beräkningar!C67 -> 5056001-TH02 | C66: =Beräkningar!D67 -> Takkrok låg | D66: =Beräkningar!K67 -> 0 | E66: 0 | F66: =Tabell1721[[#This Row],[Kolumn1]]+Tabell1721[[#This Row],[Antal]] -> 0
B67: =Beräkningar!C68 -> 5054002-S | C67: =Beräkningar!D68 -> Skruv för takkrok | D67: =Beräkningar!K68 -> 0 | E67: 0 | F67: =Tabell1721[[#This Row],[Kolumn1]]+Tabell1721[[#This Row],[Antal]] -> 0
B68: =Beräkningar!C69 -> 5051002-TC15 | C68: =Beräkningar!D69 -> Kortskena för plåtmont. Svart, 140 mm | D68: =Beräkningar!K69 -> 0 | E68: 0 | F68: =Tabell1721[[#This Row],[Kolumn1]]+Tabell1721[[#This Row],[Antal]] -> 0
B69: =Beräkningar!C70 -> 5057002-TCNPC1 | C69: =Beräkningar!D70 -> Falsplåtsklämma | D69: =Beräkningar!K70 -> 0 | E69: 0 | F69: =Tabell1721[[#This Row],[Kolumn1]]+Tabell1721[[#This Row],[Antal]] -> 0
B70: =Beräkningar!C71 -> 9257001-100185 | C70: =Beräkningar!D71 -> CWL Infästningsplatta 375x375 | D70: =Beräkningar!K71 -> 0 | E70: 0 | F70: =Tabell1721[[#This Row],[Kolumn1]]+Tabell1721[[#This Row],[Antal]] -> 0
B71: =Beräkningar!C72 -> 9255001-420012P | C71: =Beräkningar!D72 -> CWL Monteringssats | D71: =Beräkningar!K72 -> 0 | E71: 0 | F71: =Tabell1721[[#This Row],[Kolumn1]]+Tabell1721[[#This Row],[Antal]] -> 0
B72: =Beräkningar!C73 -> 5059001-CLIPS | C72: =Beräkningar!D73 -> Kabelklips för Panelram | D72: =Beräkningar!K73 -> 0 | E72: 0 | F72: =Tabell1721[[#This Row],[Kolumn1]]+Tabell1721[[#This Row],[Antal]] -> 0
B73: =Beräkningar!C74 -> 5055003-L40 | C73: =Beräkningar!D74 -> Vinkel 40mm för Falsplåtsklämma m skruv | D73: =Beräkningar!K74 -> 0 | E73: 0 | F73: =Tabell1721[[#This Row],[Kolumn1]]+Tabell1721[[#This Row],[Antal]] -> 0
B74: =Beräkningar!C75 -> 5053001-EC35 | C74: =Beräkningar!D75 -> Ändklämma Svart 35 mm | D74: =Beräkningar!K75 -> 0 | E74: 0 | F74: =Tabell1721[[#This Row],[Kolumn1]]+Tabell1721[[#This Row],[Antal]] -> 0
B75: =Beräkningar!C76 -> 5056001-TH12 | C75: =Beräkningar!D76 -> Tegelkrok justerbar | D75: =Beräkningar!K76 -> 0 | E75: 0 | F75: =Tabell1721[[#This Row],[Kolumn1]]+Tabell1721[[#This Row],[Antal]] -> 0
B76: =Beräkningar!C77 -> 5059002-REC | C76: =Beräkningar!D77 -> Ändskydd monteringsskena | D76: =Beräkningar!K77 -> 0 | E76: 0 | F76: =Tabell1721[[#This Row],[Kolumn1]]+Tabell1721[[#This Row],[Antal]] -> 0
B77: =Beräkningar!C78 -> 5051002-MN5 | C77: =Beräkningar!D78 -> Kortskena för plåt, svart, 300 mm, alu | D77: =Beräkningar!K78 -> 0 | E77: 0 | F77: =Tabell1721[[#This Row],[Kolumn1]]+Tabell1721[[#This Row],[Antal]] -> 0
B78: =Beräkningar!C79 -> 5051002-SK | C78: =Beräkningar!D79 -> Specialskruv kortskena, sats, 4 st | D78: =Beräkningar!K79 -> 0 | E78: 0 | F78: =Tabell1721[[#This Row],[Kolumn1]]+Tabell1721[[#This Row],[Antal]] -> 0
B79: =Beräkningar!C80 -> 9057001-120548R | C79: =Beräkningar!D80 -> MPB Infästn.platta 120x400 FZB Svart | D79: =Beräkningar!K80 -> 0 | E79: 0 | F79: =Tabell1721[[#This Row],[Kolumn1]]+Tabell1721[[#This Row],[Antal]] -> 0
B80: =Beräkningar!C81 -> 7070001-01 | C80: =Beräkningar!D81 -> Eyacht PDU-enhet för batteri | D80: =Beräkningar!K81 -> 0 | E80: 0 | F80: =Tabell1721[[#This Row],[Kolumn1]]+Tabell1721[[#This Row],[Antal]] -> 0
B81: =Beräkningar!C82 -> 7071001-02500 | C81: =Beräkningar!D82 -> Eyacht Batteri 2,5 KW | D81: =Beräkningar!K82 -> 0 | E81: 0 | F81: =Tabell1721[[#This Row],[Kolumn1]]+Tabell1721[[#This Row],[Antal]] -> 0
B82: =Beräkningar!C83 -> 7079001-07500 | C82: =Beräkningar!D83 -> Eyacht Batteri kompl inkl PDU 7,5KW | D82: =Beräkningar!K83 -> 0 | E82: 0 | F82: =Tabell1721[[#This Row],[Kolumn1]]+Tabell1721[[#This Row],[Antal]] -> 0
B83: =Beräkningar!C84 -> 7079001-10000 | C83: =Beräkningar!D84 -> Eyacht Batteri kompl inkl PDU 10KW | D83: =Beräkningar!K84 -> 0 | E83: 0 | F83: =Tabell1721[[#This Row],[Kolumn1]]+Tabell1721[[#This Row],[Antal]] -> 0
B84: =Beräkningar!C85 -> 7079001-12500 | C84: =Beräkningar!D85 -> Eyacht Batteri kompl inkl PDU 12,5KW | D84: =Beräkningar!K85 -> 0 | E84: 0 | F84: =Tabell1721[[#This Row],[Kolumn1]]+Tabell1721[[#This Row],[Antal]] -> 0
B85: =Beräkningar!C86 -> 7079001-15000 | C85: =Beräkningar!D86 -> Eyacht Batteri kompl inkl PDU 15KW | D85: =Beräkningar!K86 -> 0 | E85: 0 | F85: =Tabell1721[[#This Row],[Kolumn1]]+Tabell1721[[#This Row],[Antal]] -> 0
B86: =Beräkningar!C87 -> 7079001-17500 | C86: =Beräkningar!D87 -> Eyacht Batteri kompl inkl PDU 17,5KW | D86: =Beräkningar!K87 -> 0 | E86: 0 | F86: =Tabell1721[[#This Row],[Kolumn1]]+Tabell1721[[#This Row],[Antal]] -> 0
B87: =Beräkningar!C88 -> 7079001-20000 | C87: =Beräkningar!D88 -> Eyacht Batteri kompl inkl PDU 20KW | D87: =Beräkningar!K88 -> 0 | E87: 0 | F87: =Tabell1721[[#This Row],[Kolumn1]]+Tabell1721[[#This Row],[Antal]] -> 0
D92: Summa | E92: =SUM(E8:E88) -> 0

Sheet Offert
G4: OFFERT | I4: Datum | K4: =TODAY() -> 2026-06-26
B9: Köpare: | D9: =Indata!D3 -> 0 | G9: Vår ref: | H9: =Indata!M60 -> 
B10: Adress: | D10: =Indata!D4 -> 0 | G10: Mail: | H10: =IF(H9=Anpassning!D40,Anpassning!F40,IF(H9=Anpassning!D41,Anpassning!F41,IF(H9=Anpassning!D42,Anpassning!F42,""))) -> 
B11: Postnr/Ort: | D11: =Indata!D5 -> 0 | G11: Telefon: | H11: =IF(H9=Anpassning!D40,Anpassning!K40,IF(H9=Anpassning!D41,Anpassning!K41,IF(H9=Anpassning!D42,Anpassning!K42,""))) -> 
B12: Telefon: | D12: =Indata!D6 -> 0
B13: Mail: | D13: =Indata!D7 -> 0 | G13: Offert giltig: | H13: =Anpassning!N27 -> 30 dagar
B14: Project: | D14: =Indata!K5 -> 
B17: Vi har härmed nöjet att offera efterfrågad anläggning. Fullt färdig och funktionstestad.
C19: (OBS! Vid "Grönt bidrag" gäller begränsning 50.000:-/år för varje ägare i fastigheten)
B22: Totalt pris exklusive moms: | J22: =SUM(Indata!M47:M50) -> 133
B23: =IF(Formler!P75=TRUE,"Rabatt","") ->  | J23: =IF(Formler!P75=TRUE,Anpassning!E10,0) -> 0
B24: Moms | J24: =Indata!M53 -> 33.25
B25: Pris inklusive moms: | J25: =SUM(J22:J24) -> 166.25
B26: =IF(Formler!P72= TRUE,"Grönt bidrag.","") ->  | J26: =Indata!M55+Indata!M56 -> 0
B27: Totalt att betala kr. | J27: =J25-J26 -> 166.25
B29: Betalningsvillkor.
B30: =Anpassning!D27 -> 10 dagar efter utförd funktionskontroll.
B32: Övriga villkor.
B33: =Anpassning!D30 -> Kunden ansvarar för takets skikt och bärighet. Eventuell grävning ingår ej.
B34: =Anpassning!D31 -> Ställningar ingår ej, får hyras på orten om kunden ej har tillgång.
B35: =Anpassning!D32 -> Arbetet utförs av behöriga montörer och elektriker.
B36: =Anpassning!D33 -> 
B37: =Anpassning!D34 -> 
B38: =Anpassning!D35 -> 
B41: Produktbeskrivning: | G41: Garantier | J41: Tak 1 | K41: Tak 2
B42: Storlek på system KW | E42: =Indata!E34+Indata!F34 -> 0 | G42: Produktgaranti paneler år: | J42: =Formler!G30 -> 15 | K42: =Formler!G37 -> 
B43: Teoretisk produktion KWh | E43: =Indata!E36+Indata!F36 -> 0 | G43: Effektgaranti 85% minst antal år | J43: =Formler!G31 -> 25 | K43: =Formler!G38 -> 
B44: Kostnad per watt: | E44: =Indata!E37 ->  | G44: Kostnad m2/panel, kr. | J44: =Indata!E38 -> 
B45: Antal paneler: | E45: =Indata!D19+Indata!D28 -> 0 | G45: Produktgaranti montagesystem: | J45: 10 år
B46: Växelriktare: | E46: =IF(Formler!Z21=TRUE,"AFORE","") -> AFORE | G46: Produktgaranti växelriktare: | J46: =IF(Formler!Z21=TRUE,"10 år","") -> 10 år
B49: =Anpassning!E47 -> Nimex | G49: Ort och datum:
G50: Offerten med dess innehåll godkännses.
B53: =Indata!M60 ->  | G53: Namnförtydligande
B56: =_xlfn.TEXTJOIN(", ",TRUE,Anpassning!E47:H50) -> Nimex, storgatan, 444555, hjo

Sheet Extra 1 (hidden)

Sheet Extra 2 (hidden)

Sheet Materialspec med pris
C6: Kund | D6: Lev.adress
B7: Namn | C7: =Indata!D3 -> 0
B8: Adress | C8: =Indata!D4 -> 0
B9: Postnr / ort | C9: =Indata!D5 -> 0
B10: Tel.nr | C10: =Indata!D6 -> 0
B11: Email | C11: =Indata!D7 -> 0 | E11: Lev.tid | F11: Best.datum
B12: Objekt | C12: =Indata!K5 ->  | E12: =Indata!K7 ->  | F12: =TODAY() -> 2026-06-26
B14: Art.nr | C14: Specifikation | D14: Antal | E14: a'pris | F14: Totalpris
B15: =IFERROR(INDEX(Beräkningar!$C$9:$C$93,MATCH(ROW()-ROW($L$14),Beräkningar!$B$9:$B$93,0)),"") -> 9990001-05 | C15: =IFERROR(INDEX(Beräkningar!$D$9:$D$93,MATCH(ROW()-ROW($L$14),Beräkningar!$B$9:$B$93,0)),"") -> Märkskylt Set | D15: =IFERROR(INDEX(Beräkningar!$M$9:$M$93,MATCH(ROW()-ROW($L$14),Beräkningar!$B$9:$B$93,0)),"") -> 1 | E15: =IFERROR(INDEX(Beräkningar!$AA$9:$AA$93,MATCH(ROW()-ROW($L$14),Beräkningar!$B$9:$B$93,0)),"") -> 133 | F15: =IFERROR(INDEX(Beräkningar!$AB$9:$AB$93,MATCH(ROW()-ROW($L$14),Beräkningar!$B$9:$B$93,0)),"") -> 133
B16: =IFERROR(INDEX(Beräkningar!$C$9:$C$93,MATCH(ROW()-ROW($L$14),Beräkningar!$B$9:$B$93,0)),"") ->  | C16: =IFERROR(INDEX(Beräkningar!$D$9:$D$93,MATCH(ROW()-ROW($L$14),Beräkningar!$B$9:$B$93,0)),"") ->  | D16: =IFERROR(INDEX(Beräkningar!$M$9:$M$93,MATCH(ROW()-ROW($L$14),Beräkningar!$B$9:$B$93,0)),"") ->  | E16: =IFERROR(INDEX(Beräkningar!$AA$9:$AA$93,MATCH(ROW()-ROW($L$14),Beräkningar!$B$9:$B$93,0)),"") ->  | F16: =IFERROR(INDEX(Beräkningar!$AB$9:$AB$93,MATCH(ROW()-ROW($L$14),Beräkningar!$B$9:$B$93,0)),"") -> 
B17: =IFERROR(INDEX(Beräkningar!$C$9:$C$93,MATCH(ROW()-ROW($L$14),Beräkningar!$B$9:$B$93,0)),"") ->  | C17: =IFERROR(INDEX(Beräkningar!$D$9:$D$93,MATCH(ROW()-ROW($L$14),Beräkningar!$B$9:$B$93,0)),"") ->  | D17: =IFERROR(INDEX(Beräkningar!$M$9:$M$93,MATCH(ROW()-ROW($L$14),Beräkningar!$B$9:$B$93,0)),"") ->  | E17: =IFERROR(INDEX(Beräkningar!$AA$9:$AA$93,MATCH(ROW()-ROW($L$14),Beräkningar!$B$9:$B$93,0)),"") ->  | F17: =IFERROR(INDEX(Beräkningar!$AB$9:$AB$93,MATCH(ROW()-ROW($L$14),Beräkningar!$B$9:$B$93,0)),"") -> 
B18: =IFERROR(INDEX(Beräkningar!$C$9:$C$93,MATCH(ROW()-ROW($L$14),Beräkningar!$B$9:$B$93,0)),"") ->  | C18: =IFERROR(INDEX(Beräkningar!$D$9:$D$93,MATCH(ROW()-ROW($L$14),Beräkningar!$B$9:$B$93,0)),"") ->  | D18: =IFERROR(INDEX(Beräkningar!$M$9:$M$93,MATCH(ROW()-ROW($L$14),Beräkningar!$B$9:$B$93,0)),"") ->  | E18: =IFERROR(INDEX(Beräkningar!$AA$9:$AA$93,MATCH(ROW()-ROW($L$14),Beräkningar!$B$9:$B$93,0)),"") ->  | F18: =IFERROR(INDEX(Beräkningar!$AB$9:$AB$93,MATCH(ROW()-ROW($L$14),Beräkningar!$B$9:$B$93,0)),"") -> 
B19: =IFERROR(INDEX(Beräkningar!$C$9:$C$93,MATCH(ROW()-ROW($L$14),Beräkningar!$B$9:$B$93,0)),"") ->  | C19: =IFERROR(INDEX(Beräkningar!$D$9:$D$93,MATCH(ROW()-ROW($L$14),Beräkningar!$B$9:$B$93,0)),"") ->  | D19: =IFERROR(INDEX(Beräkningar!$M$9:$M$93,MATCH(ROW()-ROW($L$14),Beräkningar!$B$9:$B$93,0)),"") ->  | E19: =IFERROR(INDEX(Beräkningar!$AA$9:$AA$93,MATCH(ROW()-ROW($L$14),Beräkningar!$B$9:$B$93,0)),"") ->  | F19: =IFERROR(INDEX(Beräkningar!$AB$9:$AB$93,MATCH(ROW()-ROW($L$14),Beräkningar!$B$9:$B$93,0)),"") -> 
B20: =IFERROR(INDEX(Beräkningar!$C$9:$C$93,MATCH(ROW()-ROW($L$14),Beräkningar!$B$9:$B$93,0)),"") ->  | C20: =IFERROR(INDEX(Beräkningar!$D$9:$D$93,MATCH(ROW()-ROW($L$14),Beräkningar!$B$9:$B$93,0)),"") ->  | D20: =IFERROR(INDEX(Beräkningar!$M$9:$M$93,MATCH(ROW()-ROW($L$14),Beräkningar!$B$9:$B$93,0)),"") ->  | E20: =IFERROR(INDEX(Beräkningar!$AA$9:$AA$93,MATCH(ROW()-ROW($L$14),Beräkningar!$B$9:$B$93,0)),"") ->  | F20: =IFERROR(INDEX(Beräkningar!$AB$9:$AB$93,MATCH(ROW()-ROW($L$14),Beräkningar!$B$9:$B$93,0)),"") -> 
B21: =IFERROR(INDEX(Beräkningar!$C$9:$C$93,MATCH(ROW()-ROW($L$14),Beräkningar!$B$9:$B$93,0)),"") ->  | C21: =IFERROR(INDEX(Beräkningar!$D$9:$D$93,MATCH(ROW()-ROW($L$14),Beräkningar!$B$9:$B$93,0)),"") ->  | D21: =IFERROR(INDEX(Beräkningar!$M$9:$M$93,MATCH(ROW()-ROW($L$14),Beräkningar!$B$9:$B$93,0)),"") ->  | E21: =IFERROR(INDEX(Beräkningar!$AA$9:$AA$93,MATCH(ROW()-ROW($L$14),Beräkningar!$B$9:$B$93,0)),"") ->  | F21: =IFERROR(INDEX(Beräkningar!$AB$9:$AB$93,MATCH(ROW()-ROW($L$14),Beräkningar!$B$9:$B$93,0)),"") -> 
B22: =IFERROR(INDEX(Beräkningar!$C$9:$C$93,MATCH(ROW()-ROW($L$14),Beräkningar!$B$9:$B$93,0)),"") ->  | C22: =IFERROR(INDEX(Beräkningar!$D$9:$D$93,MATCH(ROW()-ROW($L$14),Beräkningar!$B$9:$B$93,0)),"") ->  | D22: =IFERROR(INDEX(Beräkningar!$M$9:$M$93,MATCH(ROW()-ROW($L$14),Beräkningar!$B$9:$B$93,0)),"") ->  | E22: =IFERROR(INDEX(Beräkningar!$AA$9:$AA$93,MATCH(ROW()-ROW($L$14),Beräkningar!$B$9:$B$93,0)),"") ->  | F22: =IFERROR(INDEX(Beräkningar!$AB$9:$AB$93,MATCH(ROW()-ROW($L$14),Beräkningar!$B$9:$B$93,0)),"") -> 
B23: =IFERROR(INDEX(Beräkningar!$C$9:$C$93,MATCH(ROW()-ROW($L$14),Beräkningar!$B$9:$B$93,0)),"") ->  | C23: =IFERROR(INDEX(Beräkningar!$D$9:$D$93,MATCH(ROW()-ROW($L$14),Beräkningar!$B$9:$B$93,0)),"") ->  | D23: =IFERROR(INDEX(Beräkningar!$M$9:$M$93,MATCH(ROW()-ROW($L$14),Beräkningar!$B$9:$B$93,0)),"") ->  | E23: =IFERROR(INDEX(Beräkningar!$AA$9:$AA$93,MATCH(ROW()-ROW($L$14),Beräkningar!$B$9:$B$93,0)),"") ->  | F23: =IFERROR(INDEX(Beräkningar!$AB$9:$AB$93,MATCH(ROW()-ROW($L$14),Beräkningar!$B$9:$B$93,0)),"") -> 
B24: =IFERROR(INDEX(Beräkningar!$C$9:$C$93,MATCH(ROW()-ROW($L$14),Beräkningar!$B$9:$B$93,0)),"") ->  | C24: =IFERROR(INDEX(Beräkningar!$D$9:$D$93,MATCH(ROW()-ROW($L$14),Beräkningar!$B$9:$B$93,0)),"") ->  | D24: =IFERROR(INDEX(Beräkningar!$M$9:$M$93,MATCH(ROW()-ROW($L$14),Beräkningar!$B$9:$B$93,0)),"") ->  | E24: =IFERROR(INDEX(Beräkningar!$AA$9:$AA$93,MATCH(ROW()-ROW($L$14),Beräkningar!$B$9:$B$93,0)),"") ->  | F24: =IFERROR(INDEX(Beräkningar!$AB$9:$AB$93,MATCH(ROW()-ROW($L$14),Beräkningar!$B$9:$B$93,0)),"") -> 
B25: =IFERROR(INDEX(Beräkningar!$C$9:$C$93,MATCH(ROW()-ROW($L$14),Beräkningar!$B$9:$B$93,0)),"") ->  | C25: =IFERROR(INDEX(Beräkningar!$D$9:$D$93,MATCH(ROW()-ROW($L$14),Beräkningar!$B$9:$B$93,0)),"") ->  | D25: =IFERROR(INDEX(Beräkningar!$M$9:$M$93,MATCH(ROW()-ROW($L$14),Beräkningar!$B$9:$B$93,0)),"") ->  | E25: =IFERROR(INDEX(Beräkningar!$AA$9:$AA$93,MATCH(ROW()-ROW($L$14),Beräkningar!$B$9:$B$93,0)),"") ->  | F25: =IFERROR(INDEX(Beräkningar!$AB$9:$AB$93,MATCH(ROW()-ROW($L$14),Beräkningar!$B$9:$B$93,0)),"") -> 
B26: =IFERROR(INDEX(Beräkningar!$C$9:$C$93,MATCH(ROW()-ROW($L$14),Beräkningar!$B$9:$B$93,0)),"") ->  | C26: =IFERROR(INDEX(Beräkningar!$D$9:$D$93,MATCH(ROW()-ROW($L$14),Beräkningar!$B$9:$B$93,0)),"") ->  | D26: =IFERROR(INDEX(Beräkningar!$M$9:$M$93,MATCH(ROW()-ROW($L$14),Beräkningar!$B$9:$B$93,0)),"") ->  | E26: =IFERROR(INDEX(Beräkningar!$AA$9:$AA$93,MATCH(ROW()-ROW($L$14),Beräkningar!$B$9:$B$93,0)),"") ->  | F26: =IFERROR(INDEX(Beräkningar!$AB$9:$AB$93,MATCH(ROW()-ROW($L$14),Beräkningar!$B$9:$B$93,0)),"") -> 
B27: =IFERROR(INDEX(Beräkningar!$C$9:$C$93,MATCH(ROW()-ROW($L$14),Beräkningar!$B$9:$B$93,0)),"") ->  | C27: =IFERROR(INDEX(Beräkningar!$D$9:$D$93,MATCH(ROW()-ROW($L$14),Beräkningar!$B$9:$B$93,0)),"") ->  | D27: =IFERROR(INDEX(Beräkningar!$M$9:$M$93,MATCH(ROW()-ROW($L$14),Beräkningar!$B$9:$B$93,0)),"") ->  | E27: =IFERROR(INDEX(Beräkningar!$AA$9:$AA$93,MATCH(ROW()-ROW($L$14),Beräkningar!$B$9:$B$93,0)),"") ->  | F27: =IFERROR(INDEX(Beräkningar!$AB$9:$AB$93,MATCH(ROW()-ROW($L$14),Beräkningar!$B$9:$B$93,0)),"") -> 
B28: =IFERROR(INDEX(Beräkningar!$C$9:$C$93,MATCH(ROW()-ROW($L$14),Beräkningar!$B$9:$B$93,0)),"") ->  | C28: =IFERROR(INDEX(Beräkningar!$D$9:$D$93,MATCH(ROW()-ROW($L$14),Beräkningar!$B$9:$B$93,0)),"") ->  | D28: =IFERROR(INDEX(Beräkningar!$M$9:$M$93,MATCH(ROW()-ROW($L$14),Beräkningar!$B$9:$B$93,0)),"") ->  | E28: =IFERROR(INDEX(Beräkningar!$AA$9:$AA$93,MATCH(ROW()-ROW($L$14),Beräkningar!$B$9:$B$93,0)),"") ->  | F28: =IFERROR(INDEX(Beräkningar!$AB$9:$AB$93,MATCH(ROW()-ROW($L$14),Beräkningar!$B$9:$B$93,0)),"") -> 
B29: =IFERROR(INDEX(Beräkningar!$C$9:$C$93,MATCH(ROW()-ROW($L$14),Beräkningar!$B$9:$B$93,0)),"") ->  | C29: =IFERROR(INDEX(Beräkningar!$D$9:$D$93,MATCH(ROW()-ROW($L$14),Beräkningar!$B$9:$B$93,0)),"") ->  | D29: =IFERROR(INDEX(Beräkningar!$M$9:$M$93,MATCH(ROW()-ROW($L$14),Beräkningar!$B$9:$B$93,0)),"") ->  | E29: =IFERROR(INDEX(Beräkningar!$AA$9:$AA$93,MATCH(ROW()-ROW($L$14),Beräkningar!$B$9:$B$93,0)),"") ->  | F29: =IFERROR(INDEX(Beräkningar!$AB$9:$AB$93,MATCH(ROW()-ROW($L$14),Beräkningar!$B$9:$B$93,0)),"") -> 
B30: =IFERROR(INDEX(Beräkningar!$C$9:$C$93,MATCH(ROW()-ROW($L$14),Beräkningar!$B$9:$B$93,0)),"") ->  | C30: =IFERROR(INDEX(Beräkningar!$D$9:$D$93,MATCH(ROW()-ROW($L$14),Beräkningar!$B$9:$B$93,0)),"") ->  | D30: =IFERROR(INDEX(Beräkningar!$M$9:$M$93,MATCH(ROW()-ROW($L$14),Beräkningar!$B$9:$B$93,0)),"") ->  | E30: =IFERROR(INDEX(Beräkningar!$AA$9:$AA$93,MATCH(ROW()-ROW($L$14),Beräkningar!$B$9:$B$93,0)),"") ->  | F30: =IFERROR(INDEX(Beräkningar!$AB$9:$AB$93,MATCH(ROW()-ROW($L$14),Beräkningar!$B$9:$B$93,0)),"") -> 
B31: =IFERROR(INDEX(Beräkningar!$C$9:$C$93,MATCH(ROW()-ROW($L$14),Beräkningar!$B$9:$B$93,0)),"") ->  | C31: =IFERROR(INDEX(Beräkningar!$D$9:$D$93,MATCH(ROW()-ROW($L$14),Beräkningar!$B$9:$B$93,0)),"") ->  | D31: =IFERROR(INDEX(Beräkningar!$M$9:$M$93,MATCH(ROW()-ROW($L$14),Beräkningar!$B$9:$B$93,0)),"") ->  | E31: =IFERROR(INDEX(Beräkningar!$AA$9:$AA$93,MATCH(ROW()-ROW($L$14),Beräkningar!$B$9:$B$93,0)),"") ->  | F31: =IFERROR(INDEX(Beräkningar!$AB$9:$AB$93,MATCH(ROW()-ROW($L$14),Beräkningar!$B$9:$B$93,0)),"") -> 
B32: =IFERROR(INDEX(Beräkningar!$C$9:$C$93,MATCH(ROW()-ROW($L$14),Beräkningar!$B$9:$B$93,0)),"") ->  | C32: =IFERROR(INDEX(Beräkningar!$D$9:$D$93,MATCH(ROW()-ROW($L$14),Beräkningar!$B$9:$B$93,0)),"") ->  | D32: =IFERROR(INDEX(Beräkningar!$M$9:$M$93,MATCH(ROW()-ROW($L$14),Beräkningar!$B$9:$B$93,0)),"") ->  | E32: =IFERROR(INDEX(Beräkningar!$AA$9:$AA$93,MATCH(ROW()-ROW($L$14),Beräkningar!$B$9:$B$93,0)),"") ->  | F32: =IFERROR(INDEX(Beräkningar!$AB$9:$AB$93,MATCH(ROW()-ROW($L$14),Beräkningar!$B$9:$B$93,0)),"") -> 
B33: =IFERROR(INDEX(Beräkningar!$C$9:$C$93,MATCH(ROW()-ROW($L$14),Beräkningar!$B$9:$B$93,0)),"") ->  | C33: =IFERROR(INDEX(Beräkningar!$D$9:$D$93,MATCH(ROW()-ROW($L$14),Beräkningar!$B$9:$B$93,0)),"") ->  | D33: =IFERROR(INDEX(Beräkningar!$M$9:$M$93,MATCH(ROW()-ROW($L$14),Beräkningar!$B$9:$B$93,0)),"") ->  | E33: =IFERROR(INDEX(Beräkningar!$AA$9:$AA$93,MATCH(ROW()-ROW($L$14),Beräkningar!$B$9:$B$93,0)),"") ->  | F33: =IFERROR(INDEX(Beräkningar!$AB$9:$AB$93,MATCH(ROW()-ROW($L$14),Beräkningar!$B$9:$B$93,0)),"") -> 
B34: =IFERROR(INDEX(Beräkningar!$C$9:$C$93,MATCH(ROW()-ROW($L$14),Beräkningar!$B$9:$B$93,0)),"") ->  | C34: =IFERROR(INDEX(Beräkningar!$D$9:$D$93,MATCH(ROW()-ROW($L$14),Beräkningar!$B$9:$B$93,0)),"") ->  | D34: =IFERROR(INDEX(Beräkningar!$M$9:$M$93,MATCH(ROW()-ROW($L$14),Beräkningar!$B$9:$B$93,0)),"") ->  | E34: =IFERROR(INDEX(Beräkningar!$AA$9:$AA$93,MATCH(ROW()-ROW($L$14),Beräkningar!$B$9:$B$93,0)),"") ->  | F34: =IFERROR(INDEX(Beräkningar!$AB$9:$AB$93,MATCH(ROW()-ROW($L$14),Beräkningar!$B$9:$B$93,0)),"") -> 
B35: =IFERROR(INDEX(Beräkningar!$C$9:$C$93,MATCH(ROW()-ROW($L$14),Beräkningar!$B$9:$B$93,0)),"") ->  | C35: =IFERROR(INDEX(Beräkningar!$D$9:$D$93,MATCH(ROW()-ROW($L$14),Beräkningar!$B$9:$B$93,0)),"") ->  | D35: =IFERROR(INDEX(Beräkningar!$M$9:$M$93,MATCH(ROW()-ROW($L$14),Beräkningar!$B$9:$B$93,0)),"") ->  | E35: =IFERROR(INDEX(Beräkningar!$AA$9:$AA$93,MATCH(ROW()-ROW($L$14),Beräkningar!$B$9:$B$93,0)),"") ->  | F35: =IFERROR(INDEX(Beräkningar!$AB$9:$AB$93,MATCH(ROW()-ROW($L$14),Beräkningar!$B$9:$B$93,0)),"") -> 
B36: =IFERROR(INDEX(Beräkningar!$C$9:$C$93,MATCH(ROW()-ROW($L$14),Beräkningar!$B$9:$B$93,0)),"") ->  | C36: =IFERROR(INDEX(Beräkningar!$D$9:$D$93,MATCH(ROW()-ROW($L$14),Beräkningar!$B$9:$B$93,0)),"") ->  | D36: =IFERROR(INDEX(Beräkningar!$M$9:$M$93,MATCH(ROW()-ROW($L$14),Beräkningar!$B$9:$B$93,0)),"") ->  | E36: =IFERROR(INDEX(Beräkningar!$AA$9:$AA$93,MATCH(ROW()-ROW($L$14),Beräkningar!$B$9:$B$93,0)),"") ->  | F36: =IFERROR(INDEX(Beräkningar!$AB$9:$AB$93,MATCH(ROW()-ROW($L$14),Beräkningar!$B$9:$B$93,0)),"") -> 
B37: =IFERROR(INDEX(Beräkningar!$C$9:$C$93,MATCH(ROW()-ROW($L$14),Beräkningar!$B$9:$B$93,0)),"") ->  | C37: =IFERROR(INDEX(Beräkningar!$D$9:$D$93,MATCH(ROW()-ROW($L$14),Beräkningar!$B$9:$B$93,0)),"") ->  | D37: =IFERROR(INDEX(Beräkningar!$M$9:$M$93,MATCH(ROW()-ROW($L$14),Beräkningar!$B$9:$B$93,0)),"") ->  | E37: =IFERROR(INDEX(Beräkningar!$AA$9:$AA$93,MATCH(ROW()-ROW($L$14),Beräkningar!$B$9:$B$93,0)),"") ->  | F37: =IFERROR(INDEX(Beräkningar!$AB$9:$AB$93,MATCH(ROW()-ROW($L$14),Beräkningar!$B$9:$B$93,0)),"") -> 
B38: =IFERROR(INDEX(Beräkningar!$C$9:$C$93,MATCH(ROW()-ROW($L$14),Beräkningar!$B$9:$B$93,0)),"") ->  | C38: =IFERROR(INDEX(Beräkningar!$D$9:$D$93,MATCH(ROW()-ROW($L$14),Beräkningar!$B$9:$B$93,0)),"") ->  | D38: =IFERROR(INDEX(Beräkningar!$M$9:$M$93,MATCH(ROW()-ROW($L$14),Beräkningar!$B$9:$B$93,0)),"") ->  | E38: =IFERROR(INDEX(Beräkningar!$AA$9:$AA$93,MATCH(ROW()-ROW($L$14),Beräkningar!$B$9:$B$93,0)),"") ->  | F38: =IFERROR(INDEX(Beräkningar!$AB$9:$AB$93,MATCH(ROW()-ROW($L$14),Beräkningar!$B$9:$B$93,0)),"") -> 
B39: =IFERROR(INDEX(Beräkningar!$C$9:$C$93,MATCH(ROW()-ROW($L$14),Beräkningar!$B$9:$B$93,0)),"") ->  | C39: =IFERROR(INDEX(Beräkningar!$D$9:$D$93,MATCH(ROW()-ROW($L$14),Beräkningar!$B$9:$B$93,0)),"") ->  | D39: =IFERROR(INDEX(Beräkningar!$M$9:$M$93,MATCH(ROW()-ROW($L$14),Beräkningar!$B$9:$B$93,0)),"") ->  | E39: =IFERROR(INDEX(Beräkningar!$AA$9:$AA$93,MATCH(ROW()-ROW($L$14),Beräkningar!$B$9:$B$93,0)),"") ->  | F39: =IFERROR(INDEX(Beräkningar!$AB$9:$AB$93,MATCH(ROW()-ROW($L$14),Beräkningar!$B$9:$B$93,0)),"") -> 
B40: =IFERROR(INDEX(Beräkningar!$C$9:$C$93,MATCH(ROW()-ROW($L$14),Beräkningar!$B$9:$B$93,0)),"") ->  | C40: =IFERROR(INDEX(Beräkningar!$D$9:$D$93,MATCH(ROW()-ROW($L$14),Beräkningar!$B$9:$B$93,0)),"") ->  | D40: =IFERROR(INDEX(Beräkningar!$M$9:$M$93,MATCH(ROW()-ROW($L$14),Beräkningar!$B$9:$B$93,0)),"") ->  | E40: =IFERROR(INDEX(Beräkningar!$AA$9:$AA$93,MATCH(ROW()-ROW($L$14),Beräkningar!$B$9:$B$93,0)),"") ->  | F40: =IFERROR(INDEX(Beräkningar!$AB$9:$AB$93,MATCH(ROW()-ROW($L$14),Beräkningar!$B$9:$B$93,0)),"") -> 
B41: =IFERROR(INDEX(Beräkningar!$C$9:$C$93,MATCH(ROW()-ROW($L$14),Beräkningar!$B$9:$B$93,0)),"") ->  | C41: =IFERROR(INDEX(Beräkningar!$D$9:$D$93,MATCH(ROW()-ROW($L$14),Beräkningar!$B$9:$B$93,0)),"") ->  | D41: =IFERROR(INDEX(Beräkningar!$M$9:$M$93,MATCH(ROW()-ROW($L$14),Beräkningar!$B$9:$B$93,0)),"") ->  | E41: =IFERROR(INDEX(Beräkningar!$AA$9:$AA$93,MATCH(ROW()-ROW($L$14),Beräkningar!$B$9:$B$93,0)),"") ->  | F41: =IFERROR(INDEX(Beräkningar!$AB$9:$AB$93,MATCH(ROW()-ROW($L$14),Beräkningar!$B$9:$B$93,0)),"") -> 
B42: =IFERROR(INDEX(Beräkningar!$C$9:$C$93,MATCH(ROW()-ROW($L$14),Beräkningar!$B$9:$B$93,0)),"") ->  | C42: =IFERROR(INDEX(Beräkningar!$D$9:$D$93,MATCH(ROW()-ROW($L$14),Beräkningar!$B$9:$B$93,0)),"") ->  | D42: =IFERROR(INDEX(Beräkningar!$M$9:$M$93,MATCH(ROW()-ROW($L$14),Beräkningar!$B$9:$B$93,0)),"") ->  | E42: =IFERROR(INDEX(Beräkningar!$AA$9:$AA$93,MATCH(ROW()-ROW($L$14),Beräkningar!$B$9:$B$93,0)),"") ->  | F42: =IFERROR(INDEX(Beräkningar!$AB$9:$AB$93,MATCH(ROW()-ROW($L$14),Beräkningar!$B$9:$B$93,0)),"") -> 
B43: =IFERROR(INDEX(Beräkningar!$C$9:$C$93,MATCH(ROW()-ROW($L$14),Beräkningar!$B$9:$B$93,0)),"") ->  | C43: =IFERROR(INDEX(Beräkningar!$D$9:$D$93,MATCH(ROW()-ROW($L$14),Beräkningar!$B$9:$B$93,0)),"") ->  | D43: =IFERROR(INDEX(Beräkningar!$M$9:$M$93,MATCH(ROW()-ROW($L$14),Beräkningar!$B$9:$B$93,0)),"") ->  | E43: =IFERROR(INDEX(Beräkningar!$AA$9:$AA$93,MATCH(ROW()-ROW($L$14),Beräkningar!$B$9:$B$93,0)),"") ->  | F43: =IFERROR(INDEX(Beräkningar!$AB$9:$AB$93,MATCH(ROW()-ROW($L$14),Beräkningar!$B$9:$B$93,0)),"") -> 
B44: =IFERROR(INDEX(Beräkningar!$C$9:$C$93,MATCH(ROW()-ROW($L$14),Beräkningar!$B$9:$B$93,0)),"") ->  | C44: =IFERROR(INDEX(Beräkningar!$D$9:$D$93,MATCH(ROW()-ROW($L$14),Beräkningar!$B$9:$B$93,0)),"") ->  | D44: =IFERROR(INDEX(Beräkningar!$M$9:$M$93,MATCH(ROW()-ROW($L$14),Beräkningar!$B$9:$B$93,0)),"") ->  | E44: =IFERROR(INDEX(Beräkningar!$AA$9:$AA$93,MATCH(ROW()-ROW($L$14),Beräkningar!$B$9:$B$93,0)),"") ->  | F44: =IFERROR(INDEX(Beräkningar!$AB$9:$AB$93,MATCH(ROW()-ROW($L$14),Beräkningar!$B$9:$B$93,0)),"") -> 
B45: =IFERROR(INDEX(Beräkningar!$C$9:$C$93,MATCH(ROW()-ROW($L$14),Beräkningar!$B$9:$B$93,0)),"") ->  | C45: =IFERROR(INDEX(Beräkningar!$D$9:$D$93,MATCH(ROW()-ROW($L$14),Beräkningar!$B$9:$B$93,0)),"") ->  | D45: =IFERROR(INDEX(Beräkningar!$M$9:$M$93,MATCH(ROW()-ROW($L$14),Beräkningar!$B$9:$B$93,0)),"") ->  | E45: =IFERROR(INDEX(Beräkningar!$AA$9:$AA$93,MATCH(ROW()-ROW($L$14),Beräkningar!$B$9:$B$93,0)),"") ->  | F45: =IFERROR(INDEX(Beräkningar!$AB$9:$AB$93,MATCH(ROW()-ROW($L$14),Beräkningar!$B$9:$B$93,0)),"") -> 
B46: =IFERROR(INDEX(Beräkningar!$C$9:$C$93,MATCH(ROW()-ROW($L$14),Beräkningar!$B$9:$B$93,0)),"") ->  | C46: =IFERROR(INDEX(Beräkningar!$D$9:$D$93,MATCH(ROW()-ROW($L$14),Beräkningar!$B$9:$B$93,0)),"") ->  | D46: =IFERROR(INDEX(Beräkningar!$M$9:$M$93,MATCH(ROW()-ROW($L$14),Beräkningar!$B$9:$B$93,0)),"") ->  | E46: =IFERROR(INDEX(Beräkningar!$AA$9:$AA$93,MATCH(ROW()-ROW($L$14),Beräkningar!$B$9:$B$93,0)),"") ->  | F46: =IFERROR(INDEX(Beräkningar!$AB$9:$AB$93,MATCH(ROW()-ROW($L$14),Beräkningar!$B$9:$B$93,0)),"") -> 
B47: =IFERROR(INDEX(Beräkningar!$C$9:$C$93,MATCH(ROW()-ROW($L$14),Beräkningar!$B$9:$B$93,0)),"") ->  | C47: =IFERROR(INDEX(Beräkningar!$D$9:$D$93,MATCH(ROW()-ROW($L$14),Beräkningar!$B$9:$B$93,0)),"") ->  | D47: =IFERROR(INDEX(Beräkningar!$M$9:$M$93,MATCH(ROW()-ROW($L$14),Beräkningar!$B$9:$B$93,0)),"") ->  | E47: =IFERROR(INDEX(Beräkningar!$AA$9:$AA$93,MATCH(ROW()-ROW($L$14),Beräkningar!$B$9:$B$93,0)),"") ->  | F47: =IFERROR(INDEX(Beräkningar!$AB$9:$AB$93,MATCH(ROW()-ROW($L$14),Beräkningar!$B$9:$B$93,0)),"") -> 
B48: =IFERROR(INDEX(Beräkningar!$C$9:$C$93,MATCH(ROW()-ROW($L$14),Beräkningar!$B$9:$B$93,0)),"") ->  | C48: =IFERROR(INDEX(Beräkningar!$D$9:$D$93,MATCH(ROW()-ROW($L$14),Beräkningar!$B$9:$B$93,0)),"") ->  | D48: =IFERROR(INDEX(Beräkningar!$M$9:$M$93,MATCH(ROW()-ROW($L$14),Beräkningar!$B$9:$B$93,0)),"") ->  | E48: =IFERROR(INDEX(Beräkningar!$AA$9:$AA$93,MATCH(ROW()-ROW($L$14),Beräkningar!$B$9:$B$93,0)),"") ->  | F48: =IFERROR(INDEX(Beräkningar!$AB$9:$AB$93,MATCH(ROW()-ROW($L$14),Beräkningar!$B$9:$B$93,0)),"") -> 
B49: =IFERROR(INDEX(Beräkningar!$C$9:$C$93,MATCH(ROW()-ROW($L$14),Beräkningar!$B$9:$B$93,0)),"") ->  | C49: =IFERROR(INDEX(Beräkningar!$D$9:$D$93,MATCH(ROW()-ROW($L$14),Beräkningar!$B$9:$B$93,0)),"") ->  | D49: =IFERROR(INDEX(Beräkningar!$M$9:$M$93,MATCH(ROW()-ROW($L$14),Beräkningar!$B$9:$B$93,0)),"") ->  | E49: =IFERROR(INDEX(Beräkningar!$AA$9:$AA$93,MATCH(ROW()-ROW($L$14),Beräkningar!$B$9:$B$93,0)),"") ->  | F49: =IFERROR(INDEX(Beräkningar!$AB$9:$AB$93,MATCH(ROW()-ROW($L$14),Beräkningar!$B$9:$B$93,0)),"") -> 
B50: =IFERROR(INDEX(Beräkningar!$C$9:$C$93,MATCH(ROW()-ROW($L$14),Beräkningar!$B$9:$B$93,0)),"") ->  | C50: =IFERROR(INDEX(Beräkningar!$D$9:$D$93,MATCH(ROW()-ROW($L$14),Beräkningar!$B$9:$B$93,0)),"") ->  | D50: =IFERROR(INDEX(Beräkningar!$M$9:$M$93,MATCH(ROW()-ROW($L$14),Beräkningar!$B$9:$B$93,0)),"") ->  | E50: =IFERROR(INDEX(Beräkningar!$AA$9:$AA$93,MATCH(ROW()-ROW($L$14),Beräkningar!$B$9:$B$93,0)),"") ->  | F50: =IFERROR(INDEX(Beräkningar!$AB$9:$AB$93,MATCH(ROW()-ROW($L$14),Beräkningar!$B$9:$B$93,0)),"") -> 
B51: =IFERROR(INDEX(Beräkningar!$C$9:$C$93,MATCH(ROW()-ROW($L$14),Beräkningar!$B$9:$B$93,0)),"") ->  | C51: =IFERROR(INDEX(Beräkningar!$D$9:$D$93,MATCH(ROW()-ROW($L$14),Beräkningar!$B$9:$B$93,0)),"") ->  | D51: =IFERROR(INDEX(Beräkningar!$M$9:$M$93,MATCH(ROW()-ROW($L$14),Beräkningar!$B$9:$B$93,0)),"") ->  | E51: =IFERROR(INDEX(Beräkningar!$AA$9:$AA$93,MATCH(ROW()-ROW($L$14),Beräkningar!$B$9:$B$93,0)),"") ->  | F51: =IFERROR(INDEX(Beräkningar!$AB$9:$AB$93,MATCH(ROW()-ROW($L$14),Beräkningar!$B$9:$B$93,0)),"") -> 
E53: Summa | F53: =SUM(F15:F51) -> 133

Sheet Materialspec utan pris
C6: Kund | E6: Lev.adress
B7: Namn | C7: =Indata!D3 -> 0 | E7: Mt816
B8: Adress | C8: =Indata!D4 -> 0
B9: Postnr / ort | C9: =Indata!D5 -> 0
B10: Tel.nr | C10: =Indata!D6 -> 0
B11: Email | C11: =Indata!D7 -> 0 | E11: Lev.tid | F11: Best.datum
B12: Projekt | C12: =Indata!K5 ->  | E12: =Indata!K7 ->  | F12: =TODAY() -> 2026-06-26
B14: Art.nr | C14: Specifikation | E14: Antal | F14: 0
B15: =IFERROR(INDEX(Beräkningar!$C$9:$C$93,MATCH(ROW()-ROW($L$14),Beräkningar!$B$9:$B$93,0)),"") -> 9990001-05 | C15: =IFERROR(INDEX(Beräkningar!$D$9:$D$93,MATCH(ROW()-ROW($L$14),Beräkningar!$B$9:$B$93,0)),"") -> Märkskylt Set | E15: =IFERROR(INDEX(Beräkningar!$M$9:$M$93,MATCH(ROW()-ROW($L$14),Beräkningar!$B$9:$B$93,0)),"") -> 1
B16: =IFERROR(INDEX(Beräkningar!$C$9:$C$93,MATCH(ROW()-ROW($L$14),Beräkningar!$B$9:$B$93,0)),"") ->  | C16: =IFERROR(INDEX(Beräkningar!$D$9:$D$93,MATCH(ROW()-ROW($L$14),Beräkningar!$B$9:$B$93,0)),"") ->  | E16: =IFERROR(INDEX(Beräkningar!$M$9:$M$93,MATCH(ROW()-ROW($L$14),Beräkningar!$B$9:$B$93,0)),"") -> 
B17: =IFERROR(INDEX(Beräkningar!$C$9:$C$93,MATCH(ROW()-ROW($L$14),Beräkningar!$B$9:$B$93,0)),"") ->  | C17: =IFERROR(INDEX(Beräkningar!$D$9:$D$93,MATCH(ROW()-ROW($L$14),Beräkningar!$B$9:$B$93,0)),"") ->  | E17: =IFERROR(INDEX(Beräkningar!$M$9:$M$93,MATCH(ROW()-ROW($L$14),Beräkningar!$B$9:$B$93,0)),"") -> 
B18: =IFERROR(INDEX(Beräkningar!$C$9:$C$93,MATCH(ROW()-ROW($L$14),Beräkningar!$B$9:$B$93,0)),"") ->  | C18: =IFERROR(INDEX(Beräkningar!$D$9:$D$93,MATCH(ROW()-ROW($L$14),Beräkningar!$B$9:$B$93,0)),"") ->  | E18: =IFERROR(INDEX(Beräkningar!$M$9:$M$93,MATCH(ROW()-ROW($L$14),Beräkningar!$B$9:$B$93,0)),"") -> 
B19: =IFERROR(INDEX(Beräkningar!$C$9:$C$93,MATCH(ROW()-ROW($L$14),Beräkningar!$B$9:$B$93,0)),"") ->  | C19: =IFERROR(INDEX(Beräkningar!$D$9:$D$93,MATCH(ROW()-ROW($L$14),Beräkningar!$B$9:$B$93,0)),"") ->  | E19: =IFERROR(INDEX(Beräkningar!$M$9:$M$93,MATCH(ROW()-ROW($L$14),Beräkningar!$B$9:$B$93,0)),"") -> 
B20: =IFERROR(INDEX(Beräkningar!$C$9:$C$93,MATCH(ROW()-ROW($L$14),Beräkningar!$B$9:$B$93,0)),"") ->  | C20: =IFERROR(INDEX(Beräkningar!$D$9:$D$93,MATCH(ROW()-ROW($L$14),Beräkningar!$B$9:$B$93,0)),"") ->  | E20: =IFERROR(INDEX(Beräkningar!$M$9:$M$93,MATCH(ROW()-ROW($L$14),Beräkningar!$B$9:$B$93,0)),"") -> 
B21: =IFERROR(INDEX(Beräkningar!$C$9:$C$93,MATCH(ROW()-ROW($L$14),Beräkningar!$B$9:$B$93,0)),"") ->  | C21: =IFERROR(INDEX(Beräkningar!$D$9:$D$93,MATCH(ROW()-ROW($L$14),Beräkningar!$B$9:$B$93,0)),"") ->  | E21: =IFERROR(INDEX(Beräkningar!$M$9:$M$93,MATCH(ROW()-ROW($L$14),Beräkningar!$B$9:$B$93,0)),"") -> 
B22: =IFERROR(INDEX(Beräkningar!$C$9:$C$93,MATCH(ROW()-ROW($L$14),Beräkningar!$B$9:$B$93,0)),"") ->  | C22: =IFERROR(INDEX(Beräkningar!$D$9:$D$93,MATCH(ROW()-ROW($L$14),Beräkningar!$B$9:$B$93,0)),"") ->  | E22: =IFERROR(INDEX(Beräkningar!$M$9:$M$93,MATCH(ROW()-ROW($L$14),Beräkningar!$B$9:$B$93,0)),"") -> 
B23: =IFERROR(INDEX(Beräkningar!$C$9:$C$93,MATCH(ROW()-ROW($L$14),Beräkningar!$B$9:$B$93,0)),"") ->  | C23: =IFERROR(INDEX(Beräkningar!$D$9:$D$93,MATCH(ROW()-ROW($L$14),Beräkningar!$B$9:$B$93,0)),"") ->  | E23: =IFERROR(INDEX(Beräkningar!$M$9:$M$93,MATCH(ROW()-ROW($L$14),Beräkningar!$B$9:$B$93,0)),"") -> 
B24: =IFERROR(INDEX(Beräkningar!$C$9:$C$93,MATCH(ROW()-ROW($L$14),Beräkningar!$B$9:$B$93,0)),"") ->  | C24: =IFERROR(INDEX(Beräkningar!$D$9:$D$93,MATCH(ROW()-ROW($L$14),Beräkningar!$B$9:$B$93,0)),"") ->  | E24: =IFERROR(INDEX(Beräkningar!$M$9:$M$93,MATCH(ROW()-ROW($L$14),Beräkningar!$B$9:$B$93,0)),"") -> 
B25: =IFERROR(INDEX(Beräkningar!$C$9:$C$93,MATCH(ROW()-ROW($L$14),Beräkningar!$B$9:$B$93,0)),"") ->  | C25: =IFERROR(INDEX(Beräkningar!$D$9:$D$93,MATCH(ROW()-ROW($L$14),Beräkningar!$B$9:$B$93,0)),"") ->  | E25: =IFERROR(INDEX(Beräkningar!$M$9:$M$93,MATCH(ROW()-ROW($L$14),Beräkningar!$B$9:$B$93,0)),"") -> 
B26: =IFERROR(INDEX(Beräkningar!$C$9:$C$93,MATCH(ROW()-ROW($L$14),Beräkningar!$B$9:$B$93,0)),"") ->  | C26: =IFERROR(INDEX(Beräkningar!$D$9:$D$93,MATCH(ROW()-ROW($L$14),Beräkningar!$B$9:$B$93,0)),"") ->  | E26: =IFERROR(INDEX(Beräkningar!$M$9:$M$93,MATCH(ROW()-ROW($L$14),Beräkningar!$B$9:$B$93,0)),"") -> 
B27: =IFERROR(INDEX(Beräkningar!$C$9:$C$93,MATCH(ROW()-ROW($L$14),Beräkningar!$B$9:$B$93,0)),"") ->  | C27: =IFERROR(INDEX(Beräkningar!$D$9:$D$93,MATCH(ROW()-ROW($L$14),Beräkningar!$B$9:$B$93,0)),"") ->  | E27: =IFERROR(INDEX(Beräkningar!$M$9:$M$93,MATCH(ROW()-ROW($L$14),Beräkningar!$B$9:$B$93,0)),"") -> 
B28: =IFERROR(INDEX(Beräkningar!$C$9:$C$93,MATCH(ROW()-ROW($L$14),Beräkningar!$B$9:$B$93,0)),"") ->  | C28: =IFERROR(INDEX(Beräkningar!$D$9:$D$93,MATCH(ROW()-ROW($L$14),Beräkningar!$B$9:$B$93,0)),"") ->  | E28: =IFERROR(INDEX(Beräkningar!$M$9:$M$93,MATCH(ROW()-ROW($L$14),Beräkningar!$B$9:$B$93,0)),"") -> 
B29: =IFERROR(INDEX(Beräkningar!$C$9:$C$93,MATCH(ROW()-ROW($L$14),Beräkningar!$B$9:$B$93,0)),"") ->  | C29: =IFERROR(INDEX(Beräkningar!$D$9:$D$93,MATCH(ROW()-ROW($L$14),Beräkningar!$B$9:$B$93,0)),"") ->  | E29: =IFERROR(INDEX(Beräkningar!$M$9:$M$93,MATCH(ROW()-ROW($L$14),Beräkningar!$B$9:$B$93,0)),"") -> 
B30: =IFERROR(INDEX(Beräkningar!$C$9:$C$93,MATCH(ROW()-ROW($L$14),Beräkningar!$B$9:$B$93,0)),"") ->  | C30: =IFERROR(INDEX(Beräkningar!$D$9:$D$93,MATCH(ROW()-ROW($L$14),Beräkningar!$B$9:$B$93,0)),"") ->  | E30: =IFERROR(INDEX(Beräkningar!$M$9:$M$93,MATCH(ROW()-ROW($L$14),Beräkningar!$B$9:$B$93,0)),"") -> 
B31: =IFERROR(INDEX(Beräkningar!$C$9:$C$93,MATCH(ROW()-ROW($L$14),Beräkningar!$B$9:$B$93,0)),"") ->  | C31: =IFERROR(INDEX(Beräkningar!$D$9:$D$93,MATCH(ROW()-ROW($L$14),Beräkningar!$B$9:$B$93,0)),"") ->  | E31: =IFERROR(INDEX(Beräkningar!$M$9:$M$93,MATCH(ROW()-ROW($L$14),Beräkningar!$B$9:$B$93,0)),"") -> 
B32: =IFERROR(INDEX(Beräkningar!$C$9:$C$93,MATCH(ROW()-ROW($L$14),Beräkningar!$B$9:$B$93,0)),"") ->  | C32: =IFERROR(INDEX(Beräkningar!$D$9:$D$93,MATCH(ROW()-ROW($L$14),Beräkningar!$B$9:$B$93,0)),"") ->  | E32: =IFERROR(INDEX(Beräkningar!$M$9:$M$93,MATCH(ROW()-ROW($L$14),Beräkningar!$B$9:$B$93,0)),"") -> 
B33: =IFERROR(INDEX(Beräkningar!$C$9:$C$93,MATCH(ROW()-ROW($L$14),Beräkningar!$B$9:$B$93,0)),"") ->  | C33: =IFERROR(INDEX(Beräkningar!$D$9:$D$93,MATCH(ROW()-ROW($L$14),Beräkningar!$B$9:$B$93,0)),"") ->  | E33: =IFERROR(INDEX(Beräkningar!$M$9:$M$93,MATCH(ROW()-ROW($L$14),Beräkningar!$B$9:$B$93,0)),"") -> 
B34: =IFERROR(INDEX(Beräkningar!$C$9:$C$93,MATCH(ROW()-ROW($L$14),Beräkningar!$B$9:$B$93,0)),"") ->  | C34: =IFERROR(INDEX(Beräkningar!$D$9:$D$93,MATCH(ROW()-ROW($L$14),Beräkningar!$B$9:$B$93,0)),"") ->  | E34: =IFERROR(INDEX(Beräkningar!$M$9:$M$93,MATCH(ROW()-ROW($L$14),Beräkningar!$B$9:$B$93,0)),"") -> 
B35: =IFERROR(INDEX(Beräkningar!$C$9:$C$93,MATCH(ROW()-ROW($L$14),Beräkningar!$B$9:$B$93,0)),"") ->  | C35: =IFERROR(INDEX(Beräkningar!$D$9:$D$93,MATCH(ROW()-ROW($L$14),Beräkningar!$B$9:$B$93,0)),"") ->  | E35: =IFERROR(INDEX(Beräkningar!$M$9:$M$93,MATCH(ROW()-ROW($L$14),Beräkningar!$B$9:$B$93,0)),"") -> 
B36: =IFERROR(INDEX(Beräkningar!$C$9:$C$93,MATCH(ROW()-ROW($L$14),Beräkningar!$B$9:$B$93,0)),"") ->  | C36: =IFERROR(INDEX(Beräkningar!$D$9:$D$93,MATCH(ROW()-ROW($L$14),Beräkningar!$B$9:$B$93,0)),"") ->  | E36: =IFERROR(INDEX(Beräkningar!$M$9:$M$93,MATCH(ROW()-ROW($L$14),Beräkningar!$B$9:$B$93,0)),"") -> 
B37: =IFERROR(INDEX(Beräkningar!$C$9:$C$93,MATCH(ROW()-ROW($L$14),Beräkningar!$B$9:$B$93,0)),"") ->  | C37: =IFERROR(INDEX(Beräkningar!$D$9:$D$93,MATCH(ROW()-ROW($L$14),Beräkningar!$B$9:$B$93,0)),"") ->  | E37: =IFERROR(INDEX(Beräkningar!$M$9:$M$93,MATCH(ROW()-ROW($L$14),Beräkningar!$B$9:$B$93,0)),"") -> 
B38: =IFERROR(INDEX(Beräkningar!$C$9:$C$93,MATCH(ROW()-ROW($L$14),Beräkningar!$B$9:$B$93,0)),"") ->  | C38: =IFERROR(INDEX(Beräkningar!$D$9:$D$93,MATCH(ROW()-ROW($L$14),Beräkningar!$B$9:$B$93,0)),"") ->  | E38: =IFERROR(INDEX(Beräkningar!$M$9:$M$93,MATCH(ROW()-ROW($L$14),Beräkningar!$B$9:$B$93,0)),"") -> 
B39: =IFERROR(INDEX(Beräkningar!$C$9:$C$93,MATCH(ROW()-ROW($L$14),Beräkningar!$B$9:$B$93,0)),"") ->  | C39: =IFERROR(INDEX(Beräkningar!$D$9:$D$93,MATCH(ROW()-ROW($L$14),Beräkningar!$B$9:$B$93,0)),"") ->  | E39: =IFERROR(INDEX(Beräkningar!$M$9:$M$93,MATCH(ROW()-ROW($L$14),Beräkningar!$B$9:$B$93,0)),"") -> 
B40: =IFERROR(INDEX(Beräkningar!$C$9:$C$93,MATCH(ROW()-ROW($L$14),Beräkningar!$B$9:$B$93,0)),"") ->  | C40: =IFERROR(INDEX(Beräkningar!$D$9:$D$93,MATCH(ROW()-ROW($L$14),Beräkningar!$B$9:$B$93,0)),"") ->  | E40: =IFERROR(INDEX(Beräkningar!$M$9:$M$93,MATCH(ROW()-ROW($L$14),Beräkningar!$B$9:$B$93,0)),"") -> 
B41: =IFERROR(INDEX(Beräkningar!$C$9:$C$93,MATCH(ROW()-ROW($L$14),Beräkningar!$B$9:$B$93,0)),"") ->  | C41: =IFERROR(INDEX(Beräkningar!$D$9:$D$93,MATCH(ROW()-ROW($L$14),Beräkningar!$B$9:$B$93,0)),"") ->  | E41: =IFERROR(INDEX(Beräkningar!$M$9:$M$93,MATCH(ROW()-ROW($L$14),Beräkningar!$B$9:$B$93,0)),"") -> 
B42: =IFERROR(INDEX(Beräkningar!$C$9:$C$93,MATCH(ROW()-ROW($L$14),Beräkningar!$B$9:$B$93,0)),"") ->  | C42: =IFERROR(INDEX(Beräkningar!$D$9:$D$93,MATCH(ROW()-ROW($L$14),Beräkningar!$B$9:$B$93,0)),"") ->  | E42: =IFERROR(INDEX(Beräkningar!$M$9:$M$93,MATCH(ROW()-ROW($L$14),Beräkningar!$B$9:$B$93,0)),"") -> 
B43: =IFERROR(INDEX(Beräkningar!$C$9:$C$93,MATCH(ROW()-ROW($L$14),Beräkningar!$B$9:$B$93,0)),"") ->  | C43: =IFERROR(INDEX(Beräkningar!$D$9:$D$93,MATCH(ROW()-ROW($L$14),Beräkningar!$B$9:$B$93,0)),"") ->  | E43: =IFERROR(INDEX(Beräkningar!$M$9:$M$93,MATCH(ROW()-ROW($L$14),Beräkningar!$B$9:$B$93,0)),"") -> 
B44: =IFERROR(INDEX(Beräkningar!$C$9:$C$93,MATCH(ROW()-ROW($L$14),Beräkningar!$B$9:$B$93,0)),"") ->  | C44: =IFERROR(INDEX(Beräkningar!$D$9:$D$93,MATCH(ROW()-ROW($L$14),Beräkningar!$B$9:$B$93,0)),"") ->  | E44: =IFERROR(INDEX(Beräkningar!$M$9:$M$93,MATCH(ROW()-ROW($L$14),Beräkningar!$B$9:$B$93,0)),"") -> 
B45: =IFERROR(INDEX(Beräkningar!$C$9:$C$93,MATCH(ROW()-ROW($L$14),Beräkningar!$B$9:$B$93,0)),"") ->  | C45: =IFERROR(INDEX(Beräkningar!$D$9:$D$93,MATCH(ROW()-ROW($L$14),Beräkningar!$B$9:$B$93,0)),"") ->  | E45: =IFERROR(INDEX(Beräkningar!$M$9:$M$93,MATCH(ROW()-ROW($L$14),Beräkningar!$B$9:$B$93,0)),"") -> 
B46: =IFERROR(INDEX(Beräkningar!$C$9:$C$93,MATCH(ROW()-ROW($L$14),Beräkningar!$B$9:$B$93,0)),"") ->  | C46: =IFERROR(INDEX(Beräkningar!$D$9:$D$93,MATCH(ROW()-ROW($L$14),Beräkningar!$B$9:$B$93,0)),"") ->  | E46: =IFERROR(INDEX(Beräkningar!$M$9:$M$93,MATCH(ROW()-ROW($L$14),Beräkningar!$B$9:$B$93,0)),"") -> 
B47: =IFERROR(INDEX(Beräkningar!$C$9:$C$93,MATCH(ROW()-ROW($L$14),Beräkningar!$B$9:$B$93,0)),"") ->  | C47: =IFERROR(INDEX(Beräkningar!$D$9:$D$93,MATCH(ROW()-ROW($L$14),Beräkningar!$B$9:$B$93,0)),"") ->  | E47: =IFERROR(INDEX(Beräkningar!$M$9:$M$93,MATCH(ROW()-ROW($L$14),Beräkningar!$B$9:$B$93,0)),"") -> 
B48: =IFERROR(INDEX(Beräkningar!$C$9:$C$93,MATCH(ROW()-ROW($L$14),Beräkningar!$B$9:$B$93,0)),"") ->  | C48: =IFERROR(INDEX(Beräkningar!$D$9:$D$93,MATCH(ROW()-ROW($L$14),Beräkningar!$B$9:$B$93,0)),"") ->  | E48: =IFERROR(INDEX(Beräkningar!$M$9:$M$93,MATCH(ROW()-ROW($L$14),Beräkningar!$B$9:$B$93,0)),"") -> 
B49: =IFERROR(INDEX(Beräkningar!$C$9:$C$93,MATCH(ROW()-ROW($L$14),Beräkningar!$B$9:$B$93,0)),"") ->  | C49: =IFERROR(INDEX(Beräkningar!$D$9:$D$93,MATCH(ROW()-ROW($L$14),Beräkningar!$B$9:$B$93,0)),"") ->  | E49: =IFERROR(INDEX(Beräkningar!$M$9:$M$93,MATCH(ROW()-ROW($L$14),Beräkningar!$B$9:$B$93,0)),"") -> 
B50: =IFERROR(INDEX(Beräkningar!$C$9:$C$93,MATCH(ROW()-ROW($L$14),Beräkningar!$B$9:$B$93,0)),"") ->  | C50: =IFERROR(INDEX(Beräkningar!$D$9:$D$93,MATCH(ROW()-ROW($L$14),Beräkningar!$B$9:$B$93,0)),"") ->  | E50: =IFERROR(INDEX(Beräkningar!$M$9:$M$93,MATCH(ROW()-ROW($L$14),Beräkningar!$B$9:$B$93,0)),"") -> 
B51: =IFERROR(INDEX(Beräkningar!$C$9:$C$93,MATCH(ROW()-ROW($L$14),Beräkningar!$B$9:$B$93,0)),"") ->  | C51: =IFERROR(INDEX(Beräkningar!$D$9:$D$93,MATCH(ROW()-ROW($L$14),Beräkningar!$B$9:$B$93,0)),"") ->  | E51: =IFERROR(INDEX(Beräkningar!$M$9:$M$93,MATCH(ROW()-ROW($L$14),Beräkningar!$B$9:$B$93,0)),"") -> 

Sheet Materialspec grönt bidrag
E3: Material / Prisunderlag grönt bidrag.
C6: Kund | E6: Lev.adress
B7: Namn | C7: =Indata!D3 -> 0
B8: Adress | C8: =Indata!D4 -> 0
B9: Postnr / ort | C9: =Indata!D5 -> 0
B10: Tel.nr | C10: =Indata!D6 -> 0
B11: Email | C11: =Indata!D7 -> 0 | G11: Best.datum
B12: Objekt | C12: =Indata!K5 ->  | G12: =TODAY() -> 2026-06-26
B14: Art.nr. | C14: Produkt | D14: Antal | E14: a`´pris | F14: Grönt bidr. | G14: Bidr.underlag
B15: =IFERROR(INDEX(Beräkningar!$C$9:$C$93,MATCH(ROW()-ROW($N$14),Beräkningar!$B$9:$B$93,0)),"") -> 9990001-05 | C15: =IFERROR(INDEX(Beräkningar!$D$9:$D$93,MATCH(ROW()-ROW($N$14),Beräkningar!$B$9:$B$93,0)),"") -> Märkskylt Set | D15: =IFERROR(INDEX(Beräkningar!$M$9:$M$93,MATCH(ROW()-ROW($N$14),Beräkningar!$B$9:$B$93,0)),"") -> 1 | E15: =IFERROR(INDEX(Beräkningar!$AA$9:$AA$93,MATCH(ROW()-ROW($N$14),Beräkningar!$B$9:$B$93,0)),"") -> 133 | F15: =IFERROR(INDEX(Beräkningar!$H$9:$H$93,MATCH(ROW()-ROW($N$14),Beräkningar!$B$9:$B$93,0)),"") -> 19.37 | G15: =IFERROR(INDEX(Beräkningar!$AB$9:$AB$93,MATCH(ROW()-ROW($N$14),Beräkningar!$B$9:$B$93,0)),"") -> 133
B16: =IFERROR(INDEX(Beräkningar!$C$9:$C$93,MATCH(ROW()-ROW($N$14),Beräkningar!$B$9:$B$93,0)),"") ->  | C16: =IFERROR(INDEX(Beräkningar!$D$9:$D$93,MATCH(ROW()-ROW($N$14),Beräkningar!$B$9:$B$93,0)),"") ->  | D16: =IFERROR(INDEX(Beräkningar!$M$9:$M$93,MATCH(ROW()-ROW($N$14),Beräkningar!$B$9:$B$93,0)),"") ->  | E16: =IFERROR(INDEX(Beräkningar!$AA$9:$AA$93,MATCH(ROW()-ROW($N$14),Beräkningar!$B$9:$B$93,0)),"") ->  | F16: =IFERROR(INDEX(Beräkningar!$H$9:$H$93,MATCH(ROW()-ROW($N$14),Beräkningar!$B$9:$B$93,0)),"") ->  | G16: =IFERROR(INDEX(Beräkningar!$AB$9:$AB$93,MATCH(ROW()-ROW($N$14),Beräkningar!$B$9:$B$93,0)),"") -> 
B17: =IFERROR(INDEX(Beräkningar!$C$9:$C$93,MATCH(ROW()-ROW($N$14),Beräkningar!$B$9:$B$93,0)),"") ->  | C17: =IFERROR(INDEX(Beräkningar!$D$9:$D$93,MATCH(ROW()-ROW($N$14),Beräkningar!$B$9:$B$93,0)),"") ->  | D17: =IFERROR(INDEX(Beräkningar!$M$9:$M$93,MATCH(ROW()-ROW($N$14),Beräkningar!$B$9:$B$93,0)),"") ->  | E17: =IFERROR(INDEX(Beräkningar!$AA$9:$AA$93,MATCH(ROW()-ROW($N$14),Beräkningar!$B$9:$B$93,0)),"") ->  | F17: =IFERROR(INDEX(Beräkningar!$H$9:$H$93,MATCH(ROW()-ROW($N$14),Beräkningar!$B$9:$B$93,0)),"") ->  | G17: =IFERROR(INDEX(Beräkningar!$AB$9:$AB$93,MATCH(ROW()-ROW($N$14),Beräkningar!$B$9:$B$93,0)),"") -> 
B18: =IFERROR(INDEX(Beräkningar!$C$9:$C$93,MATCH(ROW()-ROW($N$14),Beräkningar!$B$9:$B$93,0)),"") ->  | C18: =IFERROR(INDEX(Beräkningar!$D$9:$D$93,MATCH(ROW()-ROW($N$14),Beräkningar!$B$9:$B$93,0)),"") ->  | D18: =IFERROR(INDEX(Beräkningar!$M$9:$M$93,MATCH(ROW()-ROW($N$14),Beräkningar!$B$9:$B$93,0)),"") ->  | E18: =IFERROR(INDEX(Beräkningar!$AA$9:$AA$93,MATCH(ROW()-ROW($N$14),Beräkningar!$B$9:$B$93,0)),"") ->  | F18: =IFERROR(INDEX(Beräkningar!$H$9:$H$93,MATCH(ROW()-ROW($N$14),Beräkningar!$B$9:$B$93,0)),"") ->  | G18: =IFERROR(INDEX(Beräkningar!$AB$9:$AB$93,MATCH(ROW()-ROW($N$14),Beräkningar!$B$9:$B$93,0)),"") -> 
B19: =IFERROR(INDEX(Beräkningar!$C$9:$C$93,MATCH(ROW()-ROW($N$14),Beräkningar!$B$9:$B$93,0)),"") ->  | C19: =IFERROR(INDEX(Beräkningar!$D$9:$D$85,MATCH(ROW()-ROW($N$14),Beräkningar!$B$9:$B$85,0)),"") ->  | D19: =IFERROR(INDEX(Beräkningar!$M$9:$M$93,MATCH(ROW()-ROW($N$14),Beräkningar!$B$9:$B$93,0)),"") ->  | E19: =IFERROR(INDEX(Beräkningar!$AA$9:$AA$93,MATCH(ROW()-ROW($N$14),Beräkningar!$B$9:$B$93,0)),"") ->  | F19: =IFERROR(INDEX(Beräkningar!$H$9:$H$85,MATCH(ROW()-ROW($N$14),Beräkningar!$B$9:$B$85,0)),"") ->  | G19: =IFERROR(INDEX(Beräkningar!$AB$9:$AB$93,MATCH(ROW()-ROW($N$14),Beräkningar!$B$9:$B$93,0)),"") -> 
B20: =IFERROR(INDEX(Beräkningar!$C$9:$C$93,MATCH(ROW()-ROW($N$14),Beräkningar!$B$9:$B$93,0)),"") ->  | C20: =IFERROR(INDEX(Beräkningar!$D$9:$D$93,MATCH(ROW()-ROW($N$14),Beräkningar!$B$9:$B$93,0)),"") ->  | D20: =IFERROR(INDEX(Beräkningar!$M$9:$M$85,MATCH(ROW()-ROW($N$14),Beräkningar!$B$9:$B$85,0)),"") ->  | E20: =IFERROR(INDEX(Beräkningar!$AA$9:$AA$93,MATCH(ROW()-ROW($N$14),Beräkningar!$B$9:$B$93,0)),"") ->  | F20: =IFERROR(INDEX(Beräkningar!$H$9:$H$93,MATCH(ROW()-ROW($N$14),Beräkningar!$B$9:$B$93,0)),"") ->  | G20: =IFERROR(INDEX(Beräkningar!$AB$9:$AB$93,MATCH(ROW()-ROW($N$14),Beräkningar!$B$9:$B$93,0)),"") -> 
B21: =IFERROR(INDEX(Beräkningar!$C$9:$C$93,MATCH(ROW()-ROW($N$14),Beräkningar!$B$9:$B$93,0)),"") ->  | C21: =IFERROR(INDEX(Beräkningar!$D$9:$D$85,MATCH(ROW()-ROW($N$14),Beräkningar!$B$9:$B$85,0)),"") ->  | D21: =IFERROR(INDEX(Beräkningar!$M$9:$M$85,MATCH(ROW()-ROW($N$14),Beräkningar!$B$9:$B$85,0)),"") ->  | E21: =IFERROR(INDEX(Beräkningar!$AA$9:$AA$93,MATCH(ROW()-ROW($N$14),Beräkningar!$B$9:$B$93,0)),"") ->  | F21: =IFERROR(INDEX(Beräkningar!$H$9:$H$93,MATCH(ROW()-ROW($N$14),Beräkningar!$B$9:$B$93,0)),"") ->  | G21: =IFERROR(INDEX(Beräkningar!$AB$9:$AB$93,MATCH(ROW()-ROW($N$14),Beräkningar!$B$9:$B$93,0)),"") -> 
B22: =IFERROR(INDEX(Beräkningar!$C$9:$C$93,MATCH(ROW()-ROW($N$14),Beräkningar!$B$9:$B$93,0)),"") ->  | C22: =IFERROR(INDEX(Beräkningar!$D$9:$D$93,MATCH(ROW()-ROW($N$14),Beräkningar!$B$9:$B$93,0)),"") ->  | D22: =IFERROR(INDEX(Beräkningar!$M$9:$M$93,MATCH(ROW()-ROW($N$14),Beräkningar!$B$9:$B$93,0)),"") ->  | E22: =IFERROR(INDEX(Beräkningar!$AA$9:$AA$85,MATCH(ROW()-ROW($N$14),Beräkningar!$B$9:$B$85,0)),"") ->  | F22: =IFERROR(INDEX(Beräkningar!$H$9:$H$93,MATCH(ROW()-ROW($N$14),Beräkningar!$B$9:$B$93,0)),"") ->  | G22: =IFERROR(INDEX(Beräkningar!$AB$9:$AB$93,MATCH(ROW()-ROW($N$14),Beräkningar!$B$9:$B$93,0)),"") -> 
B23: =IFERROR(INDEX(Beräkningar!$C$9:$C$93,MATCH(ROW()-ROW($N$14),Beräkningar!$B$9:$B$93,0)),"") ->  | C23: =IFERROR(INDEX(Beräkningar!$D$9:$D$93,MATCH(ROW()-ROW($N$14),Beräkningar!$B$9:$B$93,0)),"") ->  | D23: =IFERROR(INDEX(Beräkningar!$M$9:$M$93,MATCH(ROW()-ROW($N$14),Beräkningar!$B$9:$B$93,0)),"") ->  | E23: =IFERROR(INDEX(Beräkningar!$AA$9:$AA$85,MATCH(ROW()-ROW($N$14),Beräkningar!$B$9:$B$85,0)),"") ->  | F23: =IFERROR(INDEX(Beräkningar!$H$9:$H$93,MATCH(ROW()-ROW($N$14),Beräkningar!$B$9:$B$93,0)),"") ->  | G23: =IFERROR(INDEX(Beräkningar!$AB$9:$AB$93,MATCH(ROW()-ROW($N$14),Beräkningar!$B$9:$B$93,0)),"") -> 
B24: =IFERROR(INDEX(Beräkningar!$C$9:$C$93,MATCH(ROW()-ROW($N$14),Beräkningar!$B$9:$B$93,0)),"") ->  | C24: =IFERROR(INDEX(Beräkningar!$D$9:$D$93,MATCH(ROW()-ROW($N$14),Beräkningar!$B$9:$B$93,0)),"") ->  | D24: =IFERROR(INDEX(Beräkningar!$M$9:$M$93,MATCH(ROW()-ROW($N$14),Beräkningar!$B$9:$B$93,0)),"") ->  | E24: =IFERROR(INDEX(Beräkningar!$AA$9:$AA$85,MATCH(ROW()-ROW($N$14),Beräkningar!$B$9:$B$85,0)),"") ->  | F24: =IFERROR(INDEX(Beräkningar!$H$9:$H$93,MATCH(ROW()-ROW($N$14),Beräkningar!$B$9:$B$93,0)),"") ->  | G24: =IFERROR(INDEX(Beräkningar!$AB$9:$AB$93,MATCH(ROW()-ROW($N$14),Beräkningar!$B$9:$B$93,0)),"") -> 
B25: =IFERROR(INDEX(Beräkningar!$C$9:$C$93,MATCH(ROW()-ROW($N$14),Beräkningar!$B$9:$B$93,0)),"") ->  | C25: =IFERROR(INDEX(Beräkningar!$D$9:$D$93,MATCH(ROW()-ROW($N$14),Beräkningar!$B$9:$B$93,0)),"") ->  | D25: =IFERROR(INDEX(Beräkningar!$M$9:$M$93,MATCH(ROW()-ROW($N$14),Beräkningar!$B$9:$B$93,0)),"") ->  | E25: =IFERROR(INDEX(Beräkningar!$AA$9:$AA$85,MATCH(ROW()-ROW($N$14),Beräkningar!$B$9:$B$85,0)),"") ->  | F25: =IFERROR(INDEX(Beräkningar!$H$9:$H$93,MATCH(ROW()-ROW($N$14),Beräkningar!$B$9:$B$93,0)),"") ->  | G25: =IFERROR(INDEX(Beräkningar!$AB$9:$AB$93,MATCH(ROW()-ROW($N$14),Beräkningar!$B$9:$B$93,0)),"") -> 
B26: =IFERROR(INDEX(Beräkningar!$C$9:$C$93,MATCH(ROW()-ROW($N$14),Beräkningar!$B$9:$B$93,0)),"") ->  | C26: =IFERROR(INDEX(Beräkningar!$D$9:$D$85,MATCH(ROW()-ROW($N$14),Beräkningar!$B$9:$B$85,0)),"") ->  | D26: =IFERROR(INDEX(Beräkningar!$M$9:$M$93,MATCH(ROW()-ROW($N$14),Beräkningar!$B$9:$B$93,0)),"") ->  | E26: =IFERROR(INDEX(Beräkningar!$AA$9:$AA$93,MATCH(ROW()-ROW($N$14),Beräkningar!$B$9:$B$93,0)),"") ->  | F26: =IFERROR(INDEX(Beräkningar!$H$9:$H$85,MATCH(ROW()-ROW($N$14),Beräkningar!$B$9:$B$85,0)),"") ->  | G26: =IFERROR(INDEX(Beräkningar!$AB$9:$AB$85,MATCH(ROW()-ROW($N$14),Beräkningar!$B$9:$B$85,0)),"") -> 
B27: =IFERROR(INDEX(Beräkningar!$C$9:$C$93,MATCH(ROW()-ROW($N$14),Beräkningar!$B$9:$B$93,0)),"") ->  | C27: =IFERROR(INDEX(Beräkningar!$D$9:$D$93,MATCH(ROW()-ROW($N$14),Beräkningar!$B$9:$B$93,0)),"") ->  | D27: =IFERROR(INDEX(Beräkningar!$M$9:$M$93,MATCH(ROW()-ROW($N$14),Beräkningar!$B$9:$B$93,0)),"") ->  | E27: =IFERROR(INDEX(Beräkningar!$AA$9:$AA$93,MATCH(ROW()-ROW($N$14),Beräkningar!$B$9:$B$93,0)),"") ->  | F27: =IFERROR(INDEX(Beräkningar!$H$9:$H$93,MATCH(ROW()-ROW($N$14),Beräkningar!$B$9:$B$93,0)),"") ->  | G27: =IFERROR(INDEX(Beräkningar!$AB$9:$AB$93,MATCH(ROW()-ROW($N$14),Beräkningar!$B$9:$B$93,0)),"") -> 
B28: =IFERROR(INDEX(Beräkningar!$C$9:$C$93,MATCH(ROW()-ROW($N$14),Beräkningar!$B$9:$B$93,0)),"") ->  | C28: =IFERROR(INDEX(Beräkningar!$D$9:$D$93,MATCH(ROW()-ROW($N$14),Beräkningar!$B$9:$B$93,0)),"") ->  | D28: =IFERROR(INDEX(Beräkningar!$M$9:$M$93,MATCH(ROW()-ROW($N$14),Beräkningar!$B$9:$B$93,0)),"") ->  | E28: =IFERROR(INDEX(Beräkningar!$AA$9:$AA$93,MATCH(ROW()-ROW($N$14),Beräkningar!$B$9:$B$93,0)),"") ->  | F28: =IFERROR(INDEX(Beräkningar!$H$9:$H$93,MATCH(ROW()-ROW($N$14),Beräkningar!$B$9:$B$93,0)),"") ->  | G28: =IFERROR(INDEX(Beräkningar!$AB$9:$AB$93,MATCH(ROW()-ROW($N$14),Beräkningar!$B$9:$B$93,0)),"") -> 
B29: =IFERROR(INDEX(Beräkningar!$C$9:$C$93,MATCH(ROW()-ROW($N$14),Beräkningar!$B$9:$B$93,0)),"") ->  | C29: =IFERROR(INDEX(Beräkningar!$D$9:$D$93,MATCH(ROW()-ROW($N$14),Beräkningar!$B$9:$B$93,0)),"") ->  | D29: =IFERROR(INDEX(Beräkningar!$M$9:$M$93,MATCH(ROW()-ROW($N$14),Beräkningar!$B$9:$B$93,0)),"") ->  | E29: =IFERROR(INDEX(Beräkningar!$AA$9:$AA$93,MATCH(ROW()-ROW($N$14),Beräkningar!$B$9:$B$93,0)),"") ->  | F29: =IFERROR(INDEX(Beräkningar!$H$9:$H$93,MATCH(ROW()-ROW($N$14),Beräkningar!$B$9:$B$93,0)),"") ->  | G29: =IFERROR(INDEX(Beräkningar!$AB$9:$AB$93,MATCH(ROW()-ROW($N$14),Beräkningar!$B$9:$B$93,0)),"") -> 
B30: =IFERROR(INDEX(Beräkningar!$C$9:$C$93,MATCH(ROW()-ROW($N$14),Beräkningar!$B$9:$B$93,0)),"") ->  | C30: =IFERROR(INDEX(Beräkningar!$D$9:$D$93,MATCH(ROW()-ROW($N$14),Beräkningar!$B$9:$B$93,0)),"") ->  | D30: =IFERROR(INDEX(Beräkningar!$M$9:$M$93,MATCH(ROW()-ROW($N$14),Beräkningar!$B$9:$B$93,0)),"") ->  | E30: =IFERROR(INDEX(Beräkningar!$AA$9:$AA$93,MATCH(ROW()-ROW($N$14),Beräkningar!$B$9:$B$93,0)),"") ->  | F30: =IFERROR(INDEX(Beräkningar!$H$9:$H$93,MATCH(ROW()-ROW($N$14),Beräkningar!$B$9:$B$93,0)),"") ->  | G30: =IFERROR(INDEX(Beräkningar!$AB$9:$AB$93,MATCH(ROW()-ROW($N$14),Beräkningar!$B$9:$B$93,0)),"") -> 
B31: =IFERROR(INDEX(Beräkningar!$C$9:$C$93,MATCH(ROW()-ROW($N$14),Beräkningar!$B$9:$B$93,0)),"") ->  | C31: =IFERROR(INDEX(Beräkningar!$D$9:$D$93,MATCH(ROW()-ROW($N$14),Beräkningar!$B$9:$B$93,0)),"") ->  | D31: =IFERROR(INDEX(Beräkningar!$M$9:$M$93,MATCH(ROW()-ROW($N$14),Beräkningar!$B$9:$B$93,0)),"") ->  | E31: =IFERROR(INDEX(Beräkningar!$AA$9:$AA$93,MATCH(ROW()-ROW($N$14),Beräkningar!$B$9:$B$93,0)),"") ->  | F31: =IFERROR(INDEX(Beräkningar!$H$9:$H$93,MATCH(ROW()-ROW($N$14),Beräkningar!$B$9:$B$93,0)),"") ->  | G31: =IFERROR(INDEX(Beräkningar!$AB$9:$AB$93,MATCH(ROW()-ROW($N$14),Beräkningar!$B$9:$B$93,0)),"") -> 
B32: =IFERROR(INDEX(Beräkningar!$C$9:$C$93,MATCH(ROW()-ROW($N$14),Beräkningar!$B$9:$B$93,0)),"") ->  | C32: =IFERROR(INDEX(Beräkningar!$D$9:$D$93,MATCH(ROW()-ROW($N$14),Beräkningar!$B$9:$B$93,0)),"") ->  | D32: =IFERROR(INDEX(Beräkningar!$M$9:$M$93,MATCH(ROW()-ROW($N$14),Beräkningar!$B$9:$B$93,0)),"") ->  | E32: =IFERROR(INDEX(Beräkningar!$AA$9:$AA$93,MATCH(ROW()-ROW($N$14),Beräkningar!$B$9:$B$93,0)),"") ->  | F32: =IFERROR(INDEX(Beräkningar!$H$9:$H$93,MATCH(ROW()-ROW($N$14),Beräkningar!$B$9:$B$93,0)),"") ->  | G32: =IFERROR(INDEX(Beräkningar!$AB$9:$AB$93,MATCH(ROW()-ROW($N$14),Beräkningar!$B$9:$B$93,0)),"") -> 
B33: =IFERROR(INDEX(Beräkningar!$C$9:$C$93,MATCH(ROW()-ROW($N$14),Beräkningar!$B$9:$B$93,0)),"") ->  | C33: =IFERROR(INDEX(Beräkningar!$D$9:$D$93,MATCH(ROW()-ROW($N$14),Beräkningar!$B$9:$B$93,0)),"") ->  | D33: =IFERROR(INDEX(Beräkningar!$M$9:$M$93,MATCH(ROW()-ROW($N$14),Beräkningar!$B$9:$B$93,0)),"") ->  | E33: =IFERROR(INDEX(Beräkningar!$AA$9:$AA$93,MATCH(ROW()-ROW($N$14),Beräkningar!$B$9:$B$93,0)),"") ->  | F33: =IFERROR(INDEX(Beräkningar!$H$9:$H$93,MATCH(ROW()-ROW($N$14),Beräkningar!$B$9:$B$93,0)),"") ->  | G33: =IFERROR(INDEX(Beräkningar!$AB$9:$AB$93,MATCH(ROW()-ROW($N$14),Beräkningar!$B$9:$B$93,0)),"") -> 
B34: =IFERROR(INDEX(Beräkningar!$C$9:$C$93,MATCH(ROW()-ROW($N$14),Beräkningar!$B$9:$B$93,0)),"") ->  | C34: =IFERROR(INDEX(Beräkningar!$D$9:$D$93,MATCH(ROW()-ROW($N$14),Beräkningar!$B$9:$B$93,0)),"") ->  | D34: =IFERROR(INDEX(Beräkningar!$M$9:$M$93,MATCH(ROW()-ROW($N$14),Beräkningar!$B$9:$B$93,0)),"") ->  | E34: =IFERROR(INDEX(Beräkningar!$AA$9:$AA$93,MATCH(ROW()-ROW($N$14),Beräkningar!$B$9:$B$93,0)),"") ->  | F34: =IFERROR(INDEX(Beräkningar!$H$9:$H$93,MATCH(ROW()-ROW($N$14),Beräkningar!$B$9:$B$93,0)),"") ->  | G34: =IFERROR(INDEX(Beräkningar!$AB$9:$AB$93,MATCH(ROW()-ROW($N$14),Beräkningar!$B$9:$B$93,0)),"") -> 
B35: =IFERROR(INDEX(Beräkningar!$C$9:$C$93,MATCH(ROW()-ROW($N$14),Beräkningar!$B$9:$B$93,0)),"") ->  | C35: =IFERROR(INDEX(Beräkningar!$D$9:$D$93,MATCH(ROW()-ROW($N$14),Beräkningar!$B$9:$B$93,0)),"") ->  | D35: =IFERROR(INDEX(Beräkningar!$M$9:$M$93,MATCH(ROW()-ROW($N$14),Beräkningar!$B$9:$B$93,0)),"") ->  | E35: =IFERROR(INDEX(Beräkningar!$AA$9:$AA$93,MATCH(ROW()-ROW($N$14),Beräkningar!$B$9:$B$93,0)),"") ->  | F35: =IFERROR(INDEX(Beräkningar!$H$9:$H$93,MATCH(ROW()-ROW($N$14),Beräkningar!$B$9:$B$93,0)),"") ->  | G35: =IFERROR(INDEX(Beräkningar!$AB$9:$AB$93,MATCH(ROW()-ROW($N$14),Beräkningar!$B$9:$B$93,0)),"") -> 
B36: =IFERROR(INDEX(Beräkningar!$C$9:$C$93,MATCH(ROW()-ROW($N$14),Beräkningar!$B$9:$B$93,0)),"") ->  | C36: =IFERROR(INDEX(Beräkningar!$D$9:$D$93,MATCH(ROW()-ROW($N$14),Beräkningar!$B$9:$B$93,0)),"") ->  | D36: =IFERROR(INDEX(Beräkningar!$M$9:$M$93,MATCH(ROW()-ROW($N$14),Beräkningar!$B$9:$B$93,0)),"") ->  | E36: =IFERROR(INDEX(Beräkningar!$AA$9:$AA$93,MATCH(ROW()-ROW($N$14),Beräkningar!$B$9:$B$93,0)),"") ->  | F36: =IFERROR(INDEX(Beräkningar!$H$9:$H$93,MATCH(ROW()-ROW($N$14),Beräkningar!$B$9:$B$93,0)),"") ->  | G36: =IFERROR(INDEX(Beräkningar!$AB$9:$AB$93,MATCH(ROW()-ROW($N$14),Beräkningar!$B$9:$B$93,0)),"") -> 
B37: =IFERROR(INDEX(Beräkningar!$C$9:$C$93,MATCH(ROW()-ROW($N$14),Beräkningar!$B$9:$B$93,0)),"") ->  | C37: =IFERROR(INDEX(Beräkningar!$D$9:$D$93,MATCH(ROW()-ROW($N$14),Beräkningar!$B$9:$B$93,0)),"") ->  | D37: =IFERROR(INDEX(Beräkningar!$M$9:$M$93,MATCH(ROW()-ROW($N$14),Beräkningar!$B$9:$B$93,0)),"") ->  | E37: =IFERROR(INDEX(Beräkningar!$AA$9:$AA$93,MATCH(ROW()-ROW($N$14),Beräkningar!$B$9:$B$93,0)),"") ->  | F37: =IFERROR(INDEX(Beräkningar!$H$9:$H$93,MATCH(ROW()-ROW($N$14),Beräkningar!$B$9:$B$93,0)),"") ->  | G37: =IFERROR(INDEX(Beräkningar!$AB$9:$AB$93,MATCH(ROW()-ROW($N$14),Beräkningar!$B$9:$B$93,0)),"") -> 
B38: =IFERROR(INDEX(Beräkningar!$C$9:$C$93,MATCH(ROW()-ROW($N$14),Beräkningar!$B$9:$B$93,0)),"") ->  | C38: =IFERROR(INDEX(Beräkningar!$D$9:$D$93,MATCH(ROW()-ROW($N$14),Beräkningar!$B$9:$B$93,0)),"") ->  | D38: =IFERROR(INDEX(Beräkningar!$M$9:$M$93,MATCH(ROW()-ROW($N$14),Beräkningar!$B$9:$B$93,0)),"") ->  | E38: =IFERROR(INDEX(Beräkningar!$AA$9:$AA$93,MATCH(ROW()-ROW($N$14),Beräkningar!$B$9:$B$93,0)),"") ->  | F38: =IFERROR(INDEX(Beräkningar!$H$9:$H$93,MATCH(ROW()-ROW($N$14),Beräkningar!$B$9:$B$93,0)),"") ->  | G38: =IFERROR(INDEX(Beräkningar!$AB$9:$AB$93,MATCH(ROW()-ROW($N$14),Beräkningar!$B$9:$B$93,0)),"") -> 
B39: =IFERROR(INDEX(Beräkningar!$C$9:$C$93,MATCH(ROW()-ROW($N$14),Beräkningar!$B$9:$B$93,0)),"") ->  | C39: =IFERROR(INDEX(Beräkningar!$D$9:$D$93,MATCH(ROW()-ROW($N$14),Beräkningar!$B$9:$B$93,0)),"") ->  | D39: =IFERROR(INDEX(Beräkningar!$M$9:$M$93,MATCH(ROW()-ROW($N$14),Beräkningar!$B$9:$B$93,0)),"") ->  | E39: =IFERROR(INDEX(Beräkningar!$AA$9:$AA$93,MATCH(ROW()-ROW($N$14),Beräkningar!$B$9:$B$93,0)),"") ->  | F39: =IFERROR(INDEX(Beräkningar!$H$9:$H$93,MATCH(ROW()-ROW($N$14),Beräkningar!$B$9:$B$93,0)),"") ->  | G39: =IFERROR(INDEX(Beräkningar!$AB$9:$AB$93,MATCH(ROW()-ROW($N$14),Beräkningar!$B$9:$B$93,0)),"") -> 
B40: =IFERROR(INDEX(Beräkningar!$C$9:$C$93,MATCH(ROW()-ROW($N$14),Beräkningar!$B$9:$B$93,0)),"") ->  | C40: =IFERROR(INDEX(Beräkningar!$D$9:$D$93,MATCH(ROW()-ROW($N$14),Beräkningar!$B$9:$B$93,0)),"") ->  | D40: =IFERROR(INDEX(Beräkningar!$M$9:$M$93,MATCH(ROW()-ROW($N$14),Beräkningar!$B$9:$B$93,0)),"") ->  | E40: =IFERROR(INDEX(Beräkningar!$AA$9:$AA$93,MATCH(ROW()-ROW($N$14),Beräkningar!$B$9:$B$93,0)),"") ->  | F40: =IFERROR(INDEX(Beräkningar!$H$9:$H$93,MATCH(ROW()-ROW($N$14),Beräkningar!$B$9:$B$93,0)),"") ->  | G40: =IFERROR(INDEX(Beräkningar!$AB$9:$AB$93,MATCH(ROW()-ROW($N$14),Beräkningar!$B$9:$B$93,0)),"") -> 
B41: =IFERROR(INDEX(Beräkningar!$C$9:$C$93,MATCH(ROW()-ROW($N$14),Beräkningar!$B$9:$B$93,0)),"") ->  | C41: =IFERROR(INDEX(Beräkningar!$D$9:$D$93,MATCH(ROW()-ROW($N$14),Beräkningar!$B$9:$B$93,0)),"") ->  | D41: =IFERROR(INDEX(Beräkningar!$M$9:$M$93,MATCH(ROW()-ROW($N$14),Beräkningar!$B$9:$B$93,0)),"") ->  | E41: =IFERROR(INDEX(Beräkningar!$AA$9:$AA$93,MATCH(ROW()-ROW($N$14),Beräkningar!$B$9:$B$93,0)),"") ->  | F41: =IFERROR(INDEX(Beräkningar!$H$9:$H$93,MATCH(ROW()-ROW($N$14),Beräkningar!$B$9:$B$93,0)),"") ->  | G41: =IFERROR(INDEX(Beräkningar!$AB$9:$AB$93,MATCH(ROW()-ROW($N$14),Beräkningar!$B$9:$B$93,0)),"") -> 
B42: =IFERROR(INDEX(Beräkningar!$C$9:$C$93,MATCH(ROW()-ROW($N$14),Beräkningar!$B$9:$B$93,0)),"") ->  | C42: =IFERROR(INDEX(Beräkningar!$D$9:$D$93,MATCH(ROW()-ROW($N$14),Beräkningar!$B$9:$B$93,0)),"") ->  | D42: =IFERROR(INDEX(Beräkningar!$M$9:$M$93,MATCH(ROW()-ROW($N$14),Beräkningar!$B$9:$B$93,0)),"") ->  | E42: =IFERROR(INDEX(Beräkningar!$AA$9:$AA$93,MATCH(ROW()-ROW($N$14),Beräkningar!$B$9:$B$93,0)),"") ->  | F42: =IFERROR(INDEX(Beräkningar!$H$9:$H$93,MATCH(ROW()-ROW($N$14),Beräkningar!$B$9:$B$93,0)),"") ->  | G42: =IFERROR(INDEX(Beräkningar!$AB$9:$AB$93,MATCH(ROW()-ROW($N$14),Beräkningar!$B$9:$B$93,0)),"") -> 
B43: =IFERROR(INDEX(Beräkningar!$C$9:$C$93,MATCH(ROW()-ROW($N$14),Beräkningar!$B$9:$B$93,0)),"") ->  | C43: =IFERROR(INDEX(Beräkningar!$D$9:$D$93,MATCH(ROW()-ROW($N$14),Beräkningar!$B$9:$B$93,0)),"") ->  | D43: =IFERROR(INDEX(Beräkningar!$M$9:$M$93,MATCH(ROW()-ROW($N$14),Beräkningar!$B$9:$B$93,0)),"") ->  | E43: =IFERROR(INDEX(Beräkningar!$AA$9:$AA$93,MATCH(ROW()-ROW($N$14),Beräkningar!$B$9:$B$93,0)),"") ->  | F43: =IFERROR(INDEX(Beräkningar!$H$9:$H$93,MATCH(ROW()-ROW($N$14),Beräkningar!$B$9:$B$93,0)),"") ->  | G43: =IFERROR(INDEX(Beräkningar!$AB$9:$AB$93,MATCH(ROW()-ROW($N$14),Beräkningar!$B$9:$B$93,0)),"") -> 
B44: =IFERROR(INDEX(Beräkningar!$C$9:$C$93,MATCH(ROW()-ROW($N$14),Beräkningar!$B$9:$B$93,0)),"") ->  | C44: =IFERROR(INDEX(Beräkningar!$D$9:$D$93,MATCH(ROW()-ROW($N$14),Beräkningar!$B$9:$B$93,0)),"") ->  | D44: =IFERROR(INDEX(Beräkningar!$M$9:$M$93,MATCH(ROW()-ROW($N$14),Beräkningar!$B$9:$B$93,0)),"") ->  | E44: =IFERROR(INDEX(Beräkningar!$AA$9:$AA$93,MATCH(ROW()-ROW($N$14),Beräkningar!$B$9:$B$93,0)),"") ->  | F44: =IFERROR(INDEX(Beräkningar!$H$9:$H$93,MATCH(ROW()-ROW($N$14),Beräkningar!$B$9:$B$93,0)),"") ->  | G44: =IFERROR(INDEX(Beräkningar!$AB$9:$AB$93,MATCH(ROW()-ROW($N$14),Beräkningar!$B$9:$B$93,0)),"") -> 
B45: =IFERROR(INDEX(Beräkningar!$C$9:$C$93,MATCH(ROW()-ROW($N$14),Beräkningar!$B$9:$B$93,0)),"") ->  | C45: =IFERROR(INDEX(Beräkningar!$D$9:$D$93,MATCH(ROW()-ROW($N$14),Beräkningar!$B$9:$B$93,0)),"") ->  | D45: =IFERROR(INDEX(Beräkningar!$M$9:$M$93,MATCH(ROW()-ROW($N$14),Beräkningar!$B$9:$B$93,0)),"") ->  | E45: =IFERROR(INDEX(Beräkningar!$AA$9:$AA$93,MATCH(ROW()-ROW($N$14),Beräkningar!$B$9:$B$93,0)),"") ->  | F45: =IFERROR(INDEX(Beräkningar!$H$9:$H$93,MATCH(ROW()-ROW($N$14),Beräkningar!$B$9:$B$93,0)),"") ->  | G45: =IFERROR(INDEX(Beräkningar!$AB$9:$AB$93,MATCH(ROW()-ROW($N$14),Beräkningar!$B$9:$B$93,0)),"") -> 
B46: =IFERROR(INDEX(Beräkningar!$C$9:$C$93,MATCH(ROW()-ROW($N$14),Beräkningar!$B$9:$B$93,0)),"") ->  | C46: =IFERROR(INDEX(Beräkningar!$D$9:$D$93,MATCH(ROW()-ROW($N$14),Beräkningar!$B$9:$B$93,0)),"") ->  | D46: =IFERROR(INDEX(Beräkningar!$M$9:$M$93,MATCH(ROW()-ROW($N$14),Beräkningar!$B$9:$B$93,0)),"") ->  | E46: =IFERROR(INDEX(Beräkningar!$AA$9:$AA$93,MATCH(ROW()-ROW($N$14),Beräkningar!$B$9:$B$93,0)),"") ->  | F46: =IFERROR(INDEX(Beräkningar!$H$9:$H$93,MATCH(ROW()-ROW($N$14),Beräkningar!$B$9:$B$93,0)),"") ->  | G46: =IFERROR(INDEX(Beräkningar!$AB$9:$AB$93,MATCH(ROW()-ROW($N$14),Beräkningar!$B$9:$B$93,0)),"") -> 
B47: =IFERROR(INDEX(Beräkningar!$C$9:$C$93,MATCH(ROW()-ROW($N$14),Beräkningar!$B$9:$B$93,0)),"") ->  | C47: =IFERROR(INDEX(Beräkningar!$D$9:$D$93,MATCH(ROW()-ROW($N$14),Beräkningar!$B$9:$B$93,0)),"") ->  | D47: =IFERROR(INDEX(Beräkningar!$M$9:$M$93,MATCH(ROW()-ROW($N$14),Beräkningar!$B$9:$B$93,0)),"") ->  | E47: =IFERROR(INDEX(Beräkningar!$AA$9:$AA$93,MATCH(ROW()-ROW($N$14),Beräkningar!$B$9:$B$93,0)),"") ->  | F47: =IFERROR(INDEX(Beräkningar!$H$9:$H$93,MATCH(ROW()-ROW($N$14),Beräkningar!$B$9:$B$93,0)),"") ->  | G47: =IFERROR(INDEX(Beräkningar!$AB$9:$AB$93,MATCH(ROW()-ROW($N$14),Beräkningar!$B$9:$B$93,0)),"") -> 
B48: =IFERROR(INDEX(Beräkningar!$C$9:$C$93,MATCH(ROW()-ROW($N$14),Beräkningar!$B$9:$B$93,0)),"") ->  | C48: =IFERROR(INDEX(Beräkningar!$D$9:$D$93,MATCH(ROW()-ROW($N$14),Beräkningar!$B$9:$B$93,0)),"") ->  | D48: =IFERROR(INDEX(Beräkningar!$M$9:$M$93,MATCH(ROW()-ROW($N$14),Beräkningar!$B$9:$B$93,0)),"") ->  | E48: =IFERROR(INDEX(Beräkningar!$AA$9:$AA$93,MATCH(ROW()-ROW($N$14),Beräkningar!$B$9:$B$93,0)),"") ->  | F48: =IFERROR(INDEX(Beräkningar!$H$9:$H$93,MATCH(ROW()-ROW($N$14),Beräkningar!$B$9:$B$93,0)),"") ->  | G48: =IFERROR(INDEX(Beräkningar!$AB$9:$AB$93,MATCH(ROW()-ROW($N$14),Beräkningar!$B$9:$B$93,0)),"") -> 
B49: =IFERROR(INDEX(Beräkningar!$C$9:$C$93,MATCH(ROW()-ROW($N$14),Beräkningar!$B$9:$B$93,0)),"") ->  | C49: =IFERROR(INDEX(Beräkningar!$D$9:$D$93,MATCH(ROW()-ROW($N$14),Beräkningar!$B$9:$B$93,0)),"") ->  | D49: =IFERROR(INDEX(Beräkningar!$M$9:$M$93,MATCH(ROW()-ROW($N$14),Beräkningar!$B$9:$B$93,0)),"") ->  | E49: =IFERROR(INDEX(Beräkningar!$AA$9:$AA$93,MATCH(ROW()-ROW($N$14),Beräkningar!$B$9:$B$93,0)),"") ->  | F49: =IFERROR(INDEX(Beräkningar!$H$9:$H$93,MATCH(ROW()-ROW($N$14),Beräkningar!$B$9:$B$93,0)),"") ->  | G49: =IFERROR(INDEX(Beräkningar!$AB$9:$AB$93,MATCH(ROW()-ROW($N$14),Beräkningar!$B$9:$B$93,0)),"") -> 
B50: =IFERROR(INDEX(Beräkningar!$C$9:$C$93,MATCH(ROW()-ROW($N$14),Beräkningar!$B$9:$B$93,0)),"") ->  | C50: =IFERROR(INDEX(Beräkningar!$D$9:$D$93,MATCH(ROW()-ROW($N$14),Beräkningar!$B$9:$B$93,0)),"") ->  | D50: =IFERROR(INDEX(Beräkningar!$M$9:$M$93,MATCH(ROW()-ROW($N$14),Beräkningar!$B$9:$B$93,0)),"") ->  | E50: =IFERROR(INDEX(Beräkningar!$AA$9:$AA$93,MATCH(ROW()-ROW($N$14),Beräkningar!$B$9:$B$93,0)),"") ->  | F50: =IFERROR(INDEX(Beräkningar!$H$9:$H$93,MATCH(ROW()-ROW($N$14),Beräkningar!$B$9:$B$93,0)),"") ->  | G50: =IFERROR(INDEX(Beräkningar!$AB$9:$AB$93,MATCH(ROW()-ROW($N$14),Beräkningar!$B$9:$B$93,0)),"") -> 
B51: =IFERROR(INDEX(Beräkningar!$C$9:$C$93,MATCH(ROW()-ROW($N$14),Beräkningar!$B$9:$B$93,0)),"") ->  | C51: =IFERROR(INDEX(Beräkningar!$D$9:$D$93,MATCH(ROW()-ROW($N$14),Beräkningar!$B$9:$B$93,0)),"") ->  | D51: =IFERROR(INDEX(Beräkningar!$M$9:$M$93,MATCH(ROW()-ROW($N$14),Beräkningar!$B$9:$B$93,0)),"") ->  | E51: =IFERROR(INDEX(Beräkningar!$AA$9:$AA$93,MATCH(ROW()-ROW($N$14),Beräkningar!$B$9:$B$93,0)),"") ->  | F51: =IFERROR(INDEX(Beräkningar!$H$9:$H$93,MATCH(ROW()-ROW($N$14),Beräkningar!$B$9:$B$93,0)),"") ->  | G51: =IFERROR(INDEX(Beräkningar!$AB$9:$AB$93,MATCH(ROW()-ROW($N$14),Beräkningar!$B$9:$B$93,0)),"") -> 
B52: =IFERROR(INDEX(Beräkningar!$C$9:$C$93,MATCH(ROW()-ROW($N$14),Beräkningar!$B$9:$B$93,0)),"") ->  | C52: =IFERROR(INDEX(Beräkningar!$D$9:$D$93,MATCH(ROW()-ROW($N$14),Beräkningar!$B$9:$B$93,0)),"") ->  | D52: =IFERROR(INDEX(Beräkningar!$M$9:$M$93,MATCH(ROW()-ROW($N$14),Beräkningar!$B$9:$B$93,0)),"") ->  | E52: =IFERROR(INDEX(Beräkningar!$AA$9:$AA$93,MATCH(ROW()-ROW($N$14),Beräkningar!$B$9:$B$93,0)),"") ->  | F52: =IFERROR(INDEX(Beräkningar!$H$9:$H$93,MATCH(ROW()-ROW($N$14),Beräkningar!$B$9:$B$93,0)),"") ->  | G52: =IFERROR(INDEX(Beräkningar!$AB$9:$AB$93,MATCH(ROW()-ROW($N$14),Beräkningar!$B$9:$B$93,0)),"") -> 
B53: =IFERROR(INDEX(Beräkningar!$C$9:$C$93,MATCH(ROW()-ROW(Beräkningar!#REF!),Beräkningar!$B$9:$B$93,0)),"") ->  | E53: Totalt | G53: =SUBTOTAL(109,Tabell16[Bidr.underlag]) -> 133

Sheet Ekonom.spec grönt bidrag
H4: Datum | I4: =TODAY() -> 2026-06-26
F7: Bilaga till faktura nr.
B9: Ekonomisk specifikation för grönt bidrag gällande solcellsanläggning.
B12: Köpare: | C12: =Indata!D3 -> 0 | F12: Personnr. | H12: =Indata!K4 -> 
B13: Adress: | C13: =Indata!D4 -> 0
B14: Postnr/Ort: | C14: =Indata!D5 -> 0 | F14: Fast.bet. | H14: =Indata!K6 -> 
B20: Grönt Bidrag 48,5 %
B22: Bidragsunderlag material | I22: =IF(Formler!N82=TRUE,Indata!D58,"0") -> 0
B23: Bidragsunderlag elarbete | I23: =IF(Formler!N82=TRUE,Indata!D55,"0") -> 0
B24: Totalt bidragsunderlag, material - arbete | I24: =I22+I23 -> 0
B25: Moms | I25: =I24*0.25 -> 0
B26: Totalt kr. | I26: =I24+I25 -> 0
B28: Totalt bidrag 48,5 % | I28: =I26*0.485 -> 0
B32: Grönt Bidrag 14,55 %
B34: Bidragsunderlag material | I34: =IF(Formler!N82=TRUE,Indata!D57,"0") -> 0
B35: Bidragsunderlag elarbete | I35: =IF(Formler!N82=TRUE,Indata!D54,"0") -> 0
B36: Bidragsunderlag övrigt monteringsarbete | I36: =IF(Formler!N82=TRUE,Indata!D56,"0") -> 0
B37: Totalt bidragsunderlag, material - arbete | I37: =I34+I35+I36 -> 0
B38: Moms | I38: =I37*0.25 -> 0
B39: Totalt kr. | I39: =I37+I38 -> 0
B41: Totalt bidrag 14,55 % | I41: =I39*0.1455 -> 0
B46: Totalt bidragsunderlag exklusive moms: | I46: =I24+I37 -> 0
B47: Tilläggskostnader, ej bidragsgrundade. | I47: =IF(Indata!D10="BUTP",Indata!M50,0) -> 0
B48: Övriga kostnader, ej bidragsgrundade. | I48: 0
B49: Totala kostnader | I49: =I46+I47+I48 -> 0
B50: Moms | I50: =I49*0.25 -> 0
B51: Totalt inkl. moms | I51: =I49+I50 -> 0
B52: Avdrag grönt bidrag totalt | I52: =I41+I28 -> 0
B53: Totalt att betala kronor | I53: =I51-I52 -> 0
B58: =_xlfn.TEXTJOIN(", ",TRUE,Anpassning!E47:H50) -> Nimex, storgatan, 444555, hjo

Sheet Panelsektorer
X2: Exempel panelsektorer
E3: Att taket delas i olika sektorer beror på ex.vis takfönster. | S3: V= Liggande paneler med vertikala skenor., H = Stående paneler med horisontella skenor.
D4: 2 x 3 | I4: 2 x 3 | N4: 2 x 4
V5: Båda exemplen är beräknade på Takstorlek ca: 16,5 x 9,5 m
V6: Panelstorlek 113,4 x 172,2 cm
I8: 3 x 14
D11: H | F11: Monteringsstänger på det horisontella planet. = horisontella rader. | V11: 2 x 8 | Z11: 3 x 8 | AC11: 2 x 8
M13: Rad | N13: Antal | P13: Rad | Q13: Antal
B14: Här ser du hur du fyller i panelsektorerna på "Indata"-fliken. | M14: 3 | N14: 14 | P14: 2 | Q14: 8 | S14: V | X14: 1 x 5 | AB14: 1 x 5
B15: Antal rader fylls i under Rad och antal paneler i rutan under Antal. | M15: 2 | N15: 3 | P15: 1 | Q15: 5
B16: OBS! Vid horisontell montering är raden liggande och vid vertikal | M16: 2 | N16: 3 | P16: 3 | Q16: 8
B17: montering är raden stående. | M17: 2 | N17: 4 | P17: 1 | Q17: 5
B18: Detta är viktigt för att rätt detaljer skall beräknas. | M18: 0 | N18: 0 | P18: 2 | Q18: 8
M19: 62 paneler | P19: 66 paneler
M20: Stående | P20: Liggande | V20: Monteringsstänger på det vertikala planet. = vertikala rader

Sheet Lagar & Regler
B2: LAGAR / REGLER / RÅD
B5: Grönt bidrag
B6: 1 januari 2023 höjdes gröna bidraget (se nästa stycke). Maxbelopp per person 50.000 kr om skattemässigt utrymmen finns.
B7: Tänk på att det gäller per person (per ägare i fastigheten). Detta innebär att en större anläggning där bidraget överstiger 50.000 kr
B8: kan utnyttjas och fördelas på fler ägare i fastigheten om skatteutrymme finns.Slufakturan fördelas då och ställs ut på
B9: på de aktuella ägarna.
B11: För att få skatteavdrag för grön teknik måste du:
B12: Vara över 18 år eller fylla 18 samma år som arbetet utförs.
B13: Äga hela eller del av bostaden där installationen görs.
B14: Vara den som betalar för aktuell del. (Ej kontant betalning).
B15: Ha skatteavdrag kvar att utnyttja.
B16: Vara skattskyldig i Sverige.
B18: Kostnad för arbete och material.
B19: Det är endast debiterade kostnader för arbete och material som ger rätt till skattereduktion för grön teknik. Skattereduktion ges med
B21: - 20 (19,38) procent för installation av solceller
B22: - 50 (48,5) procent för installation av system för lagring av egenproducerad elenergi
B23: - 50 (48,5) procent för installation av laddningspunkt till elfordon.
B25: Om du enbart köper material av ett företag kan du inte få skattereduktion för materialet. Om du köper installationen av ett företag och
B26: har eget material kan du bara få skattereduktion för arbetet med installationen.
B28: Övriga kostnader.
B29: Övriga kostnader som utföraren har i samband med installationen ger inte rätt till skattereduktion. Dessa kostnader ska du betala i
B30: sin helhet till företaget. Företaget kan till exempel ha övriga kostnader för:
B32: - restid till och från dig samt vid materialinköp och bortforsling av avfall.
B33: - kostnad per mil för bilar och andra transportfordon, inklusive till exempel drivmedel, skatt och försäkring.
B34: - maskiner och utrustning.
B35: - administration.
B37: Behövs Bygglov ?
B38: I de allra flesta fall krävs inget bygglov för att installera solceller. Boverket skriver dock på sin hemsida att samtliga av dessa kriterier
B39: måste vara uppfyllda för att en solcellsanläggning ska vara bygglovsbefriad:
B41: 1. | C41: Solcellsanläggningen ska monteras utanpå en byggnads fasadbeklädnad eller taktäckningsmaterial.
B42: 2. | C42: Solcellerna ska följa byggnadens form och de får inte monteras på byggnader eller inom bebyggelseområden
C43: som är särskilt värdefulla.
B44: 3. | C44: De får inte monteras inom eller i anslutning till områden som är av riksintresse för totalförsvaret.
B45: 4. | C45: Att solenergianläggningen inte kräver bygglov enligt den detaljplan som gäller för området.
B47: Dimensionering av anläggning.
B48: För en normal villa är ett råd att inte producera mer el än vad som görs av med på årsbasis. De som producerar mindre el än vad som
B49: konsumeras har enligt lagen en rad fördelar, bland annat rätt att kopplas in till elnätet utan att betala något, samt möjligheten att få ut
B50: en skattereduktion på 60 öre för all den överskottssel som matas in på elnätet. De flesta elköpare har även som krav att man ska vara.
B51: nettokonsumenter av el.
B53: En annan övre gräns som följer med för villaägare är att det ej går att välja system som är större än 43.5 kW. (Det är för övrigt ett väldigt
B54: stort system för hemägare.) För solcellssystem över 43.5 kW så räknas man t.ex. inte längre som mindre produktionsanläggning och
B55: elnätbolaget har rätt att ta ut en avgift för inmatad el.
B57: Kalkyl för beräkning av elproduktion
B58: https://www.solcellskollen.se/rakna-pa-solceller
B60: Här går det att läsa det mesta om solceller
B61: https://www.energimyndigheten.se/fornybart/solelportalen/vilka-stod-och-intakter-kan-jag-fa/skattereduktion-for-gron-teknik/
B63: Montering / Elarbete.
B64: Elinstallationsarbete i samband med installation av solceller på annans anläggning får endast utföras av någon som omfattas av ett
B65: elinstallationsföretags egenkontrollprogram. Elinstallationsföretaget måste vara registrerat hos Elsäkerhetsverket för verksamhetstypen
B66: ”Elproduktionsanläggningar”. Allt arbete förknippat med el omfattas.
B70: ERSÄTTNING FÖR SÅLD EL
B72: Ersättning från köpande elbolag
B73: Normalt är det Spotpriset som anges dagligen av Nordpol som ligger till grund för ersättningen man får. Priset varierar men har historiskt
B74: i genomsnitt legat på ungeför 50 öre/KW. Dessutom varierar det mellan elbolagen som ofta har bonusvarianter.
B76: Skattereduktion.
B77: Enligt Inkomstskattelag (1999:1229). Endast för överskottsel, som matas in till nätet. Säkringen i anslutningspunkten får vara högst 100 A.
B78: Som solcellsägare (med en huvudsäkring på som mest 100 A) har man rätt till skattereduktion på 60 öre per kWh för såld el. Skattereduktionen
B79: är den viktigaste förklaringen till att det oftast blir bäst ekonomi i en anläggning där man har lägre solelproduktion än förbrukning.
B80: Ett hushåll som producerar mer än vad det gör av med får bara skattereduktion på såld el motsvarande mängden el som köps in.
B82: Tak för skattereduktion.
B83: Man kan få skattereduktion för högst 30 000 kWh/år, eller högst för så mycket el man köper under ett år, per person eller anslutningspunkt
B84: enligt Inkomstskattelag (1999:1229). Vid en skattereduktion på 60 öre/kWh blir taket därmed 18 000 kr per år. Här antas att överskottet är
B85: mindre än den egna elanvändningen och att skattereduktion därmed kan utnyttjas för hela överskottet upp till takbeloppet som mest.
B86: Rapport om det aktuella årets elproduktion sker automatiskt till Skatteverket och skall finnas som uppgift på deklarationen
B88: Elcertifikat.
B89: Elproducenter som är godkända för tilldelning av elcertifikat får ett certifikat för varje megawattimme el som de producerar. Elcertifikat får
B90: tilldelas för produktionen av el i högst 15 år, dock längst till utgången av 2045. Den mängd elcertifikat som ska köpas av dem som är kvotpliktiga
B91: ändras från år till år. Ersättningen för elcertifikaten är 2-3 ören per KW.
B93: Ursprungsgarantier
B94: Sedan december 2010 har alla elproducenter i Sverige rätt att få ursprungsgarantier utfärdade oavsett vilken energikälla som använts vid
B95: produktionen Det är frivilligt för producenter av el att ansöka om ursprungsgarantier och Energimyndigheten är behörig tillsynsmyndighet.
B96: Elproducenter får en ursprungsgaranti av staten för varje producerad megawattimme (MWh) el, som sedan kan säljas på en öppen marknad.
B97: Ersättning för ursprungsgarantier är små och endast något eller några ören per KW.
B99: Anslutning till både Elcerifikat och Ursprungsgarantier gör man här:
B100: http://www.energimyndigheten.se/fornybart/elcertifikatsystemet/for-dig-som-privatperson/sa-ansoker-du/
B101: Anslutningsavgiften är för närvarande 200 kronor.
B103: Nätnytta
B104: När du matar in din solel i elnätet minskar kostnaderna för att överföra el för den som äger elnätet. Normalt ligger ersättningen för nätnytta på
B105: cirka 5 öre per kWh.

Sheet Formler (hidden)
J2: Tak 1 | K2: Tak 2 | L2: Tak 1 | M2: Tak 2 | O2: DC-BOX | P2: Vxr 1 | Q2: Vxr 2 | R2: Vxr2 | S2: Vxr3 | T2: Box1 | U2: Box2 | V2: Box3
B3: Kolumn1 | C3: Totalt | D3: Tak 1 | E3: Tak 2 | F3: Kolumn2 | G3: Kolumn3 | H3: Kolumn4 | I3: Kolumn5 | J3: Till kalkyl | K3: Till kalkyl6 | L3: Grund | M3: Grund7 | O3: AFORE 5,0 KW | P3: =IF(Indata!$M$37=Tabell24[[#This Row],[DC-BOX]],Indata!$Q$37) -> FALSE | Q3: =IF(Tabell24[[#This Row],[Vxr 1]]=FALSE,0,P3) -> 0 | R3: =IF(Indata!$M$38=Tabell24[[#This Row],[DC-BOX]],Indata!$Q$38) -> FALSE | S3: =IF(Tabell24[[#This Row],[Vxr2]]=FALSE,0,R3) -> 0 | T3: 0 | U3: =Tabell24[[#This Row],[Vxr 1]]+Tabell24[[#This Row],[Vxr2]] -> 0 | V3: 0
O4: AFORE 6,0 KW | P4: =IF(Indata!$M$37=Tabell24[[#This Row],[DC-BOX]],Indata!$Q$37) -> FALSE | Q4: =IF(Tabell24[[#This Row],[Vxr 1]]=FALSE,0,P4) -> 0 | R4: =IF(Indata!$M$38=Tabell24[[#This Row],[DC-BOX]],Indata!$Q$38) -> FALSE | S4: =IF(Tabell24[[#This Row],[Vxr2]]=FALSE,0,R4) -> 0 | T4: 0 | U4: =Tabell24[[#This Row],[Vxr 1]]+Tabell24[[#This Row],[Vxr2]] -> 0 | V4: 0
B5: Ändklämma | C5: =D5+E5 -> 0 | D5: =IF(Indata!C15="J",Y12,0) -> 0 | E5: =IF(Indata!C24="J",Y13,0) -> 0 | F5: =IF(Y8=0,D5,0) -> 0 | G5: =IF(Z8=0,E5,0) -> 0 | O5: AFORE 8,0 KW | P5: =IF(Indata!$M$37=Tabell24[[#This Row],[DC-BOX]],Indata!$Q$37) -> FALSE | Q5: =IF(Tabell24[[#This Row],[Vxr 1]]=FALSE,0,P5) -> 0 | R5: =IF(Indata!$M$38=Tabell24[[#This Row],[DC-BOX]],Indata!$Q$38) -> FALSE | S5: =IF(Tabell24[[#This Row],[Vxr2]]=FALSE,0,R5) -> 0 | T5: 0 | U5: =Tabell24[[#This Row],[Vxr 1]]+Tabell24[[#This Row],[Vxr2]] -> 0 | V5: 0
O6: AFORE 10,0 KW | P6: =IF(Indata!$M$37=Tabell24[[#This Row],[DC-BOX]],Indata!$Q$37) -> FALSE | Q6: =IF(Tabell24[[#This Row],[Vxr 1]]=FALSE,0,P6) -> 0 | R6: =IF(Indata!$M$38=Tabell24[[#This Row],[DC-BOX]],Indata!$Q$38) -> FALSE | S6: =IF(Tabell24[[#This Row],[Vxr2]]=FALSE,0,R6) -> 0 | T6: 0 | U6: =Tabell24[[#This Row],[Vxr 1]]+Tabell24[[#This Row],[Vxr2]] -> 0 | V6: 0
B7: Mittklämma | C7: =D7+E7 -> 0 | D7: =IF(Indata!C15="J",($P$69-SUM(Indata!J17:J21))*2,0) -> 0 | E7: =IF(Indata!C24="J",($Q$69-SUM(Indata!J26:J30))*2,0) -> 0 | F7: =IF(Y8=0,D7,0) -> 0 | G7: =IF(Z8=0,E7,0) -> 0 | O7: AFORE 12,0 KW | P7: =IF(Indata!$M$37=Tabell24[[#This Row],[DC-BOX]],Indata!$Q$37) -> FALSE | Q7: =IF(Tabell24[[#This Row],[Vxr 1]]=FALSE,0,P7) -> 0 | R7: =IF(Indata!$M$38=Tabell24[[#This Row],[DC-BOX]],Indata!$Q$38) -> FALSE | S7: =IF(Tabell24[[#This Row],[Vxr2]]=FALSE,0,R7) -> 0 | T7: 0 | U7: =Tabell24[[#This Row],[Vxr 1]]+Tabell24[[#This Row],[Vxr2]] -> 0 | V7: 0
B8: Montageskena | C8: =D8+E8 -> 0 | D8: =IF(Indata!C15="J",$P$69*2*L8/4.2,0) -> 0 | E8: =IF(Indata!C24="J",$Q$69*2*M8/4.2,0) -> 0 | F8: =IF(Tabell4[[#Totals],[Tak 1]]=1,0,ROUND(D8,0)) -> 0 | G8: =IF(Tabell4[[#Totals],[Tak 2]]=1,0,ROUND(E8,0)) -> 0 | L8: =Q60 -> 1.184 | M8: =S60 -> 0.05 | O8: AFORE 15,0 KW | P8: =IF(Indata!$M$37=Tabell24[[#This Row],[DC-BOX]],Indata!$Q$37) -> 0 | Q8: =IF(Tabell24[[#This Row],[Vxr 1]]=FALSE,0,P8) -> 0 | R8: =IF(Indata!$M$38=Tabell24[[#This Row],[DC-BOX]],Indata!$Q$38) -> FALSE | S8: =IF(Tabell24[[#This Row],[Vxr2]]=FALSE,0,R8) -> 0 | T8: 0 | U8: 0 | V8: =Tabell24[[#This Row],[Vxr 1]]+Tabell24[[#This Row],[Vxr2]] -> 0
B9: Paneler | C9: 0 | D9: =IF(Indata!C15="J",$P$69,0) -> 0 | E9: =IF(Indata!C24="J",$Q$69,0) -> 0 | O9: AFORE 17,0 KW | P9: =IF(Indata!$M$37=Tabell24[[#This Row],[DC-BOX]],Indata!$Q$37) -> FALSE | Q9: =IF(Tabell24[[#This Row],[Vxr 1]]=FALSE,0,P9) -> 0 | R9: =IF(Indata!$M$38=Tabell24[[#This Row],[DC-BOX]],Indata!$Q$38) -> FALSE | S9: =IF(Tabell24[[#This Row],[Vxr2]]=FALSE,0,R9) -> 0 | T9: 0 | U9: 0 | V9: =Tabell24[[#This Row],[Vxr 1]]+Tabell24[[#This Row],[Vxr2]] -> 0
B10: Skarv | C10: 0 | D10: =IF(Indata!C15="J",D8,0) -> 0 | E10: =IF(Indata!C24="J",E8,0) -> 0 | O10: AFORE 20,0 KW | P10: =IF(Indata!$M$37=Tabell24[[#This Row],[DC-BOX]],Indata!$Q$37) -> FALSE | Q10: =IF(Tabell24[[#This Row],[Vxr 1]]=FALSE,0,P10) -> 0 | R10: =IF(Indata!$M$38=Tabell24[[#This Row],[DC-BOX]],Indata!$Q$38) -> FALSE | S10: =IF(Tabell24[[#This Row],[Vxr2]]=FALSE,0,R10) -> 0 | T10: 0 | U10: =(Tabell24[[#This Row],[Vxr 1]]+Tabell24[[#This Row],[Vxr2]])*2 -> 0 | V10: =Tabell24[[#This Row],[Box1]]+Tabell24[[#This Row],[Box2]] -> 0 | Y10: Antal ändar skena x 2
B11: Clips | C11: 0 | D11: =IF(Indata!C15="J",D9,0) -> 0 | E11: =IF(Indata!C24="J",E9,0) -> 0 | O11: AFORE 25,0 KW | P11: =IF(Indata!$M$37=Tabell24[[#This Row],[DC-BOX]],Indata!$Q$37) -> FALSE | Q11: =IF(Tabell24[[#This Row],[Vxr 1]]=FALSE,0,P11) -> 0 | R11: =IF(Indata!$M$38=Tabell24[[#This Row],[DC-BOX]],Indata!$Q$38) -> FALSE | S11: =IF(Tabell24[[#This Row],[Vxr2]]=FALSE,0,R11) -> 0 | T11: 0 | U11: =(Tabell24[[#This Row],[Vxr 1]]+Tabell24[[#This Row],[Vxr2]])*2 -> 0 | V11: 0 | Y11: vert | Z11: hor.
B12: Tegelkrok V | C12: 0 | D12: =IF(Indata!C15="J",(D8*4.2/L12)+Z12,0) -> 0 | E12: =IF(Indata!C24="J",(E8*4.2/M12)+Z13,0) -> 0 | L12: =IF(Variabler!G11>0,Variabler!G11,Variabler!E11) -> 0.75 | M12: =IF(Variabler!I11>0,Variabler!I11,Variabler!E11) -> 0.75 | O12: AFORE 30,0 KW | P12: =IF(Indata!$M$37=Tabell24[[#This Row],[DC-BOX]],Indata!$Q$37) -> FALSE | Q12: =IF(Tabell24[[#This Row],[Vxr 1]]=FALSE,0,P12) -> 0 | R12: =IF(Indata!$M$38=Tabell24[[#This Row],[DC-BOX]],Indata!$Q$38) -> 0 | S12: =IF(Tabell24[[#This Row],[Vxr2]]=FALSE,0,R12) -> 0 | T12: 0 | U12: =Tabell24[[#This Row],[Vxr 1]]+Tabell24[[#This Row],[Vxr2]] -> 0 | V12: =Tabell24[[#This Row],[Vxr 1]]+Tabell24[[#This Row],[Vxr2]] -> 0 | X12: Tak 1 | Y12: =SUM(Indata!J17:J21)*4 -> 0 | Z12: =SUM(Indata!K17:K21)*2 -> 0
B13: Tegelkrok H | C13: 0 | D13: =IF(Indata!C15="J",(D8*4.2/L13)+Y12,0) -> 0 | E13: =IF(Indata!C24="J",(E8*4.2/M13)+Y13,0) -> 0 | L13: =IF(Variabler!G10>0,Variabler!G10,Variabler!E10) -> 1.05 | M13: =IF(Variabler!I10>0,Variabler!I10,Variabler!E10) -> 1.05 | O13: AFORE 40,0 KW | P13: =IF(Indata!$M$37=Tabell24[[#This Row],[DC-BOX]],Indata!$Q$37) -> FALSE | Q13: =IF(Tabell24[[#This Row],[Vxr 1]]=FALSE,0,P13) -> 0 | R13: =IF(Indata!$M$38=Tabell24[[#This Row],[DC-BOX]],Indata!$Q$38) -> FALSE | S13: =IF(Tabell24[[#This Row],[Vxr2]]=FALSE,0,R13) -> 0 | T13: 0 | U13: 0 | V13: =(Tabell24[[#This Row],[Vxr 1]]+Tabell24[[#This Row],[Vxr2]])*2 -> 0 | X13: Tak 2 | Y13: =SUM(Indata!J26:J30)*4 -> 0 | Z13: =SUM(Indata!K26:L30)*2 -> 0
B14: H-bolt H | C14: 0 | D14: =IF(Indata!C15="J",(D8*4.2/L14)+Y12,0) -> 0 | E14: =IF(Indata!C24="J",(E8*4.2/M14)+Y13,0) -> 0 | F14: =IF(AND(Indata!E42="200 mm",Tabell4[[#Totals],[Tak 1]]=2),Formler!D14,0) -> 0 | G14: =IF(AND(Indata!E43="200 mm",Tabell4[[#Totals],[Tak 2]]=2),Formler!E14,0) -> 0 | H14: =IF(AND(Indata!E42="300 mm",Tabell4[[#Totals],[Tak 1]]=2),Formler!D14,0) -> 0 | I14: =IF(AND(Indata!E43="300 mm",Tabell4[[#Totals],[Tak 2]]=2),Formler!E14,0) -> 0 | L14: =IF(Variabler!G8>0,Variabler!G8,Variabler!E8) -> 1.05 | M14: =IF(Variabler!I8>0,Variabler!I8,Variabler!E8) -> 1.05 | O14: AFORE 50,0 KW | P14: =IF(Indata!$M$37=Tabell24[[#This Row],[DC-BOX]],Indata!$Q$37) -> FALSE | Q14: =IF(Tabell24[[#This Row],[Vxr 1]]=FALSE,0,P14) -> 0 | R14: =IF(Indata!$M$38=Tabell24[[#This Row],[DC-BOX]],Indata!$Q$38) -> FALSE | S14: =IF(Tabell24[[#This Row],[Vxr2]]=FALSE,0,R14) -> 0 | T14: 0 | U14: 0 | V14: =(Tabell24[[#This Row],[Vxr 1]]+Tabell24[[#This Row],[Vxr2]])*3 -> 0
B15: H-bolt V | C15: 0 | D15: =IF(Indata!C15="J",(D8*4.2/L15)+Z12,0) -> 0 | E15: =IF(Indata!C24="J",(E8*4.2/M15)+Z13,0) -> 0 | F15: =IF(AND(Indata!E42="200 mm",Tabell4[[#Totals],[Tak 1]]=6),Formler!D15,0) -> 0 | G15: =IF(AND(Indata!E43="200 mm",Tabell4[[#Totals],[Tak 2]]=6),Formler!E15,0) -> 0 | H15: =IF(AND(Indata!E42="300 mm",Tabell4[[#Totals],[Tak 1]]=6),Formler!D15,0) -> 0 | I15: =IF(AND(Indata!E43="300 mm",Tabell4[[#Totals],[Tak 2]]=6),Formler!E15,0) -> 0 | L15: =IF(Variabler!G9>0,Variabler!G9,Variabler!E9) -> 0.75 | M15: =IF(Variabler!I9>0,Variabler!I9,Variabler!E9) -> 0.75 | O15: AFORE 60,0 KW | P15: =IF(Indata!$M$37=Tabell24[[#This Row],[DC-BOX]],Indata!$Q$37) -> FALSE | Q15: =IF(Tabell24[[#This Row],[Vxr 1]]=FALSE,0,P15) -> 0 | R15: =IF(Indata!$M$38=Tabell24[[#This Row],[DC-BOX]],Indata!$Q$38) -> FALSE | S15: =IF(Tabell24[[#This Row],[Vxr2]]=FALSE,0,R15) -> 0 | T15: 0 | U15: 0 | V15: =(Tabell24[[#This Row],[Vxr 1]]+Tabell24[[#This Row],[Vxr2]])*3 -> 0 | X15: Prislista | Z15: När "N" i båda tak.
B16: CWL-platta | C16: 0 | D16: =L31 -> 0 | E16: =L39 -> 0 | J16: =ROUND(9.47/Tabell22[[#This Row],[Grund]],0) -> 9 | L16: =IF(Variabler!G14>0,Variabler!G14,Variabler!E14) -> 1.1 | M16: =IF(Variabler!I14>0,Variabler!I14,Variabler!E14) -> 1.1 | O16: AFORE Hybrid 6 KW | P16: =IF(Indata!$M$39=Tabell24[[#This Row],[DC-BOX]],Indata!$Q$39) -> FALSE | Q16: =IF(Tabell24[[#This Row],[Vxr 1]]=FALSE,0,P16) -> 0 | R16: 0 | S16: =IF(Tabell24[[#This Row],[Vxr2]]=FALSE,0,R16) -> 0 | T16: 0 | U16: =Tabell24[[#This Row],[Vxr 1]]+Tabell24[[#This Row],[Vxr2]] -> 0 | V16: 0 | X16: =IF(Indata!D10=K59,4,IF(Indata!D10=K60,3,IF(Indata!D10=K62,2,IF(Indata!D10=K61,1,"")))) -> 3 | Z16: =IF(AND(Indata!C15="N",Indata!C24="N"),"JA","NEJ") -> NEJ
B17: CWL-skruvkit | C17: 0 | D17: =(IF(Indata!C15="J",M31,0)) -> 0 | E17: =(IF(Indata!C24="J",M39,0)) -> 0 | O17: AFORE Hybrid 8 KW | P17: =IF(Indata!$M$39=Tabell24[[#This Row],[DC-BOX]],Indata!$Q$39) -> FALSE | Q17: =IF(Tabell24[[#This Row],[Vxr 1]]=FALSE,0,P17) -> 0 | R17: 0 | S17: =IF(Tabell24[[#This Row],[Vxr2]]=FALSE,0,R17) -> 0 | T17: 0 | U17: =Tabell24[[#This Row],[Vxr 1]]+Tabell24[[#This Row],[Vxr2]] -> 0 | V17: 0
B18: Falsklämma | C18: 0 | D18: =IF(Indata!C15="J",SUM(P69/L18)+(SUM(Indata!K26:'Indata'!K30)*2),0) -> 0 | E18: =IF(Indata!C24="J",SUM(Q69/M18)+(SUM(Indata!K26:'Indata'!K30)*2),0) -> 0 | L18: =IF(Variabler!G12>0,Variabler!G12,Variabler!E12) -> 0.7 | M18: =IF(Variabler!I12>0,Variabler!I12,Variabler!E12) -> 0.7 | O18: AFORE Hybrid 10 KW | P18: =IF(Indata!$M$39=Tabell24[[#This Row],[DC-BOX]],Indata!$Q$39) -> FALSE | Q18: =IF(Tabell24[[#This Row],[Vxr 1]]=FALSE,0,P18) -> 0 | R18: 0 | S18: =IF(Tabell24[[#This Row],[Vxr2]]=FALSE,0,R18) -> 0 | T18: 0 | U18: =Tabell24[[#This Row],[Vxr 1]]+Tabell24[[#This Row],[Vxr2]] -> 0 | V18: 0 | X18: H-säkring | Z18: Kolla AFORE
B19: Kortskena | C19: 0 | D19: =IF(Indata!C15="J",SUM(P69*2)+Y12,0) -> 0 | E19: =IF(Indata!C24="J",SUM(Q69*2)+Y13,0) -> 0 | O19: AFORE Hybrid 12 KW | P19: =IF(Indata!$M$39=Tabell24[[#This Row],[DC-BOX]],Indata!$Q$39) -> FALSE | Q19: =IF(Tabell24[[#This Row],[Vxr 1]]=FALSE,0,P19) -> 0 | R19: 0 | S19: =IF(Tabell24[[#This Row],[Vxr2]]=FALSE,0,R19) -> 0 | T19: 0 | U19: =Tabell24[[#This Row],[Vxr 1]]+Tabell24[[#This Row],[Vxr2]] -> 0 | V19: 0 | X19: Välj amp | Y19: Vxr1 | Z19: =IF(ISNUMBER(SEARCH("AFORE",Indata!M37)),1,2) -> 1
O20: AFORE Hybrid 15 KW | P20: =IF(Indata!$M$39=Tabell24[[#This Row],[DC-BOX]],Indata!$Q$39) -> 0 | Q20: =IF(Tabell24[[#This Row],[Vxr 1]]=FALSE,0,P20) -> 0 | R20: 0 | S20: =IF(Tabell24[[#This Row],[Vxr2]]=FALSE,0,R20) -> 0 | T20: 0 | U20: 0 | V20: =Tabell24[[#This Row],[Vxr 1]]+Tabell24[[#This Row],[Vxr2]] -> 0 | X20: 0 | Y20: Vxr2 | Z20: =IF(ISNUMBER(SEARCH("AFORE",Indata!M38)),1,2) -> 1
E21: H-bolt tak1 | F21: 200 mm | G21: =F14+F15 -> 0 | H21: 300 mm | I21: =H14+H15 -> 0 | O21: AFORE Hybrid 20 KW | P21: =IF(Indata!$M$39=Tabell24[[#This Row],[DC-BOX]],Indata!$Q$39) -> FALSE | Q21: =IF(Tabell24[[#This Row],[Vxr 1]]=FALSE,0,P21) -> 0 | R21: 0 | S21: =IF(Tabell24[[#This Row],[Vxr2]]=FALSE,0,R21) -> 0 | T21: 0 | U21: =(Tabell24[[#This Row],[Vxr 1]]+Tabell24[[#This Row],[Vxr2]])*2 -> 0 | V21: 0 | X21: 16 | Z21: =OR(Z19=1,Z20=1) -> TRUE
E22: H-bolt tak2 | F22: 200 mm | G22: =G14+G15 -> 0 | H22: 300 mm | I22: =I14+I15 -> 0 | O22: AFORE Hybrid 25 KW | P22: =IF(Indata!$M$39=Tabell24[[#This Row],[DC-BOX]],Indata!$Q$39) -> FALSE | Q22: =IF(Tabell24[[#This Row],[Vxr 1]]=FALSE,0,P22) -> 0 | R22: 0 | S22: =IF(Tabell24[[#This Row],[Vxr2]]=FALSE,0,R22) -> 0 | T22: 0 | U22: =(Tabell24[[#This Row],[Vxr 1]]+Tabell24[[#This Row],[Vxr2]])*2 -> 0 | V22: 0 | X22: 20 | Z22: AFORE
F23: Totalt | G23: =SUM(G21:G22) -> 0 | I23: =SUM(I21:I22) -> 0 | O23: AFORE Hybrid 30 KW | P23: =IF(Indata!$M$39=Tabell24[[#This Row],[DC-BOX]],Indata!$Q$39) -> FALSE | Q23: =IF(Tabell24[[#This Row],[Vxr 1]]=FALSE,0,P23) -> 0 | R23: 0 | S23: =IF(Tabell24[[#This Row],[Vxr2]]=FALSE,0,R23) -> 0 | T23: 0 | U23: =Tabell24[[#This Row],[Vxr 1]]+Tabell24[[#This Row],[Vxr2]] -> 0 | V23: =Tabell24[[#This Row],[Vxr 1]]+Tabell24[[#This Row],[Vxr2]] -> 0 | X23: 25
O24: Antal DC-boxar | T24: =SUBTOTAL(109,T3:T23) -> 0 | U24: =SUBTOTAL(109,U3:U23) -> 0 | V24: =SUBTOTAL(109,V3:V23) -> 0 | X24: 35 | Z24: Kundrabatt
I25: Tak 1 | K25: CWL-plattor | M25: Mont.sats | O25: Kabel | P25: =IF(Indata!B43="4 mm DC-kabel",Tabell24[[#This Row],[Vxr2]],0) -> 0 | R25: =Tabell24[[#This Row],[Box1]]+Tabell24[[#This Row],[Box2]]+Tabell24[[#This Row],[Box3]] -> 0 | S25: =IF(Tabell24[[#This Row],[Vxr2]]=FALSE,0,R25) -> 0 | T25: =T24*100 -> 0 | U25: =U24*100 -> 0 | V25: =V24*200 -> 0 | X25: 50 | Z25: =IF(Indata!D10=K59,Anpassning!E5,0) -> 0
D26: =Indata!D18 -> SUNTECH STP 420W -C54 Ns FB | F26: Watt | G26: =INDEX(Paneler[#All],MATCH(D26,Paneler[[#All],[Kolumn1]],),MATCH(F26,Paneler[#Headers],0)) -> 420 | I26: =(Indata!M34+5)*Indata!K17/100 -> 0 | J26: =IF(I26=0,0,((I26/L16)+1)) -> 0 | K26: =ROUNDUP(J26,0) -> 0 | L26: =(Indata!J17+1)*K26 -> 0 | M26: =L26*2-(Formler!K26*2) -> 0 | O26: MC-kontakter | P26: =IF(Indata!B43="6 mm DC-kabel",R25,0) -> 0 | R26: =Tabell24[[#This Row],[Box1]]+Tabell24[[#This Row],[Box2]]+Tabell24[[#This Row],[Box3]] -> 0 | S26: =IF(Tabell24[[#This Row],[Vxr2]]=FALSE,0,R26) -> 0 | T26: =T24*2 -> 0 | U26: =U24*4 -> 0 | V26: =V24*6 -> 0 | X26: 63 | Z26: =100+Z25 -> 100
D27: Tak 1 | F27: Bredd | G27: =INDEX(Paneler[#All],MATCH(D26,Paneler[[#All],[Kolumn1]],),MATCH(F27,Paneler[#Headers],0)) -> 113.4 | I27: =(Indata!M34+5)*Indata!K18/100 -> 0 | J27: =IF(I27=0,0,((I27/L16)+1)) -> 0 | K27: =ROUNDUP(J27,0) -> 0 | L27: =(Indata!J18+1)*K27 -> 0 | M27: =L27*2-(Formler!K27*2) -> 0 | X27: 80 | Z27: =Z26/100 -> 1
B28: Kabelval. | F28: Höjd | G28: =INDEX(Paneler[#All],MATCH(D26,Paneler[[#All],[Kolumn1]],),MATCH(F28,Paneler[#Headers],0)) -> 172.2 | I28: =(Indata!M34+5)*Indata!K19/100 -> 0 | J28: =IF(I28=0,0,((I28/L16)+1)) -> 0 | K28: 0 | L28: =(Indata!J19+1)*K28 -> 0 | M28: =L28*2-(Formler!K28*2) -> 0 | X28: 100
B29: Kolumn1 | F29: M2 | G29: =INDEX(Paneler[#All],MATCH(D26,Paneler[[#All],[Kolumn1]],),MATCH(F29,Paneler[#Headers],0)) -> 1.952748 | I29: =(Indata!M34+5)*Indata!K20/100 -> 0 | J29: =IF(I29=0,0,((I29/L16)+1)) -> 0 | K29: 0 | L29: =(Indata!J20+1)*K29 -> 0 | M29: =L29*2-(Formler!K29*2) -> 0 | Q29: Kabel 500 | R29: =P25/500 -> 0 | S29: =ROUNDDOWN(R29,0) -> 0 | T29: =S29*500 -> 0 | U29: =P25-T29 -> 0 | X29: 125 | Z29: watt
B30: ingen kabel | F30: Prod | G30: =IF(Indata!C15="J",INDEX(Paneler[#All],MATCH(D26,Paneler[[#All],[Kolumn1]],),MATCH(F30,Paneler[#Headers])),"") -> 15 | I30: =(Indata!M34+5)*Indata!K21/100 -> 0 | J30: =IF(I30=0,0,((I30/L16)+1)) -> 0 | K30: 0 | L30: =(Indata!J21+1)*K30 -> 0 | M30: =L30*2-(Formler!K30*2) -> 0 | Q30: Kabel 250 | R30: =U29/250 -> 0 | S30: =ROUNDDOWN(R30,0) -> 0 | T30: =S30*250 -> 0 | U30: =P25-T29-T30 -> 0 | X30: 150 | Y30: Tak 1 | Z30: =SUM(Indata!E34*1000) -> 0
B31: 4 mm DC-kabel | F31: Linear | G31: =IF(Indata!C15="J",INDEX(Paneler[#All],MATCH(D26,Paneler[[#All],[Kolumn1]],),MATCH(F31,Paneler[#Headers],0)),"") -> 25 | L31: =SUM(L26:L30) -> 0 | M31: =SUM(M26:M30) -> 0 | Q31: Kabel 100 | R31: =U30/100 -> 0 | S31: =ROUNDDOWN(R31,0) -> 0 | X31: 200 | Y31: Tak 2 | Z31: =SUM(Indata!F34*1000) -> 0
B32: 6 mm DC-kabel | X32: 250 | Y32: Totalt | Z32: =SUM(Z30:Z31) -> 0
D33: =Indata!D27 -> JUST SOLAR 430W, JST-EFMH Glas/glas | F33: Watt | G33: =INDEX(Paneler[#All],MATCH(D33,Paneler[[#All],[Kolumn1]],),MATCH(F33,Paneler[#Headers],0)) -> 430 | I33: Tak 2 | K33: CWL-plattor | M33: Mont.sats
B34: Elval | D34: Tak 2 | F34: Bredd | G34: =INDEX(Paneler[#All],MATCH(D33,Paneler[[#All],[Kolumn1]],),MATCH(F34,Paneler[#Headers],0)) -> 113.4 | I34: =(Indata!O34+5)*Indata!K26/100 -> 0 | J34: =IF(I34=0,0,((I34/L16)+1)) -> 0 | K34: =ROUNDUP(J34,0) -> 0 | L34: =(Indata!J26+1)*K34 -> 0 | M34: =L34*2-(K34*2) -> 0
B35: Kolumn1 | F35: Höjd | G35: =INDEX(Paneler[#All],MATCH(D33,Paneler[[#All],[Kolumn1]],),MATCH(F35,Paneler[#Headers],0)) -> 172.2 | I35: =(Indata!O34+5)*Indata!K27/100 -> 0 | J35: =IF(I35=0,0,((I35/M16)+1)) -> 0 | K35: =ROUNDUP(J35,0) -> 0 | L35: =(Indata!J27+1)*K35 -> 0 | M35: =L35*2-(K35*2) -> 0
B36: Allt på DC-sidan | F36: M2 | G36: =INDEX(Paneler[#All],MATCH(D33,Paneler[[#All],[Kolumn1]],),MATCH(F36,Paneler[#Headers],0)) -> 1.952748 | I36: =(Indata!O34+5)*Indata!K28/100 -> 0 | J36: =IF(I36=0,0,((I36/M16)+1)) -> 0 | K36: 0 | L36: =(Indata!J28+1)*K36 -> 0 | M36: 0 | X36: Rabatt
B37: Nej, inget | F37: Prod | G37: =IF(Indata!C24="J",INDEX(Paneler[#All],MATCH(D33,Paneler[[#All],[Kolumn1]],),MATCH(F37,Paneler[#Headers])),"") ->  | I37: =(Indata!O34+5)*Indata!K29/100 -> 0 | J37: =IF(I37=0,0,((I37/M16)+1)) -> 0 | K37: 0 | L37: =(Indata!J29+1)*K37 -> 0 | M37: 0 | P37: Mont.typ | X37: -20
F38: Linear | G38: =IF(Indata!C24="J",INDEX(Paneler[#All],MATCH(D33,Paneler[[#All],[Kolumn1]],),MATCH(F38,Paneler[#Headers],0)),"") ->  | I38: =(Indata!O34+5)*Indata!K30/100 -> 0 | J38: =IF(I38=0,0,((I38/M16)+1)) -> 0 | K38: 0 | L38: =(Indata!J30+1)*K38 -> 0 | M38: 0 | P38: Välj typ | Q38: Kolumn1 | R38: Tak 1 | S38: Tak 2 | X38: -17
B39: Antal VXR/ Batter. | L39: =SUM(L34:L38) -> 0 | M39: =SUM(M34:M38) -> 0 | P39: Plåt-kortskena | Q39: 1 | R39: =IF(Indata!$D$16=Tabell4[[#This Row],[Välj typ]],Tabell4[[#This Row],[Kolumn1]],0) -> 0 | S39: =IF(Indata!$D$25=Tabell4[[#This Row],[Välj typ]],Tabell4[[#This Row],[Kolumn1]],0) -> 0 | X39: -15
B40: Kolumn1 | P40: Hangerbolt horisontellt | Q40: 2 | R40: =IF(Indata!$D$16=Tabell4[[#This Row],[Välj typ]],Tabell4[[#This Row],[Kolumn1]],0) -> 0 | S40: =IF(Indata!$D$25=Tabell4[[#This Row],[Välj typ]],Tabell4[[#This Row],[Kolumn1]],0) -> 0 | X40: -12
B41: 0 | P41: Tegel horisontellt | Q41: 3 | R41: =IF(Indata!$D$16=Tabell4[[#This Row],[Välj typ]],Tabell4[[#This Row],[Kolumn1]],0) -> 0 | S41: =IF(Indata!$D$25=Tabell4[[#This Row],[Välj typ]],Tabell4[[#This Row],[Kolumn1]],0) -> 0 | X41: -10
B42: 1 | F42: Batteripaket | P42: Falsplåtsmontage | Q42: 4 | R42: =IF(Indata!$D$16=Tabell4[[#This Row],[Välj typ]],Tabell4[[#This Row],[Kolumn1]],0) -> 0 | S42: =IF(Indata!$D$25=Tabell4[[#This Row],[Välj typ]],Tabell4[[#This Row],[Kolumn1]],0) -> 0 | X42: -7
B43: 2 | D43: Tak nr. | F43: Batteri kompl 7,5KW | P43: Plant tak, papp, matta | Q43: 5 | R43: =IF(Indata!$D$16=Tabell4[[#This Row],[Välj typ]],Tabell4[[#This Row],[Kolumn1]],0) -> 5 | S43: =IF(Indata!$D$25=Tabell4[[#This Row],[Välj typ]],Tabell4[[#This Row],[Kolumn1]],0) -> 0 | X43: -5
B44: 3 | D44: Kolumn1 | F44: Batteri kompl 10KW | J44: Hybrider 48,5 eller 19,37 | P44: Hangerbolt vertikalt | Q44: 6 | R44: =IF(Indata!$D$16=Tabell4[[#This Row],[Välj typ]],Tabell4[[#This Row],[Kolumn1]],0) -> 0 | S44: =IF(Indata!$D$25=Tabell4[[#This Row],[Välj typ]],Tabell4[[#This Row],[Kolumn1]],0) -> 6 | X44: -4
D45: J | F45: Batteri kompl 12,5KW | J45: =AND(Indata!D11="Ja",Indata!Q40>0) -> FALSE | K45: =IF(J45=TRUE,48.5,0) -> 0 | P45: Tegel vertikalt | Q45: 7 | R45: =IF(Indata!$D$16=Tabell4[[#This Row],[Välj typ]],Tabell4[[#This Row],[Kolumn1]],0) -> 0 | S45: =IF(Indata!$D$25=Tabell4[[#This Row],[Välj typ]],Tabell4[[#This Row],[Kolumn1]],0) -> 0 | X45: -3
D46: N | F46: Batteri kompl 15KW | J46: =AND(Indata!D11="Ja",Indata!Q40=0) -> TRUE | K46: 19.37 | R46: =SUBTOTAL(109,Tabell4[Tak 1]) -> 5 | S46: =SUBTOTAL(109,Tabell4[Tak 2]) -> 6 | X46: -2
F47: Batteri kompl 17,5KW | X47: -1
D48: H-bolt längd | F48: Batteri kompl 20KW | J48: panel | K48: watt | P48: Panel watt/storlek /garantier | S48: (Paneler) | X48: 0
J49: Kolumn1 | K49: Kolumn2 | L49: Kolumn3 | M49: Kolumn4 | N49: Kolumn5 | P49: Kolumn1 | Q49: Watt | R49: Bredd | S49: Höjd | T49: M2 | U49: Prod | V49: Linear | X49: 2
D50: 200 mm | F50: Afore hybrider | J50: SUNTECH STP 420W -C54 Ns FB | K50: 420 | L50: 113.4 | M50: 172.2 | N50: =Tabell5[[#This Row],[Kolumn3]]*Tabell5[[#This Row],[Kolumn4]]/10000 -> 1.952748 | P50: SUNTECH STP 420W -C54 Ns FB | Q50: 420 | R50: 113.4 | S50: 172.2 | T50: =R50*S50/10000 -> 1.952748 | U50: 15 | V50: 25 | X50: 3
D51: 300 mm | F51: AFORE Hybrid 6 KW | J51: SUNTECH STP 405W -C54 Um FB | K51: 405 | L51: 113.4 | M51: 172.2 | N51: =Tabell5[[#This Row],[Kolumn3]]*Tabell5[[#This Row],[Kolumn4]]/10000 -> 1.952748 | P51: SUNTECH STP 440S-C54 Nshtb+ G/G | Q51: 440 | R51: 113.4 | S51: 172.2 | T51: 1.952748 | U51: 25 | V51: 30 | X51: 4
F52: AFORE Hybrid 8 KW | J52: SUNWAY 425W-144 FB | K52: 425 | L52: 113.4 | M52: 176.2 | N52: =Tabell5[[#This Row],[Kolumn3]]*Tabell5[[#This Row],[Kolumn4]]/10000 -> 1.998108 | P52: SUNWAY 425W-144 FB | Q52: 425 | R52: 113.4 | S52: 176.2 | T52: 1.998108 | U52: 12 | V52: 25 | X52: 5
F53: AFORE Hybrid 10 KW | J53: SUNTECH STP435S_C54_Nshtb Glas/glas | K53: 435 | L53: 113.4 | M53: 172.2 | N53: =Tabell5[[#This Row],[Kolumn3]]*Tabell5[[#This Row],[Kolumn4]]/10000 -> 1.952748 | P53: SUNTECH STP 405W -C54 Um FB | Q53: 405 | R53: 113.4 | S53: 172.2 | T53: 1.952748 | U53: 15 | V53: 25 | X53: 7
F54: AFORE Hybrid 12 KW | J54: JUST SOLAR 430W, JST-EFMH Glas/glas | K54: 430 | L54: 113.4 | M54: 172.2 | N54: =Tabell5[[#This Row],[Kolumn3]]*Tabell5[[#This Row],[Kolumn4]]/10000 -> 1.952748 | P54: SUNTECH STP435S_C54_Nshtb Glas/glas | Q54: 435 | R54: 113.4 | S54: 172.2 | T54: 1.952748 | U54: 25 | V54: 30 | X54: 10
F55: AFORE Hybrid 15 KW | P55: JUST SOLAR 430W, JST-EFMH Glas/glas | Q55: 430 | R55: 113.4 | S55: 172.2 | T55: 1.952748 | U55: 12 | V55: 30 | X55: 12
F56: AFORE Hybrid 20 KW | P56: JST Panel 310M-60 BB | Q56: 310 | R56: 100 | S56: 160 | T56: 1.6 | X56: 15
F57: AFORE Hybrid 25 KW
F58: AFORE Hybrid 30 KW | J58: Koder | K58: Kolumn1 | L58: Till tabeller | M58: Inv.kostnad | P58: Beräkn tillägg bredd paneler
J59: K | K59: BUTP | L59: =K59 -> BUTP | M59: =IF(Indata!$D$10=K59,Indata!$M$58,0) -> 0 | Q59: Tak 1 | S59: Tak 2
J60: Å | K60: BÅFP | L60: =K60 -> BÅFP | M60: =IF(Indata!$D$10=K60,Indata!$M$52,0) -> 133 | P60: =IF(Variabler!G13>Variabler!E13,Variabler!G13,Variabler!E13) -> 5 | Q60: =(P60+Indata!M34)/100 -> 1.184 | R60: =IF(Variabler!I13>Variabler!E13,Variabler!I13,Variabler!E13) -> 5 | S60: =(R60+Indata!O34)/100 -> 0.05
J61: I | K61: BIKP | L61: =K61 -> BIKP | M61: =IF(Indata!$D$10=K61,Indata!$M$52,0) -> 0 | P61: Beräkning antal paneler
J62: ES | K62: BESP | L62: =K62 -> BESP | M62: =SUM(M59:M61) -> 133 | N62: Kostnad/m2 | P62: Tak 1 | Q62: Tak 2 | S62: Kabel.
P63: Ant panel | Q63: Ant panel
J64: Tilläggsartiklar 0-värde | P64: =SUM(Indata!J17*Indata!K17) -> 0 | Q64: =SUM(Indata!J26*Indata!K26) -> 0
J65: =OR(Anpassning!J17=0,Anpassning!J17=" ",Anpassning!J17="") -> TRUE | K65: =IF(J65=TRUE,0,Anpassning!J17) -> 0 | L65: =OR(Anpassning!O17=0,Anpassning!O17=" ",Anpassning!O17="") -> TRUE | M65: =IF(L65=TRUE,0,Anpassning!O17) -> 0 | N65: =OR(Anpassning!Q26=0,Anpassning!Q26=" ",Anpassning!Q26="") -> TRUE | P65: =SUM(Indata!J18*Indata!K18) -> 0 | Q65: =SUM(Indata!J27*Indata!K27) -> 0
J66: =OR(Anpassning!J18=0,Anpassning!J18=" ",Anpassning!J18="") -> TRUE | K66: =IF(J66=TRUE,0,Anpassning!J18) -> 0 | L66: =OR(Anpassning!O18=0,Anpassning!O18=" ",Anpassning!O18="") -> TRUE | M66: =IF(L66=TRUE,0,Anpassning!O18) -> 0 | N66: =OR(Anpassning!Q27=0,Anpassning!Q27=" ",Anpassning!Q27="") -> TRUE | P66: =SUM(Indata!J19*Indata!K19) -> 0 | Q66: =SUM(Indata!J28*Indata!K28) -> 0
J67: =OR(Anpassning!J19=0,Anpassning!J19=" ",Anpassning!J19="") -> TRUE | K67: =IF(J67=TRUE,0,Anpassning!J19) -> 0 | L67: =OR(Anpassning!O19=0,Anpassning!O19=" ",Anpassning!O19="") -> TRUE | M67: =IF(L67=TRUE,0,Anpassning!O19) -> 0 | N67: =OR(Anpassning!Q28=0,Anpassning!Q28=" ",Anpassning!Q28="") -> TRUE | P67: =SUM(Indata!J20*Indata!K20) -> 0 | Q67: =SUM(Indata!J29*Indata!K29) -> 0
J68: =OR(Anpassning!J20=0,Anpassning!J20=" ",Anpassning!J20="") -> TRUE | K68: =IF(J68=TRUE,0,Anpassning!J20) -> 0 | L68: =OR(Anpassning!O20=0,Anpassning!O20=" ",Anpassning!O20="") -> TRUE | M68: =IF(L68=TRUE,0,Anpassning!O20) -> 0 | N68: =OR(Anpassning!Q29=0,Anpassning!Q29=" ",Anpassning!Q29="") -> TRUE | P68: =SUM(Indata!J21*Indata!K21) -> 0 | Q68: =SUM(Indata!J30*Indata!K30) -> 0
J69: =OR(Anpassning!J21=0,Anpassning!J21=" ",Anpassning!J21="") -> TRUE | K69: =IF(J69=TRUE,0,Anpassning!J21) -> 0 | L69: =OR(Anpassning!O21=0,Anpassning!O21=" ",Anpassning!O21="") -> TRUE | M69: =IF(L69=TRUE,0,Anpassning!O21) -> 0 | N69: =OR(Anpassning!Q30=0,Anpassning!Q30=" ",Anpassning!Q30="") -> TRUE | P69: =SUM(P64:P68) -> 0 | Q69: =SUM(Q64:Q68) -> 0
J71: =OR(Indata!Q37=0,Indata!Q37=" ",Indata!Q37="") -> TRUE | P71: Vid Sant kommer "Grönt Bidrag" upp på Offerten.
J72: =OR(Anpassning!J23=0,Anpassning!J23=" ",Anpassning!J23="") -> TRUE | P72: =AND(Indata!D10="BUTP",Indata!D11="Ja",TRUE) -> FALSE
L73: Tilläggsprodukter antal
L74: =IF(N65=TRUE,0,Anpassning!Q26) -> 0 | M74: =OR(Anpassning!E17=0,Anpassning!E17=" ",Anpassning!E17="") -> TRUE | N74: =IF(M74=TRUE,0,Anpassning!E17) -> 0 | P74: Vid Sant kommer "Rabatt" upp på Offerten.
L75: =IF(N66=TRUE,0,Anpassning!Q27) -> 0 | M75: =OR(Anpassning!E18=0,Anpassning!E18=" ",Anpassning!E18="") -> TRUE | N75: =IF(M75=TRUE,0,Anpassning!E18) -> 0 | P75: =AND(Indata!D10="BUTP",Anpassning!E10<>0,TRUE) -> FALSE
L76: =IF(N67=TRUE,0,Anpassning!Q28) -> 0 | M76: =OR(Anpassning!E19=0,Anpassning!E19=" ",Anpassning!E19="") -> TRUE | N76: =IF(M76=TRUE,0,Anpassning!E19) -> 0
L77: =IF(N68=TRUE,0,Anpassning!Q29) -> 0 | M77: =OR(Anpassning!E20=0,Anpassning!E20=" ",Anpassning!E20="") -> TRUE | N77: =IF(M77=TRUE,0,Anpassning!E20) -> 0
L78: =IF(N69=TRUE,0,Anpassning!Q30) -> 0 | M78: =OR(Anpassning!E21=0,Anpassning!E21=" ",Anpassning!E21="") -> TRUE | N78: =IF(M78=TRUE,0,Anpassning!E21) -> 0
M80: Rotbidrag | O80: =IF(N82=TRUE,1,0) -> 0
K81: 0.2 | L81: Valruta gr.bidr | M81: =Indata!D10 -> BÅFP | O81: =IF(N83=TRUE,1,0) -> 0
L82: Ja | M82: =Indata!D11 -> Ja | N82: =AND(M81="BUTP",M82="Ja",TRUE) -> FALSE | O82: =O80+O81 -> 0
K83: 0.5 | L83: Nej | M83: =Indata!D12 -> 0 | N83: =AND(M81="BUTP",M83="Ja",TRUE) -> FALSE
K85: Förtydliga detta | M85: Arbete 48,5 | N85: =AND(Formler!N82=TRUE,Indata!Q40>0) -> FALSE
L88: Total watt
L89: Tak 1 | M89: =Indata!M33*Indata!D19 -> 0
L90: Tak 2 | M90: =Indata!O33*Indata!D28 -> 0
M91: =SUM(M89:M90) -> 0

Sheet Beräkningar (hidden)
C2: Billma AB Prislistor
C3: Lev.villkor EXW | I3: 1 | K3: Tak nr 1. | L3: =IF(Indata!C15="J",1,"") -> 1 | M3: Mont.typ | N3: =Tabell4[[#Totals],[Tak 1]] -> 5 | V3: Kundtyp | W3: =Formler!X16 -> 3
C4: Moms tillkommer på alla priser | K4: Tak nr 2. | L4: =IF(Indata!C24="J",2,"") ->  | M4: Mont.typ | N4: =Tabell4[[#Totals],[Tak 2]] -> 6 | V4: Rabatt | W4: 0 | X4: ej i bruk
C6: Produkter och detaljer
J7: Justering antal
B8: Ej noll | C8: Artikelnr. | D8: Benämning | E8: Materialtyp | F8: Grönt1 | G8: Grönt2 | H8: Grönt3 | I8: Tak 1 | J8: Tak 2 | K8: Kalkyl | L8: Ändring | M8: Antal | N8: IKP | O8: % ES | P8: ES-pris | Q8: Netto ES | R8: % ÅF | S8: Pris ÅF | T8: Netto ÅF | U8: Pris.gr. | V8: % K | W8: Pris K | X8: Netto kons | Y8: Kolumn5 | Z8: Bruttopris | AA8: Pris efter rabatt | AB8: Totalt pris | AC8: 14,55% | AD8: 48,50%
B9: =IF(M9<1,"",MAX(B$1:B8)+1) ->  | C9: 1010001-005 | D9: AFORE Växelriktare 5,0 KW | E9: 1 | F9: 0 | G9: =IF(Indata!$D$11="Ja",19.37,0) -> 19.37 | H9: =Tabell8[[#This Row],[Grönt1]]+G9 -> 19.37 | K9: =Formler!Q3+Formler!S3 -> 0 | L9: ='Ändringar-Kompletteringar'!E8 -> 0 | M9: =Tabell8[[#This Row],[Kalkyl]]+Tabell8[[#This Row],[Ändring]] -> 0 | N9: 6315 | P9: 9598.8 | Q9: =P9-N9 -> 3283.8 | S9: 10483 | T9: =S9-N9 -> 4168 | U9: 5 | V9: =IF(Indata!$D$10="BUTP",Anpassning!$E$5+Beräkningar!$I$3,$I$3) -> 1 | W9: =Tabell8[[#This Row],[Pris ÅF]]*Tabell8[[#This Row],[% K]] -> 10483 | X9: =W9-N9 -> 4168 | Y9: =IFERROR(IF($W$3=1,Tabell8[[#This Row],[IKP]],IF($W$3=2,Tabell8[[#This Row],[ES-pris]],IF($W$3=3,Tabell8[[#This Row],[Pris ÅF]],IF($W$3=4,Tabell8[[#This Row],[Pris K]])))),) -> 10483 | Z9: =Tabell8[[#This Row],[Antal]]*Tabell8[[#This Row],[Kolumn5]] -> 0 | AA9: =Y9+(Y9*$W$4/100) -> 10483 | AB9: =Tabell8[[#This Row],[Antal]]*Tabell8[[#This Row],[Pris efter rabatt]] -> 0 | AC9: =IF(Tabell8[[#This Row],[Grönt2]]=19.37,Tabell8[[#This Row],[Totalt pris]],0) -> 0 | AD9: =IF(Tabell8[[#This Row],[Grönt1]]=48.5,Tabell8[[#This Row],[Totalt pris]],0) -> 0
B10: =IF(M10<1,"",MAX(B$1:B9)+1) ->  | C10: 1010001-006 | D10: AFORE Växelriktare 6,0 KW | E10: 1 | F10: 0 | G10: =IF(Indata!$D$11="Ja",19.37,0) -> 19.37 | H10: =Tabell8[[#This Row],[Grönt1]]+G10 -> 19.37 | K10: =Formler!Q4+Formler!S4 -> 0 | L10: ='Ändringar-Kompletteringar'!E9 -> 0 | M10: =Tabell8[[#This Row],[Kalkyl]]+Tabell8[[#This Row],[Ändring]] -> 0 | N10: 6734 | P10: 10168.34 | Q10: =P10-N10 -> 3434.34 | S10: 11179 | T10: =S10-N10 -> 4445 | U10: 5 | V10: =IF(Indata!$D$10="BUTP",Anpassning!$E$5+Beräkningar!$I$3,$I$3) -> 1 | W10: =Tabell8[[#This Row],[Pris ÅF]]*Tabell8[[#This Row],[% K]] -> 11179 | X10: =W10-N10 -> 4445 | Y10: =IFERROR(IF($W$3=1,Tabell8[[#This Row],[IKP]],IF($W$3=2,Tabell8[[#This Row],[ES-pris]],IF($W$3=3,Tabell8[[#This Row],[Pris ÅF]],IF($W$3=4,Tabell8[[#This Row],[Pris K]])))),) -> 11179 | Z10: =Tabell8[[#This Row],[Antal]]*Tabell8[[#This Row],[Kolumn5]] -> 0 | AA10: 11179 | AB10: =Tabell8[[#This Row],[Antal]]*Tabell8[[#This Row],[Pris efter rabatt]] -> 0 | AC10: =IF(Tabell8[[#This Row],[Grönt2]]=19.37,Tabell8[[#This Row],[Totalt pris]],0) -> 0 | AD10: =IF(Tabell8[[#This Row],[Grönt1]]=48.5,Tabell8[[#This Row],[Totalt pris]],0) -> 0
B11: =IF(M11<1,"",MAX(B$1:B10)+1) ->  | C11: 1010001-008 | D11: AFORE Växelriktare 8,0 KW | E11: 1 | F11: 0 | G11: =IF(Indata!$D$11="Ja",19.37,0) -> 19.37 | H11: =Tabell8[[#This Row],[Grönt1]]+G11 -> 19.37 | K11: =Formler!Q5+Formler!S5 -> 0 | L11: ='Ändringar-Kompletteringar'!E10 -> 0 | M11: =Tabell8[[#This Row],[Kalkyl]]+Tabell8[[#This Row],[Ändring]] -> 0 | N11: 6901 | P11: 10351.5 | Q11: =P11-N11 -> 3450.5 | S11: 11456 | T11: =S11-N11 -> 4555 | U11: 5 | V11: =IF(Indata!$D$10="BUTP",Anpassning!$E$5+Beräkningar!$I$3,$I$3) -> 1 | W11: =Tabell8[[#This Row],[Pris ÅF]]*Tabell8[[#This Row],[% K]] -> 11456 | X11: =W11-N11 -> 4555 | Y11: =IFERROR(IF($W$3=1,Tabell8[[#This Row],[IKP]],IF($W$3=2,Tabell8[[#This Row],[ES-pris]],IF($W$3=3,Tabell8[[#This Row],[Pris ÅF]],IF($W$3=4,Tabell8[[#This Row],[Pris K]])))),) -> 11456 | Z11: =Tabell8[[#This Row],[Antal]]*Tabell8[[#This Row],[Kolumn5]] -> 0 | AA11: 11456 | AB11: =Tabell8[[#This Row],[Antal]]*Tabell8[[#This Row],[Pris efter rabatt]] -> 0 | AC11: =IF(Tabell8[[#This Row],[Grönt2]]=19.37,Tabell8[[#This Row],[Totalt pris]],0) -> 0 | AD11: =IF(Tabell8[[#This Row],[Grönt1]]=48.5,Tabell8[[#This Row],[Totalt pris]],0) -> 0
B12: =IF(M12<1,"",MAX(B$1:B11)+1) ->  | C12: 1010001-010 | D12: AFORE Växelriktare 10,0 KW | E12: 1 | F12: 0 | G12: =IF(Indata!$D$11="Ja",19.37,0) -> 19.37 | H12: =Tabell8[[#This Row],[Grönt1]]+G12 -> 19.37 | K12: =Formler!Q6+Formler!S6 -> 0 | L12: ='Ändringar-Kompletteringar'!E11 -> 0 | M12: =Tabell8[[#This Row],[Kalkyl]]+Tabell8[[#This Row],[Ändring]] -> 0 | N12: 7257 | P12: 10812.93 | Q12: =P12-N12 -> 3555.93 | S12: 12047 | T12: =S12-N12 -> 4790 | U12: 5 | V12: =IF(Indata!$D$10="BUTP",Anpassning!$E$5+Beräkningar!$I$3,$I$3) -> 1 | W12: =Tabell8[[#This Row],[Pris ÅF]]*Tabell8[[#This Row],[% K]] -> 12047 | X12: =W12-N12 -> 4790 | Y12: =IFERROR(IF($W$3=1,Tabell8[[#This Row],[IKP]],IF($W$3=2,Tabell8[[#This Row],[ES-pris]],IF($W$3=3,Tabell8[[#This Row],[Pris ÅF]],IF($W$3=4,Tabell8[[#This Row],[Pris K]])))),) -> 12047 | Z12: =Tabell8[[#This Row],[Antal]]*Tabell8[[#This Row],[Kolumn5]] -> 0 | AA12: 12047 | AB12: =Tabell8[[#This Row],[Antal]]*Tabell8[[#This Row],[Pris efter rabatt]] -> 0 | AC12: =IF(Tabell8[[#This Row],[Grönt2]]=19.37,Tabell8[[#This Row],[Totalt pris]],0) -> 0 | AD12: =IF(Tabell8[[#This Row],[Grönt1]]=48.5,Tabell8[[#This Row],[Totalt pris]],0) -> 0
B13: =IF(M13<1,"",MAX(B$1:B12)+1) ->  | C13: 1010001-012 | D13: AFORE Växelriktare 12,0 KW | E13: 1 | F13: 0 | G13: =IF(Indata!$D$11="Ja",19.37,0) -> 19.37 | H13: =Tabell8[[#This Row],[Grönt1]]+G13 -> 19.37 | K13: =Formler!Q7+Formler!S7 -> 0 | L13: ='Ändringar-Kompletteringar'!E12 -> 0 | M13: =Tabell8[[#This Row],[Kalkyl]]+Tabell8[[#This Row],[Ändring]] -> 0 | N13: 7613 | P13: 11267.24 | Q13: =P13-N13 -> 3654.24 | S13: 12561 | T13: =S13-N13 -> 4948 | U13: 5 | V13: =IF(Indata!$D$10="BUTP",Anpassning!$E$5+Beräkningar!$I$3,$I$3) -> 1 | W13: =Tabell8[[#This Row],[Pris ÅF]]*Tabell8[[#This Row],[% K]] -> 12561 | X13: =W13-N13 -> 4948 | Y13: =IFERROR(IF($W$3=1,Tabell8[[#This Row],[IKP]],IF($W$3=2,Tabell8[[#This Row],[ES-pris]],IF($W$3=3,Tabell8[[#This Row],[Pris ÅF]],IF($W$3=4,Tabell8[[#This Row],[Pris K]])))),) -> 12561 | Z13: =Tabell8[[#This Row],[Antal]]*Tabell8[[#This Row],[Kolumn5]] -> 0 | AA13: 12561 | AB13: =Tabell8[[#This Row],[Antal]]*Tabell8[[#This Row],[Pris efter rabatt]] -> 0 | AC13: =IF(Tabell8[[#This Row],[Grönt2]]=19.37,Tabell8[[#This Row],[Totalt pris]],0) -> 0 | AD13: =IF(Tabell8[[#This Row],[Grönt1]]=48.5,Tabell8[[#This Row],[Totalt pris]],0) -> 0
B14: =IF(M14<1,"",MAX(B$1:B13)+1) ->  | C14: 1010001-015 | D14: AFORE Växelriktare 15,0 KW | E14: 1 | F14: 0 | G14: =IF(Indata!$D$11="Ja",19.37,0) -> 19.37 | H14: =Tabell8[[#This Row],[Grönt1]]+G14 -> 19.37 | K14: =Formler!Q8+Formler!S8 -> 0 | L14: ='Ändringar-Kompletteringar'!E13 -> 0 | M14: =Tabell8[[#This Row],[Kalkyl]]+Tabell8[[#This Row],[Ändring]] -> 0 | N14: 8058 | P14: 11845.26 | Q14: =P14-N14 -> 3787.26 | S14: 13215 | T14: =S14-N14 -> 5157 | U14: 5 | V14: =IF(Indata!$D$10="BUTP",Anpassning!$E$5+Beräkningar!$I$3,$I$3) -> 1 | W14: =Tabell8[[#This Row],[Pris ÅF]]*Tabell8[[#This Row],[% K]] -> 13215 | X14: =W14-N14 -> 5157 | Y14: =IFERROR(IF($W$3=1,Tabell8[[#This Row],[IKP]],IF($W$3=2,Tabell8[[#This Row],[ES-pris]],IF($W$3=3,Tabell8[[#This Row],[Pris ÅF]],IF($W$3=4,Tabell8[[#This Row],[Pris K]])))),) -> 13215 | Z14: =Tabell8[[#This Row],[Antal]]*Tabell8[[#This Row],[Kolumn5]] -> 0 | AA14: 13215 | AB14: =Tabell8[[#This Row],[Antal]]*Tabell8[[#This Row],[Pris efter rabatt]] -> 0 | AC14: =IF(Tabell8[[#This Row],[Grönt2]]=19.37,Tabell8[[#This Row],[Totalt pris]],0) -> 0 | AD14: =IF(Tabell8[[#This Row],[Grönt1]]=48.5,Tabell8[[#This Row],[Totalt pris]],0) -> 0
B15: =IF(M15<1,"",MAX(B$1:B14)+1) ->  | C15: 1010001-017 | D15: AFORE Växelriktare 17,0 KW | E15: 1 | F15: 0 | G15: =IF(Indata!$D$11="Ja",19.37,0) -> 19.37 | H15: =Tabell8[[#This Row],[Grönt1]]+G15 -> 19.37 | K15: =Formler!Q9+Formler!S9 -> 0 | L15: ='Ändringar-Kompletteringar'!E14 -> 0 | M15: =Tabell8[[#This Row],[Kalkyl]]+Tabell8[[#This Row],[Ändring]] -> 0 | N15: 9316 | P15: 13601.36 | Q15: =P15-N15 -> 4285.36 | S15: 15092 | T15: =S15-N15 -> 5776 | U15: 5 | V15: =IF(Indata!$D$10="BUTP",Anpassning!$E$5+Beräkningar!$I$3,$I$3) -> 1 | W15: =Tabell8[[#This Row],[Pris ÅF]]*Tabell8[[#This Row],[% K]] -> 15092 | X15: =W15-N15 -> 5776 | Y15: =IFERROR(IF($W$3=1,Tabell8[[#This Row],[IKP]],IF($W$3=2,Tabell8[[#This Row],[ES-pris]],IF($W$3=3,Tabell8[[#This Row],[Pris ÅF]],IF($W$3=4,Tabell8[[#This Row],[Pris K]])))),) -> 15092 | Z15: =Tabell8[[#This Row],[Antal]]*Tabell8[[#This Row],[Kolumn5]] -> 0 | AA15: 15092 | AB15: =Tabell8[[#This Row],[Antal]]*Tabell8[[#This Row],[Pris efter rabatt]] -> 0 | AC15: =IF(Tabell8[[#This Row],[Grönt2]]=19.37,Tabell8[[#This Row],[Totalt pris]],0) -> 0 | AD15: =IF(Tabell8[[#This Row],[Grönt1]]=48.5,Tabell8[[#This Row],[Totalt pris]],0) -> 0
B16: =IF(M16<1,"",MAX(B$1:B15)+1) ->  | C16: 1010001-020 | D16: AFORE Växelriktare 20,0 KW | E16: 1 | F16: 0 | G16: =IF(Indata!$D$11="Ja",19.37,0) -> 19.37 | H16: =Tabell8[[#This Row],[Grönt1]]+G16 -> 19.37 | K16: =Formler!Q10+Formler!S10 -> 0 | L16: ='Ändringar-Kompletteringar'!E15 -> 0 | M16: =Tabell8[[#This Row],[Kalkyl]]+Tabell8[[#This Row],[Ändring]] -> 0 | N16: 9916 | P16: 14378.2 | Q16: =P16-N16 -> 4462.2 | S16: 16014 | T16: =S16-N16 -> 6098 | U16: 5 | V16: =IF(Indata!$D$10="BUTP",Anpassning!$E$5+Beräkningar!$I$3,$I$3) -> 1 | W16: =Tabell8[[#This Row],[Pris ÅF]]*Tabell8[[#This Row],[% K]] -> 16014 | X16: =W16-N16 -> 6098 | Y16: =IFERROR(IF($W$3=1,Tabell8[[#This Row],[IKP]],IF($W$3=2,Tabell8[[#This Row],[ES-pris]],IF($W$3=3,Tabell8[[#This Row],[Pris ÅF]],IF($W$3=4,Tabell8[[#This Row],[Pris K]])))),) -> 16014 | Z16: =Tabell8[[#This Row],[Antal]]*Tabell8[[#This Row],[Kolumn5]] -> 0 | AA16: 16014 | AB16: =Tabell8[[#This Row],[Antal]]*Tabell8[[#This Row],[Pris efter rabatt]] -> 0 | AC16: =IF(Tabell8[[#This Row],[Grönt2]]=19.37,Tabell8[[#This Row],[Totalt pris]],0) -> 0 | AD16: =IF(Tabell8[[#This Row],[Grönt1]]=48.5,Tabell8[[#This Row],[Totalt pris]],0) -> 0
B17: =IF(M17<1,"",MAX(B$1:B16)+1) ->  | C17: 1010001-025 | D17: AFORE Växelriktare 25,0 KW | E17: 1 | F17: 0 | G17: =IF(Indata!$D$11="Ja",19.37,0) -> 19.37 | H17: =Tabell8[[#This Row],[Grönt1]]+G17 -> 19.37 | K17: =Formler!Q11+Formler!S11 -> 0 | L17: ='Ändringar-Kompletteringar'!E16 -> 0 | M17: =Tabell8[[#This Row],[Kalkyl]]+Tabell8[[#This Row],[Ändring]] -> 0 | N17: 11019 | P17: 15867.36 | Q17: =P17-N17 -> 4848.36 | S17: 17355 | T17: =S17-N17 -> 6336 | U17: 5 | V17: =IF(Indata!$D$10="BUTP",Anpassning!$E$5+Beräkningar!$I$3,$I$3) -> 1 | W17: =Tabell8[[#This Row],[Pris ÅF]]*Tabell8[[#This Row],[% K]] -> 17355 | X17: =W17-N17 -> 6336 | Y17: =IFERROR(IF($W$3=1,Tabell8[[#This Row],[IKP]],IF($W$3=2,Tabell8[[#This Row],[ES-pris]],IF($W$3=3,Tabell8[[#This Row],[Pris ÅF]],IF($W$3=4,Tabell8[[#This Row],[Pris K]])))),) -> 17355 | Z17: =Tabell8[[#This Row],[Antal]]*Tabell8[[#This Row],[Kolumn5]] -> 0 | AA17: 17355 | AB17: =Tabell8[[#This Row],[Antal]]*Tabell8[[#This Row],[Pris efter rabatt]] -> 0 | AC17: =IF(Tabell8[[#This Row],[Grönt2]]=19.37,Tabell8[[#This Row],[Totalt pris]],0) -> 0 | AD17: =IF(Tabell8[[#This Row],[Grönt1]]=48.5,Tabell8[[#This Row],[Totalt pris]],0) -> 0
B18: =IF(M18<1,"",MAX(B$1:B17)+1) ->  | C18: 1010001-030 | D18: AFORE Växelriktare 30,0 KW | E18: 1 | F18: 0 | G18: =IF(Indata!$D$11="Ja",19.37,0) -> 19.37 | H18: =Tabell8[[#This Row],[Grönt1]]+G18 -> 19.37 | K18: =Formler!Q12+Formler!S12 -> 0 | L18: ='Ändringar-Kompletteringar'!E17 -> 0 | M18: =Tabell8[[#This Row],[Kalkyl]]+Tabell8[[#This Row],[Ändring]] -> 0 | N18: 13913 | P18: 19895.59 | Q18: =P18-N18 -> 5982.59 | S18: 21426 | T18: =S18-N18 -> 7513 | U18: 5 | V18: =IF(Indata!$D$10="BUTP",Anpassning!$E$5+Beräkningar!$I$3,$I$3) -> 1 | W18: =Tabell8[[#This Row],[Pris ÅF]]*Tabell8[[#This Row],[% K]] -> 21426 | X18: =W18-N18 -> 7513 | Y18: =IFERROR(IF($W$3=1,Tabell8[[#This Row],[IKP]],IF($W$3=2,Tabell8[[#This Row],[ES-pris]],IF($W$3=3,Tabell8[[#This Row],[Pris ÅF]],IF($W$3=4,Tabell8[[#This Row],[Pris K]])))),) -> 21426 | Z18: =Tabell8[[#This Row],[Antal]]*Tabell8[[#This Row],[Kolumn5]] -> 0 | AA18: 21426 | AB18: =Tabell8[[#This Row],[Antal]]*Tabell8[[#This Row],[Pris efter rabatt]] -> 0 | AC18: =IF(Tabell8[[#This Row],[Grönt2]]=19.37,Tabell8[[#This Row],[Totalt pris]],0) -> 0 | AD18: =IF(Tabell8[[#This Row],[Grönt1]]=48.5,Tabell8[[#This Row],[Totalt pris]],0) -> 0
B19: =IF(M19<1,"",MAX(B$1:B18)+1) ->  | C19: 1010001-036 | D19: AFORE Växelriktare 36,0 KW | E19: 1 | F19: 0 | G19: =IF(Indata!$D$11="Ja",19.37,0) -> 19.37 | H19: =Tabell8[[#This Row],[Grönt1]]+G19 -> 19.37 | K19: 0 | L19: ='Ändringar-Kompletteringar'!E18 -> 0 | M19: =Tabell8[[#This Row],[Kalkyl]]+Tabell8[[#This Row],[Ändring]] -> 0 | N19: 0 | P19: 0 | Q19: =P19-N19 -> 0 | S19: 0 | T19: =S19-N19 -> 0 | U19: 5 | V19: =IF(Indata!$D$10="BUTP",Anpassning!$E$5+Beräkningar!$I$3,$I$3) -> 1 | W19: =Tabell8[[#This Row],[Pris ÅF]]*Tabell8[[#This Row],[% K]] -> 0 | X19: =W19-N19 -> 0 | Y19: =IFERROR(IF($W$3=1,Tabell8[[#This Row],[IKP]],IF($W$3=2,Tabell8[[#This Row],[ES-pris]],IF($W$3=3,Tabell8[[#This Row],[Pris ÅF]],IF($W$3=4,Tabell8[[#This Row],[Pris K]])))),) -> 0 | Z19: =Tabell8[[#This Row],[Antal]]*Tabell8[[#This Row],[Kolumn5]] -> 0 | AA19: 0 | AB19: =Tabell8[[#This Row],[Antal]]*Tabell8[[#This Row],[Pris efter rabatt]] -> 0 | AC19: =IF(Tabell8[[#This Row],[Grönt2]]=19.37,Tabell8[[#This Row],[Totalt pris]],0) -> 0 | AD19: =IF(Tabell8[[#This Row],[Grönt1]]=48.5,Tabell8[[#This Row],[Totalt pris]],0) -> 0
B20: =IF(M20<1,"",MAX(B$1:B19)+1) ->  | C20: 1010001-040 | D20: AFORE Växelriktare 40,0 KW | E20: 1 | F20: 0 | G20: =IF(Indata!$D$11="Ja",19.37,0) -> 19.37 | H20: =Tabell8[[#This Row],[Grönt1]]+G20 -> 19.37 | K20: =Formler!Q13+Formler!S13 -> 0 | L20: ='Ändringar-Kompletteringar'!E19 -> 0 | M20: =Tabell8[[#This Row],[Kalkyl]]+Tabell8[[#This Row],[Ändring]] -> 0 | N20: 16093 | P20: 22691.13 | Q20: =P20-N20 -> 6598.13 | S20: 24300 | T20: =S20-N20 -> 8207 | U20: 5 | V20: =IF(Indata!$D$10="BUTP",Anpassning!$E$5+Beräkningar!$I$3,$I$3) -> 1 | W20: =Tabell8[[#This Row],[Pris ÅF]]*Tabell8[[#This Row],[% K]] -> 24300 | X20: =W20-N20 -> 8207 | Y20: =IFERROR(IF($W$3=1,Tabell8[[#This Row],[IKP]],IF($W$3=2,Tabell8[[#This Row],[ES-pris]],IF($W$3=3,Tabell8[[#This Row],[Pris ÅF]],IF($W$3=4,Tabell8[[#This Row],[Pris K]])))),) -> 24300 | Z20: =Tabell8[[#This Row],[Antal]]*Tabell8[[#This Row],[Kolumn5]] -> 0 | AA20: 24300 | AB20: =Tabell8[[#This Row],[Antal]]*Tabell8[[#This Row],[Pris efter rabatt]] -> 0 | AC20: =IF(Tabell8[[#This Row],[Grönt2]]=19.37,Tabell8[[#This Row],[Totalt pris]],0) -> 0 | AD20: =IF(Tabell8[[#This Row],[Grönt1]]=48.5,Tabell8[[#This Row],[Totalt pris]],0) -> 0
B21: =IF(M21<1,"",MAX(B$1:B20)+1) ->  | C21: 1010001-050 | D21: AFORE Växelriktare 50,0 KW | E21: 1 | F21: 0 | G21: =IF(Indata!$D$11="Ja",19.37,0) -> 19.37 | H21: =Tabell8[[#This Row],[Grönt1]]+G21 -> 19.37 | K21: =Formler!Q14+Formler!S14 -> 0 | L21: ='Ändringar-Kompletteringar'!E20 -> 0 | M21: =Tabell8[[#This Row],[Kalkyl]]+Tabell8[[#This Row],[Ändring]] -> 0 | N21: 16885 | P21: 23639 | Q21: =P21-N21 -> 6754 | S21: 25327 | T21: =S21-N21 -> 8442 | U21: 5 | V21: =IF(Indata!$D$10="BUTP",Anpassning!$E$5+Beräkningar!$I$3,$I$3) -> 1 | W21: =Tabell8[[#This Row],[Pris ÅF]]*Tabell8[[#This Row],[% K]] -> 25327 | X21: =W21-N21 -> 8442 | Y21: =IFERROR(IF($W$3=1,Tabell8[[#This Row],[IKP]],IF($W$3=2,Tabell8[[#This Row],[ES-pris]],IF($W$3=3,Tabell8[[#This Row],[Pris ÅF]],IF($W$3=4,Tabell8[[#This Row],[Pris K]])))),) -> 25327 | Z21: =Tabell8[[#This Row],[Antal]]*Tabell8[[#This Row],[Kolumn5]] -> 0 | AA21: 25327 | AB21: =Tabell8[[#This Row],[Antal]]*Tabell8[[#This Row],[Pris efter rabatt]] -> 0 | AC21: =IF(Tabell8[[#This Row],[Grönt2]]=19.37,Tabell8[[#This Row],[Totalt pris]],0) -> 0 | AD21: =IF(Tabell8[[#This Row],[Grönt1]]=48.5,Tabell8[[#This Row],[Totalt pris]],0) -> 0
B22: =IF(M22<1,"",MAX(B$1:B21)+1) ->  | C22: 1010001-060 | D22: AFORE Växelriktare 60,0 KW | E22: 1 | F22: 0 | G22: =IF(Indata!$D$11="Ja",19.37,0) -> 19.37 | H22: =Tabell8[[#This Row],[Grönt1]]+G22 -> 19.37 | K22: =Formler!Q15+Formler!S15 -> 0 | L22: ='Ändringar-Kompletteringar'!E21 -> 0 | M22: =Tabell8[[#This Row],[Kalkyl]]+Tabell8[[#This Row],[Ändring]] -> 0 | N22: 17380 | P22: 24158.2 | Q22: =P22-N22 -> 6778.2 | S22: 25722 | T22: =S22-N22 -> 8342 | U22: 5 | V22: =IF(Indata!$D$10="BUTP",Anpassning!$E$5+Beräkningar!$I$3,$I$3) -> 1 | W22: =Tabell8[[#This Row],[Pris ÅF]]*Tabell8[[#This Row],[% K]] -> 25722 | X22: =W22-N22 -> 8342 | Y22: =IFERROR(IF($W$3=1,Tabell8[[#This Row],[IKP]],IF($W$3=2,Tabell8[[#This Row],[ES-pris]],IF($W$3=3,Tabell8[[#This Row],[Pris ÅF]],IF($W$3=4,Tabell8[[#This Row],[Pris K]])))),) -> 25722 | Z22: =Tabell8[[#This Row],[Antal]]*Tabell8[[#This Row],[Kolumn5]] -> 0 | AA22: 25722 | AB22: =Tabell8[[#This Row],[Antal]]*Tabell8[[#This Row],[Pris efter rabatt]] -> 0 | AC22: =IF(Tabell8[[#This Row],[Grönt2]]=19.37,Tabell8[[#This Row],[Totalt pris]],0) -> 0 | AD22: =IF(Tabell8[[#This Row],[Grönt1]]=48.5,Tabell8[[#This Row],[Totalt pris]],0) -> 0
B23: =IF(M23<1,"",MAX(B$1:B22)+1) ->  | C23: 1089001-907 | D23: AFORE Ethernet Monitor | E23: 1 | F23: =IF(Formler!$J$45=TRUE,48.5,0) -> 0 | G23: =IF(Formler!$J$46=TRUE,19.37,0) -> 19.37 | H23: =Tabell8[[#This Row],[Grönt1]]+G23 -> 19.37 | K23: 0 | L23: ='Ändringar-Kompletteringar'!E22 -> 0 | M23: =Tabell8[[#This Row],[Kalkyl]]+Tabell8[[#This Row],[Ändring]] -> 0 | N23: 250 | P23: 350 | Q23: =P23-N23 -> 100 | S23: 370 | T23: =S23-N23 -> 120 | U23: 9 | V23: =IF(Indata!$D$10="BUTP",Anpassning!$E$9+Beräkningar!$I$3,$I$3) -> 1 | W23: =Tabell8[[#This Row],[Pris ÅF]]*Tabell8[[#This Row],[% K]] -> 370 | X23: =W23-N23 -> 120 | Y23: =IFERROR(IF($W$3=1,Tabell8[[#This Row],[IKP]],IF($W$3=2,Tabell8[[#This Row],[ES-pris]],IF($W$3=3,Tabell8[[#This Row],[Pris ÅF]],IF($W$3=4,Tabell8[[#This Row],[Pris K]])))),) -> 370 | Z23: =Tabell8[[#This Row],[Antal]]*Tabell8[[#This Row],[Kolumn5]] -> 0 | AA23: 370 | AB23: =Tabell8[[#This Row],[Antal]]*Tabell8[[#This Row],[Pris efter rabatt]] -> 0 | AC23: =IF(Tabell8[[#This Row],[Grönt2]]=19.37,Tabell8[[#This Row],[Totalt pris]],0) -> 0 | AD23: =IF(Tabell8[[#This Row],[Grönt1]]=48.5,Tabell8[[#This Row],[Totalt pris]],0) -> 0
B24: =IF(M24<1,"",MAX(B$1:B23)+1) ->  | C24: 1088001-130 | D24: AFORE Smartmeter Trefas 130KW | E24: 1 | F24: =IF(Formler!$J$45=TRUE,48.5,0) -> 0 | G24: =IF(Formler!$J$46=TRUE,19.37,0) -> 19.37 | H24: =Tabell8[[#This Row],[Grönt1]]+G24 -> 19.37 | K24: 0 | L24: ='Ändringar-Kompletteringar'!E23 -> 0 | M24: =Tabell8[[#This Row],[Kalkyl]]+Tabell8[[#This Row],[Ändring]] -> 0 | N24: 1475 | P24: 2390 | Q24: =P24-N24 -> 915 | S24: 2517 | T24: =S24-N24 -> 1042 | U24: 9 | V24: =IF(Indata!$D$10="BUTP",Anpassning!$E$9+Beräkningar!$I$3,$I$3) -> 1 | W24: =Tabell8[[#This Row],[Pris ÅF]]*Tabell8[[#This Row],[% K]] -> 2517 | X24: =W24-N24 -> 1042 | Y24: =IFERROR(IF($W$3=1,Tabell8[[#This Row],[IKP]],IF($W$3=2,Tabell8[[#This Row],[ES-pris]],IF($W$3=3,Tabell8[[#This Row],[Pris ÅF]],IF($W$3=4,Tabell8[[#This Row],[Pris K]])))),) -> 2517 | Z24: =Tabell8[[#This Row],[Antal]]*Tabell8[[#This Row],[Kolumn5]] -> 0 | AA24: 2517 | AB24: =Tabell8[[#This Row],[Antal]]*Tabell8[[#This Row],[Pris efter rabatt]] -> 0 | AC24: =IF(Tabell8[[#This Row],[Grönt2]]=19.37,Tabell8[[#This Row],[Totalt pris]],0) -> 0 | AD24: =IF(Tabell8[[#This Row],[Grönt1]]=48.5,Tabell8[[#This Row],[Totalt pris]],0) -> 0 | AE24: x
B25: =IF(M25<1,"",MAX(B$1:B24)+1) ->  | C25: 1088001-050 | D25: AFORE Smartmeter Trefas 50KW | E25: 1 | F25: =IF(Formler!$J$45=TRUE,48.5,0) -> 0 | G25: =IF(Formler!$J$46=TRUE,19.37,0) -> 19.37 | H25: =Tabell8[[#This Row],[Grönt1]]+G25 -> 19.37 | K25: 0 | L25: ='Ändringar-Kompletteringar'!E24 -> 0 | M25: =Tabell8[[#This Row],[Kalkyl]]+Tabell8[[#This Row],[Ändring]] -> 0 | N25: 1260 | P25: 1700 | Q25: =P25-N25 -> 440 | S25: 1770 | T25: =S25-N25 -> 510 | U25: 9 | V25: =IF(Indata!$D$10="BUTP",Anpassning!$E$9+Beräkningar!$I$3,$I$3) -> 1 | W25: =Tabell8[[#This Row],[Pris ÅF]]*Tabell8[[#This Row],[% K]] -> 1770 | X25: =W25-N25 -> 510 | Y25: =IFERROR(IF($W$3=1,Tabell8[[#This Row],[IKP]],IF($W$3=2,Tabell8[[#This Row],[ES-pris]],IF($W$3=3,Tabell8[[#This Row],[Pris ÅF]],IF($W$3=4,Tabell8[[#This Row],[Pris K]])))),) -> 1770 | Z25: =Tabell8[[#This Row],[Antal]]*Tabell8[[#This Row],[Kolumn5]] -> 0 | AA25: 1770 | AB25: =Tabell8[[#This Row],[Antal]]*Tabell8[[#This Row],[Pris efter rabatt]] -> 0 | AC25: =IF(Tabell8[[#This Row],[Grönt2]]=19.37,Tabell8[[#This Row],[Totalt pris]],0) -> 0 | AD25: =IF(Tabell8[[#This Row],[Grönt1]]=48.5,Tabell8[[#This Row],[Totalt pris]],0) -> 0 | AE25: x
B26: =IF(M26<1,"",MAX(B$1:B25)+1) ->  | C26: 1015001-006 | D26: AFORE Växelriktare Hybrid 6 KW | E26: 1 | F26: =IF(Formler!$J$45=TRUE,48.5,0) -> 0 | G26: =IF(Formler!$J$46=TRUE,19.37,0) -> 19.37 | H26: =Tabell8[[#This Row],[Grönt1]]+G26 -> 19.37 | K26: =IF(Indata!M39=Formler!F51,Indata!Q39,0) -> 0 | L26: ='Ändringar-Kompletteringar'!E25 -> 0 | M26: =Tabell8[[#This Row],[Kalkyl]]+Tabell8[[#This Row],[Ändring]] -> 0 | N26: 12516 | P26: 16771 | Q26: =P26-N26 -> 4255 | S26: 17289 | T26: =S26-N26 -> 4773 | U26: 5 | V26: =IF(Indata!$D$10="BUTP",Anpassning!$E$5+Beräkningar!$I$3,$I$3) -> 1 | W26: =Tabell8[[#This Row],[Pris ÅF]]*Tabell8[[#This Row],[% K]] -> 17289 | X26: =W26-N26 -> 4773 | Y26: =IFERROR(IF($W$3=1,Tabell8[[#This Row],[IKP]],IF($W$3=2,Tabell8[[#This Row],[ES-pris]],IF($W$3=3,Tabell8[[#This Row],[Pris ÅF]],IF($W$3=4,Tabell8[[#This Row],[Pris K]])))),) -> 17289 | Z26: =Tabell8[[#This Row],[Antal]]*Tabell8[[#This Row],[Kolumn5]] -> 0 | AA26: 17289 | AB26: =Tabell8[[#This Row],[Antal]]*Tabell8[[#This Row],[Pris efter rabatt]] -> 0 | AC26: =IF(Tabell8[[#This Row],[Grönt2]]=19.37,Tabell8[[#This Row],[Totalt pris]],0) -> 0 | AD26: =IF(Tabell8[[#This Row],[Grönt1]]=48.5,Tabell8[[#This Row],[Totalt pris]],0) -> 0 | AE26: x
B27: =IF(M27<1,"",MAX(B$1:B26)+1) ->  | C27: 1015001-008 | D27: AFORE Växelriktare Hybrid 8 KW | E27: 1 | F27: =IF(Formler!$J$45=TRUE,48.5,0) -> 0 | G27: =IF(Formler!$J$46=TRUE,19.37,0) -> 19.37 | H27: =Tabell8[[#This Row],[Grönt1]]+G27 -> 19.37 | K27: =IF(Indata!M39=Formler!F52,Indata!Q39,0) -> 0 | L27: ='Ändringar-Kompletteringar'!E26 -> 0 | M27: =Tabell8[[#This Row],[Kalkyl]]+Tabell8[[#This Row],[Ändring]] -> 0 | N27: 13062 | P27: 17634 | Q27: =P27-N27 -> 4572 | S27: 18212 | T27: =S27-N27 -> 5150 | U27: 5 | V27: =IF(Indata!$D$10="BUTP",Anpassning!$E$5+Beräkningar!$I$3,$I$3) -> 1 | W27: =Tabell8[[#This Row],[Pris ÅF]]*Tabell8[[#This Row],[% K]] -> 18212 | X27: =W27-N27 -> 5150 | Y27: =IFERROR(IF($W$3=1,Tabell8[[#This Row],[IKP]],IF($W$3=2,Tabell8[[#This Row],[ES-pris]],IF($W$3=3,Tabell8[[#This Row],[Pris ÅF]],IF($W$3=4,Tabell8[[#This Row],[Pris K]])))),) -> 18212 | Z27: =Tabell8[[#This Row],[Antal]]*Tabell8[[#This Row],[Kolumn5]] -> 0 | AA27: 18212 | AB27: =Tabell8[[#This Row],[Antal]]*Tabell8[[#This Row],[Pris efter rabatt]] -> 0 | AC27: =IF(Tabell8[[#This Row],[Grönt2]]=19.37,Tabell8[[#This Row],[Totalt pris]],0) -> 0 | AD27: =IF(Tabell8[[#This Row],[Grönt1]]=48.5,Tabell8[[#This Row],[Totalt pris]],0) -> 0 | AE27: x
B28: =IF(M28<1,"",MAX(B$1:B27)+1) ->  | C28: 1015001-010 | D28: AFORE Växelriktare Hybrid 10 KW | E28: 1 | F28: =IF(Formler!$J$45=TRUE,48.5,0) -> 0 | G28: =IF(Formler!$J$46=TRUE,19.37,0) -> 19.37 | H28: =Tabell8[[#This Row],[Grönt1]]+G28 -> 19.37 | K28: =IF(Indata!M39=Formler!F53,Indata!Q39,0) -> 0 | L28: ='Ändringar-Kompletteringar'!E27 -> 0 | M28: =Tabell8[[#This Row],[Kalkyl]]+Tabell8[[#This Row],[Ändring]] -> 0 | N28: 13640 | P28: 18823 | Q28: =P28-N28 -> 5183 | S28: 19096 | T28: =S28-N28 -> 5456 | U28: 5 | V28: =IF(Indata!$D$10="BUTP",Anpassning!$E$5+Beräkningar!$I$3,$I$3) -> 1 | W28: =Tabell8[[#This Row],[Pris ÅF]]*Tabell8[[#This Row],[% K]] -> 19096 | X28: =W28-N28 -> 5456 | Y28: =IFERROR(IF($W$3=1,Tabell8[[#This Row],[IKP]],IF($W$3=2,Tabell8[[#This Row],[ES-pris]],IF($W$3=3,Tabell8[[#This Row],[Pris ÅF]],IF($W$3=4,Tabell8[[#This Row],[Pris K]])))),) -> 19096 | Z28: =Tabell8[[#This Row],[Antal]]*Tabell8[[#This Row],[Kolumn5]] -> 0 | AA28: 19096 | AB28: =Tabell8[[#This Row],[Antal]]*Tabell8[[#This Row],[Pris efter rabatt]] -> 0 | AC28: =IF(Tabell8[[#This Row],[Grönt2]]=19.37,Tabell8[[#This Row],[Totalt pris]],0) -> 0 | AD28: =IF(Tabell8[[#This Row],[Grönt1]]=48.5,Tabell8[[#This Row],[Totalt pris]],0) -> 0 | AE28: x
B29: =IF(M29<1,"",MAX(B$1:B28)+1) ->  | C29: 1015001-012 | D29: AFORE Växelriktare Hybrid 12 KW | E29: 1 | F29: =IF(Formler!$J$45=TRUE,48.5,0) -> 0 | G29: =IF(Formler!$J$46=TRUE,19.37,0) -> 19.37 | H29: =Tabell8[[#This Row],[Grönt1]]+G29 -> 19.37 | K29: =IF(Indata!M39=Formler!F54,Indata!Q39,0) -> 0 | L29: ='Ändringar-Kompletteringar'!E28 -> 0 | M29: =Tabell8[[#This Row],[Kalkyl]]+Tabell8[[#This Row],[Ändring]] -> 0 | N29: 15635 | P29: 21576 | Q29: =P29-N29 -> 5941 | S29: 21967 | T29: =S29-N29 -> 6332 | U29: 5 | V29: =IF(Indata!$D$10="BUTP",Anpassning!$E$5+Beräkningar!$I$3,$I$3) -> 1 | W29: =Tabell8[[#This Row],[Pris ÅF]]*Tabell8[[#This Row],[% K]] -> 21967 | X29: =W29-N29 -> 6332 | Y29: =IFERROR(IF($W$3=1,Tabell8[[#This Row],[IKP]],IF($W$3=2,Tabell8[[#This Row],[ES-pris]],IF($W$3=3,Tabell8[[#This Row],[Pris ÅF]],IF($W$3=4,Tabell8[[#This Row],[Pris K]])))),) -> 21967 | Z29: =Tabell8[[#This Row],[Antal]]*Tabell8[[#This Row],[Kolumn5]] -> 0 | AA29: 21967 | AB29: =Tabell8[[#This Row],[Antal]]*Tabell8[[#This Row],[Pris efter rabatt]] -> 0 | AC29: =IF(Tabell8[[#This Row],[Grönt2]]=19.37,Tabell8[[#This Row],[Totalt pris]],0) -> 0 | AD29: =IF(Tabell8[[#This Row],[Grönt1]]=48.5,Tabell8[[#This Row],[Totalt pris]],0) -> 0 | AE29: x
B30: =IF(M30<1,"",MAX(B$1:B29)+1) ->  | C30: 1015001-015 | D30: AFORE Växelriktare Hybrid 15 KW | E30: 1 | F30: =IF(Formler!$J$45=TRUE,48.5,0) -> 0 | G30: =IF(Formler!$J$46=TRUE,19.37,0) -> 19.37 | H30: =Tabell8[[#This Row],[Grönt1]]+G30 -> 19.37 | K30: =IF(Indata!M39=Formler!F55,Indata!Q39,0) -> 0 | L30: ='Ändringar-Kompletteringar'!E29 -> 0 | M30: =Tabell8[[#This Row],[Kalkyl]]+Tabell8[[#This Row],[Ändring]] -> 0 | N30: 16013 | P30: 22258 | Q30: =P30-N30 -> 6245 | S30: 22499 | T30: =S30-N30 -> 6486 | U30: 5 | V30: =IF(Indata!$D$10="BUTP",Anpassning!$E$5+Beräkningar!$I$3,$I$3) -> 1 | W30: =Tabell8[[#This Row],[Pris ÅF]]*Tabell8[[#This Row],[% K]] -> 22499 | X30: =W30-N30 -> 6486 | Y30: =IFERROR(IF($W$3=1,Tabell8[[#This Row],[IKP]],IF($W$3=2,Tabell8[[#This Row],[ES-pris]],IF($W$3=3,Tabell8[[#This Row],[Pris ÅF]],IF($W$3=4,Tabell8[[#This Row],[Pris K]])))),) -> 22499 | Z30: =Tabell8[[#This Row],[Antal]]*Tabell8[[#This Row],[Kolumn5]] -> 0 | AA30: 22499 | AB30: =Tabell8[[#This Row],[Antal]]*Tabell8[[#This Row],[Pris efter rabatt]] -> 0 | AC30: =IF(Tabell8[[#This Row],[Grönt2]]=19.37,Tabell8[[#This Row],[Totalt pris]],0) -> 0 | AD30: =IF(Tabell8[[#This Row],[Grönt1]]=48.5,Tabell8[[#This Row],[Totalt pris]],0) -> 0 | AE30: x
B31: =IF(M31<1,"",MAX(B$1:B30)+1) ->  | C31: 1015001-020 | D31: AFORE Växelriktare Hybrid 20 KW | E31: 1 | F31: =IF(Formler!$J$45=TRUE,48.5,0) -> 0 | G31: =IF(Formler!$J$46=TRUE,19.37,0) -> 19.37 | H31: =Tabell8[[#This Row],[Grönt1]]+G31 -> 19.37 | K31: =IF(Indata!M39=Formler!F56,Indata!Q39,0) -> 0 | L31: ='Ändringar-Kompletteringar'!E30 -> 0 | M31: =Tabell8[[#This Row],[Kalkyl]]+Tabell8[[#This Row],[Ändring]] -> 0 | N31: 18900 | P31: 26271 | Q31: =P31-N31 -> 7371 | S31: 26555 | T31: =S31-N31 -> 7655 | U31: 5 | V31: =IF(Indata!$D$10="BUTP",Anpassning!$E$5+Beräkningar!$I$3,$I$3) -> 1 | W31: =Tabell8[[#This Row],[Pris ÅF]]*Tabell8[[#This Row],[% K]] -> 26555 | X31: =W31-N31 -> 7655 | Y31: =IFERROR(IF($W$3=1,Tabell8[[#This Row],[IKP]],IF($W$3=2,Tabell8[[#This Row],[ES-pris]],IF($W$3=3,Tabell8[[#This Row],[Pris ÅF]],IF($W$3=4,Tabell8[[#This Row],[Pris K]])))),) -> 26555 | Z31: =Tabell8[[#This Row],[Antal]]*Tabell8[[#This Row],[Kolumn5]] -> 0 | AA31: 26555 | AB31: =Tabell8[[#This Row],[Antal]]*Tabell8[[#This Row],[Pris efter rabatt]] -> 0 | AC31: =IF(Tabell8[[#This Row],[Grönt2]]=19.37,Tabell8[[#This Row],[Totalt pris]],0) -> 0 | AD31: =IF(Tabell8[[#This Row],[Grönt1]]=48.5,Tabell8[[#This Row],[Totalt pris]],0) -> 0 | AE31: x
B32: =IF(M32<1,"",MAX(B$1:B31)+1) ->  | C32: 1015001-025 | D32: AFORE Växelriktare Hybrid 25 KW | E32: 1 | F32: =IF(Formler!$J$45=TRUE,48.5,0) -> 0 | G32: =IF(Formler!$J$46=TRUE,19.37,0) -> 19.37 | H32: =Tabell8[[#This Row],[Grönt1]]+G32 -> 19.37 | K32: =IF(Indata!M39=Formler!F57,Indata!Q39,0) -> 0 | L32: ='Ändringar-Kompletteringar'!E31 -> 0 | M32: =Tabell8[[#This Row],[Kalkyl]]+Tabell8[[#This Row],[Ändring]] -> 0 | N32: 22564 | P32: 30687 | Q32: =P32-N32 -> 8123 | S32: 31461 | T32: =S32-N32 -> 8897 | U32: 5 | V32: =IF(Indata!$D$10="BUTP",Anpassning!$E$5+Beräkningar!$I$3,$I$3) -> 1 | W32: =Tabell8[[#This Row],[Pris ÅF]]*Tabell8[[#This Row],[% K]] -> 31461 | X32: =W32-N32 -> 8897 | Y32: =IFERROR(IF($W$3=1,Tabell8[[#This Row],[IKP]],IF($W$3=2,Tabell8[[#This Row],[ES-pris]],IF($W$3=3,Tabell8[[#This Row],[Pris ÅF]],IF($W$3=4,Tabell8[[#This Row],[Pris K]])))),) -> 31461 | Z32: =Tabell8[[#This Row],[Antal]]*Tabell8[[#This Row],[Kolumn5]] -> 0 | AA32: 31461 | AB32: =Tabell8[[#This Row],[Antal]]*Tabell8[[#This Row],[Pris efter rabatt]] -> 0 | AC32: =IF(Tabell8[[#This Row],[Grönt2]]=19.37,Tabell8[[#This Row],[Totalt pris]],0) -> 0 | AD32: =IF(Tabell8[[#This Row],[Grönt1]]=48.5,Tabell8[[#This Row],[Totalt pris]],0) -> 0 | AE32: x
B33: =IF(M33<1,"",MAX(B$1:B32)+1) ->  | C33: 1015001-030 | D33: AFORE Växelriktare Hybrid 30 KW | E33: 1 | F33: =IF(Formler!$J$45=TRUE,48.5,0) -> 0 | G33: =IF(Formler!$J$46=TRUE,19.37,0) -> 19.37 | H33: =Tabell8[[#This Row],[Grönt1]]+G33 -> 19.37 | K33: =IF(Indata!M39=Formler!F58,Indata!Q39,0) -> 0 | L33: ='Ändringar-Kompletteringar'!E32 -> 0 | M33: =Tabell8[[#This Row],[Kalkyl]]+Tabell8[[#This Row],[Ändring]] -> 0 | N33: 26124 | P33: 34499 | Q33: =P33-N33 -> 8375 | S33: 36169 | T33: =S33-N33 -> 10045 | U33: 5 | V33: =IF(Indata!$D$10="BUTP",Anpassning!$E$5+Beräkningar!$I$3,$I$3) -> 1 | W33: =Tabell8[[#This Row],[Pris ÅF]]*Tabell8[[#This Row],[% K]] -> 36169 | X33: =W33-N33 -> 10045 | Y33: =IFERROR(IF($W$3=1,Tabell8[[#This Row],[IKP]],IF($W$3=2,Tabell8[[#This Row],[ES-pris]],IF($W$3=3,Tabell8[[#This Row],[Pris ÅF]],IF($W$3=4,Tabell8[[#This Row],[Pris K]])))),) -> 36169 | Z33: =Tabell8[[#This Row],[Antal]]*Tabell8[[#This Row],[Kolumn5]] -> 0 | AA33: 36169 | AB33: =Tabell8[[#This Row],[Antal]]*Tabell8[[#This Row],[Pris efter rabatt]] -> 0 | AC33: =IF(Tabell8[[#This Row],[Grönt2]]=19.37,Tabell8[[#This Row],[Totalt pris]],0) -> 0 | AD33: =IF(Tabell8[[#This Row],[Grönt1]]=48.5,Tabell8[[#This Row],[Totalt pris]],0) -> 0 | AE33: x
B34: =IF(M34<1,"",MAX(B$1:B33)+1) ->  | C34: 2220001-425FB | D34: SUNWAY 425W-144 FB | E34: 2 | F34: 0 | G34: =IF(Indata!$D$11="Ja",19.37,0) -> 19.37 | H34: =Tabell8[[#This Row],[Grönt1]]+G34 -> 19.37 | I34: =IF(AND($L$3=1,Indata!$D$18=Tabell8[[#This Row],[Benämning]]),Indata!$D$19,0) -> 0 | J34: =IF(AND($L$4=2,Indata!$D$27=Tabell8[[#This Row],[Benämning]]),Indata!$D$28,0) -> 0 | K34: =Tabell8[[#This Row],[Tak 1]]+Tabell8[[#This Row],[Tak 2]] -> 0 | L34: ='Ändringar-Kompletteringar'!E33 -> 0 | M34: =Tabell8[[#This Row],[Kalkyl]]+Tabell8[[#This Row],[Ändring]] -> 0 | N34: 595 | P34: 850 | Q34: =P34-N34 -> 255 | S34: 895 | T34: =S34-N34 -> 300 | U34: 7 | V34: =IF(Indata!$D$10="BUTP",Anpassning!$E$7+Beräkningar!$I$3,$I$3) -> 1 | W34: =Tabell8[[#This Row],[Pris ÅF]]*Tabell8[[#This Row],[% K]] -> 895 | X34: =W34-N34 -> 300 | Y34: =IFERROR(IF($W$3=1,Tabell8[[#This Row],[IKP]],IF($W$3=2,Tabell8[[#This Row],[ES-pris]],IF($W$3=3,Tabell8[[#This Row],[Pris ÅF]],IF($W$3=4,Tabell8[[#This Row],[Pris K]])))),) -> 895 | Z34: =Tabell8[[#This Row],[Antal]]*Tabell8[[#This Row],[Kolumn5]] -> 0 | AA34: 895 | AB34: =Tabell8[[#This Row],[Antal]]*Tabell8[[#This Row],[Pris efter rabatt]] -> 0 | AC34: =IF(Tabell8[[#This Row],[Grönt2]]=19.37,Tabell8[[#This Row],[Totalt pris]],0) -> 0 | AD34: =IF(Tabell8[[#This Row],[Grönt1]]=48.5,Tabell8[[#This Row],[Totalt pris]],0) -> 0
B35: =IF(M35<1,"",MAX(B$1:B34)+1) ->  | C35: 2320001-420FB | D35: SUNTECH STP 420W -C54 Ns FB | E35: 2 | F35: 0 | G35: =IF(Indata!$D$11="Ja",19.37,0) -> 19.37 | H35: =Tabell8[[#This Row],[Grönt1]]+G35 -> 19.37 | I35: =IF(AND($L$3=1,Indata!$D$18=Tabell8[[#This Row],[Benämning]]),Indata!$D$19,0) -> 0 | J35: =IF(AND($L$4=2,Indata!$D$27=Tabell8[[#This Row],[Benämning]]),Indata!$D$28,0) -> 0 | K35: =Tabell8[[#This Row],[Tak 1]]+Tabell8[[#This Row],[Tak 2]] -> 0 | L35: ='Ändringar-Kompletteringar'!E34 -> 0 | M35: =Tabell8[[#This Row],[Kalkyl]]+Tabell8[[#This Row],[Ändring]] -> 0 | N35: 657 | P35: 910 | Q35: =P35-N35 -> 253 | S35: 950 | T35: =S35-N35 -> 293 | U35: 7 | V35: =IF(Indata!$D$10="BUTP",Anpassning!$E$7+Beräkningar!$I$3,$I$3) -> 1 | W35: =Tabell8[[#This Row],[Pris ÅF]]*Tabell8[[#This Row],[% K]] -> 950 | X35: =W35-N35 -> 293 | Y35: =IFERROR(IF($W$3=1,Tabell8[[#This Row],[IKP]],IF($W$3=2,Tabell8[[#This Row],[ES-pris]],IF($W$3=3,Tabell8[[#This Row],[Pris ÅF]],IF($W$3=4,Tabell8[[#This Row],[Pris K]])))),) -> 950 | Z35: =Tabell8[[#This Row],[Antal]]*Tabell8[[#This Row],[Kolumn5]] -> 0 | AA35: 950 | AB35: =Tabell8[[#This Row],[Antal]]*Tabell8[[#This Row],[Pris efter rabatt]] -> 0 | AC35: =IF(Tabell8[[#This Row],[Grönt2]]=19.37,Tabell8[[#This Row],[Totalt pris]],0) -> 0 | AD35: =IF(Tabell8[[#This Row],[Grönt1]]=48.5,Tabell8[[#This Row],[Totalt pris]],0) -> 0
B36: =IF(M36<1,"",MAX(B$1:B35)+1) ->  | C36: 2320001-405FB | D36: SUNTECH STP 405W -C54 Um FB | E36: 2 | F36: 0 | G36: =IF(Indata!$D$11="Ja",19.37,0) -> 19.37 | H36: =Tabell8[[#This Row],[Grönt1]]+G36 -> 19.37 | I36: =IF(AND($L$3=1,Indata!$D$18=Tabell8[[#This Row],[Benämning]]),Indata!$D$19,0) -> 0 | J36: =IF(AND($L$4=2,Indata!$D$27=Tabell8[[#This Row],[Benämning]]),Indata!$D$28,0) -> 0 | K36: =Tabell8[[#This Row],[Tak 1]]+Tabell8[[#This Row],[Tak 2]] -> 0 | L36: ='Ändringar-Kompletteringar'!E35 -> 0 | M36: =Tabell8[[#This Row],[Kalkyl]]+Tabell8[[#This Row],[Ändring]] -> 0 | N36: 520 | P36: 820 | Q36: =P36-N36 -> 300 | S36: 860 | T36: =S36-N36 -> 340 | U36: 7 | V36: =IF(Indata!$D$10="BUTP",Anpassning!$E$7+Beräkningar!$I$3,$I$3) -> 1 | W36: =Tabell8[[#This Row],[Pris ÅF]]*Tabell8[[#This Row],[% K]] -> 860 | X36: =W36-N36 -> 340 | Y36: =IFERROR(IF($W$3=1,Tabell8[[#This Row],[IKP]],IF($W$3=2,Tabell8[[#This Row],[ES-pris]],IF($W$3=3,Tabell8[[#This Row],[Pris ÅF]],IF($W$3=4,Tabell8[[#This Row],[Pris K]])))),) -> 860 | Z36: =Tabell8[[#This Row],[Antal]]*Tabell8[[#This Row],[Kolumn5]] -> 0 | AA36: 860 | AB36: =Tabell8[[#This Row],[Antal]]*Tabell8[[#This Row],[Pris efter rabatt]] -> 0 | AC36: =IF(Tabell8[[#This Row],[Grönt2]]=19.37,Tabell8[[#This Row],[Totalt pris]],0) -> 0 | AD36: =IF(Tabell8[[#This Row],[Grönt1]]=48.5,Tabell8[[#This Row],[Totalt pris]],0) -> 0
B37: =IF(M37<1,"",MAX(B$1:B36)+1) ->  | C37: 2320001-435FB | D37: SUNTECH STP435S_C54_Nshtb Glas/glas | E37: 2 | F37: 0 | G37: =IF(Indata!$D$11="Ja",19.37,0) -> 19.37 | H37: =Tabell8[[#This Row],[Grönt1]]+G37 -> 19.37 | I37: =IF(AND($L$3=1,Indata!$D$18=Tabell8[[#This Row],[Benämning]]),Indata!$D$19,0) -> 0 | J37: =IF(AND($L$4=2,Indata!$D$27=Tabell8[[#This Row],[Benämning]]),Indata!$D$28,0) -> 0 | K37: =Tabell8[[#This Row],[Tak 1]]+Tabell8[[#This Row],[Tak 2]] -> 0 | L37: ='Ändringar-Kompletteringar'!E36 -> 0 | M37: =Tabell8[[#This Row],[Kalkyl]]+Tabell8[[#This Row],[Ändring]] -> 0 | N37: 695 | P37: 950 | Q37: =P37-N37 -> 255 | S37: 990 | T37: =S37-N37 -> 295 | U37: 7 | V37: =IF(Indata!$D$10="BUTP",Anpassning!$E$7+Beräkningar!$I$3,$I$3) -> 1 | W37: =Tabell8[[#This Row],[Pris ÅF]]*Tabell8[[#This Row],[% K]] -> 990 | X37: =W37-N37 -> 295 | Y37: =IFERROR(IF($W$3=1,Tabell8[[#This Row],[IKP]],IF($W$3=2,Tabell8[[#This Row],[ES-pris]],IF($W$3=3,Tabell8[[#This Row],[Pris ÅF]],IF($W$3=4,Tabell8[[#This Row],[Pris K]])))),) -> 990 | Z37: =Tabell8[[#This Row],[Antal]]*Tabell8[[#This Row],[Kolumn5]] -> 0 | AA37: =Y37+(Y37*$W$4/100) -> 990 | AB37: =Tabell8[[#This Row],[Antal]]*Tabell8[[#This Row],[Pris efter rabatt]] -> 0 | AC37: =IF(Tabell8[[#This Row],[Grönt2]]=19.37,Tabell8[[#This Row],[Totalt pris]],0) -> 0 | AD37: =IF(Tabell8[[#This Row],[Grönt1]]=48.5,Tabell8[[#This Row],[Totalt pris]],0) -> 0
B38: =IF(M38<1,"",MAX(B$1:B37)+1) ->  | C38: 2122001-430W | D38: JUST SOLAR 430W, JST-EFMH Glas/glas | E38: 2 | F38: 0 | G38: =IF(Indata!$D$11="Ja",19.37,0) -> 19.37 | H38: =Tabell8[[#This Row],[Grönt1]]+G38 -> 19.37 | I38: =IF(AND($L$3=1,Indata!$D$18=Tabell8[[#This Row],[Benämning]]),Indata!$D$19,0) -> 0 | J38: =IF(AND($L$4=2,Indata!$D$27=Tabell8[[#This Row],[Benämning]]),Indata!$D$28,0) -> 0 | K38: =Tabell8[[#This Row],[Tak 1]]+Tabell8[[#This Row],[Tak 2]] -> 0 | L38: ='Ändringar-Kompletteringar'!E37 -> 0 | M38: =Tabell8[[#This Row],[Kalkyl]]+Tabell8[[#This Row],[Ändring]] -> 0 | N38: 603 | P38: 850 | Q38: =P38-N38 -> 247 | S38: 890 | T38: =S38-N38 -> 287 | U38: 7 | V38: =IF(Indata!$D$10="BUTP",Anpassning!$E$7+Beräkningar!$I$3,$I$3) -> 1 | W38: =Tabell8[[#This Row],[Pris ÅF]]*Tabell8[[#This Row],[% K]] -> 890 | X38: =W38-N38 -> 287 | Y38: =IFERROR(IF($W$3=1,Tabell8[[#This Row],[IKP]],IF($W$3=2,Tabell8[[#This Row],[ES-pris]],IF($W$3=3,Tabell8[[#This Row],[Pris ÅF]],IF($W$3=4,Tabell8[[#This Row],[Pris K]])))),) -> 890 | Z38: =Tabell8[[#This Row],[Antal]]*Tabell8[[#This Row],[Kolumn5]] -> 0 | AA38: =Y38+(Y38*$W$4/100) -> 890 | AB38: =Tabell8[[#This Row],[Antal]]*Tabell8[[#This Row],[Pris efter rabatt]] -> 0 | AC38: =IF(Tabell8[[#This Row],[Grönt2]]=19.37,Tabell8[[#This Row],[Totalt pris]],0) -> 0 | AD38: =IF(Tabell8[[#This Row],[Grönt1]]=48.5,Tabell8[[#This Row],[Totalt pris]],0) -> 0
B39: =IF(M39<1,"",MAX(B$1:B38)+1) ->  | C39: 6080001-01 | D39: ZJBENY DC-Box 1 strängar | E39: 4 | F39: 0 | G39: =IF(Indata!$D$11="Ja",19.37,0) -> 19.37 | H39: =Tabell8[[#This Row],[Grönt1]]+G39 -> 19.37 | K39: =IF(Indata!H43="Allt på DC-sidan",Formler!T24,0) -> 0 | L39: ='Ändringar-Kompletteringar'!E38 -> 0 | M39: =Tabell8[[#This Row],[Ändring]] -> 0 | N39: 597 | P39: 1785 | Q39: =P39-N39 -> 1188 | S39: 1890 | T39: =S39-N39 -> 1293 | U39: 9 | V39: =IF(Indata!$D$10="BUTP",Anpassning!$E$9+Beräkningar!$I$3,$I$3) -> 1 | W39: =Tabell8[[#This Row],[Pris ÅF]]*Tabell8[[#This Row],[% K]] -> 1890 | X39: =W39-N39 -> 1293 | Y39: =IFERROR(IF($W$3=1,Tabell8[[#This Row],[IKP]],IF($W$3=2,Tabell8[[#This Row],[ES-pris]],IF($W$3=3,Tabell8[[#This Row],[Pris ÅF]],IF($W$3=4,Tabell8[[#This Row],[Pris K]])))),) -> 1890 | Z39: =Tabell8[[#This Row],[Antal]]*Tabell8[[#This Row],[Kolumn5]] -> 0 | AA39: 1890 | AB39: =Tabell8[[#This Row],[Antal]]*Tabell8[[#This Row],[Pris efter rabatt]] -> 0 | AC39: =IF(Tabell8[[#This Row],[Grönt2]]=19.37,Tabell8[[#This Row],[Totalt pris]],0) -> 0 | AD39: =IF(Tabell8[[#This Row],[Grönt1]]=48.5,Tabell8[[#This Row],[Totalt pris]],0) -> 0
B40: =IF(M40<1,"",MAX(B$1:B39)+1) ->  | C40: 6080001-02 | D40: ZJBENY DC-Box 2 strängar | E40: 4 | F40: 0 | G40: =IF(Indata!$D$11="Ja",19.37,0) -> 19.37 | H40: =Tabell8[[#This Row],[Grönt1]]+G40 -> 19.37 | K40: =IF(Indata!H43="Allt på DC-sidan",Formler!U24,0) -> 0 | L40: ='Ändringar-Kompletteringar'!E39 -> 0 | M40: =Tabell8[[#This Row],[Kalkyl]]+Tabell8[[#This Row],[Ändring]] -> 0 | N40: 1194 | P40: 2745 | Q40: =P40-N40 -> 1551 | S40: 2984 | T40: =S40-N40 -> 1790 | U40: 9 | V40: =IF(Indata!$D$10="BUTP",Anpassning!$E$9+Beräkningar!$I$3,$I$3) -> 1 | W40: =Tabell8[[#This Row],[Pris ÅF]]*Tabell8[[#This Row],[% K]] -> 2984 | X40: =W40-N40 -> 1790 | Y40: =IFERROR(IF($W$3=1,Tabell8[[#This Row],[IKP]],IF($W$3=2,Tabell8[[#This Row],[ES-pris]],IF($W$3=3,Tabell8[[#This Row],[Pris ÅF]],IF($W$3=4,Tabell8[[#This Row],[Pris K]])))),) -> 2984 | Z40: =Tabell8[[#This Row],[Antal]]*Tabell8[[#This Row],[Kolumn5]] -> 0 | AA40: 2984 | AB40: =Tabell8[[#This Row],[Antal]]*Tabell8[[#This Row],[Pris efter rabatt]] -> 0 | AC40: =IF(Tabell8[[#This Row],[Grönt2]]=19.37,Tabell8[[#This Row],[Totalt pris]],0) -> 0 | AD40: =IF(Tabell8[[#This Row],[Grönt1]]=48.5,Tabell8[[#This Row],[Totalt pris]],0) -> 0
B41: =IF(M41<1,"",MAX(B$1:B40)+1) ->  | C41: 6080001-06 | D41: ZJBENY DC-Box 3 strängar | E41: 4 | F41: 0 | G41: =IF(Indata!$D$11="Ja",19.37,0) -> 19.37 | H41: =Tabell8[[#This Row],[Grönt1]]+G41 -> 19.37 | K41: =IF(Indata!H43="Allt på DC-sidan",Formler!V24,0) -> 0 | L41: ='Ändringar-Kompletteringar'!E40 -> 0 | M41: =Tabell8[[#This Row],[Kalkyl]]+Tabell8[[#This Row],[Ändring]] -> 0 | N41: 1791 | P41: 3873 | Q41: =P41-N41 -> 2082 | S41: 4210 | T41: =S41-N41 -> 2419 | U41: 9 | V41: =IF(Indata!$D$10="BUTP",Anpassning!$E$9+Beräkningar!$I$3,$I$3) -> 1 | W41: =Tabell8[[#This Row],[Pris ÅF]]*Tabell8[[#This Row],[% K]] -> 4210 | X41: =W41-N41 -> 2419 | Y41: =IFERROR(IF($W$3=1,Tabell8[[#This Row],[IKP]],IF($W$3=2,Tabell8[[#This Row],[ES-pris]],IF($W$3=3,Tabell8[[#This Row],[Pris ÅF]],IF($W$3=4,Tabell8[[#This Row],[Pris K]])))),) -> 4210 | Z41: =Tabell8[[#This Row],[Antal]]*Tabell8[[#This Row],[Kolumn5]] -> 0 | AA41: 4210 | AB41: =Tabell8[[#This Row],[Antal]]*Tabell8[[#This Row],[Pris efter rabatt]] -> 0 | AC41: =IF(Tabell8[[#This Row],[Grönt2]]=19.37,Tabell8[[#This Row],[Totalt pris]],0) -> 0 | AD41: =IF(Tabell8[[#This Row],[Grönt1]]=48.5,Tabell8[[#This Row],[Totalt pris]],0) -> 0
B42: =IF(M42<1,"",MAX(B$1:B41)+1) ->  | C42: 9981002-6001 | D42: Kabel 6mm2 DC Svart Löpmeter | E42: 4 | F42: =IF(Formler!$J$45=TRUE,48.5,0) -> 0 | G42: =IF(Formler!$J$46=TRUE,19.37,0) -> 19.37 | H42: =Tabell8[[#This Row],[Grönt1]]+G42 -> 19.37 | K42: =IF(OR(Indata!$D$17="Allt på DC-sidan",Indata!$D$26="Allt på DC-sidan"),Formler!P26,0) -> 0 | L42: ='Ändringar-Kompletteringar'!E41 -> 0 | M42: =Tabell8[[#This Row],[Kalkyl]]+Tabell8[[#This Row],[Ändring]] -> 0 | N42: 10 | P42: 12.5 | Q42: =P42-N42 -> 2.5 | S42: 14 | T42: =S42-N42 -> 4 | U42: 9 | V42: =IF(Indata!$D$10="BUTP",Anpassning!$E$9+Beräkningar!$I$3,$I$3) -> 1 | W42: =Tabell8[[#This Row],[Pris ÅF]]*Tabell8[[#This Row],[% K]] -> 14 | X42: =W42-N42 -> 4 | Y42: =IFERROR(IF($W$3=1,Tabell8[[#This Row],[IKP]],IF($W$3=2,Tabell8[[#This Row],[ES-pris]],IF($W$3=3,Tabell8[[#This Row],[Pris ÅF]],IF($W$3=4,Tabell8[[#This Row],[Pris K]])))),) -> 14 | Z42: =Tabell8[[#This Row],[Antal]]*Tabell8[[#This Row],[Kolumn5]] -> 0 | AA42: 14 | AB42: =Tabell8[[#This Row],[Antal]]*Tabell8[[#This Row],[Pris efter rabatt]] -> 0 | AC42: =IF(Tabell8[[#This Row],[Grönt2]]=19.37,Tabell8[[#This Row],[Totalt pris]],0) -> 0 | AD42: =IF(Tabell8[[#This Row],[Grönt1]]=48.5,Tabell8[[#This Row],[Totalt pris]],0) -> 0
B43: =IF(M43<1,"",MAX(B$1:B42)+1) ->  | C43: 9981001-4001 | D43: Kabel 4mm2 DC Svart Löpmeter | E43: 4 | F43: =IF(Formler!$J$45=TRUE,48.5,0) -> 0 | G43: =IF(Formler!$J$46=TRUE,19.37,0) -> 19.37 | H43: =Tabell8[[#This Row],[Grönt1]]+G43 -> 19.37 | K43: =IF(OR(Indata!$D$17="Allt på DC-sidan",Indata!$D$26="Allt på DC-sidan"),Formler!P25,0) -> 0 | L43: ='Ändringar-Kompletteringar'!E42 -> 0 | M43: =Tabell8[[#This Row],[Kalkyl]]+Tabell8[[#This Row],[Ändring]] -> 0 | N43: 5 | P43: 10.4 | Q43: =P43-N43 -> 5.4 | S43: 11.2 | T43: =S43-N43 -> 6.2 | U43: 9 | V43: =IF(Indata!$D$10="BUTP",Anpassning!$E$9+Beräkningar!$I$3,$I$3) -> 1 | W43: =Tabell8[[#This Row],[Pris ÅF]]*Tabell8[[#This Row],[% K]] -> 11.2 | X43: =W43-N43 -> 6.2 | Y43: =IFERROR(IF($W$3=1,Tabell8[[#This Row],[IKP]],IF($W$3=2,Tabell8[[#This Row],[ES-pris]],IF($W$3=3,Tabell8[[#This Row],[Pris ÅF]],IF($W$3=4,Tabell8[[#This Row],[Pris K]])))),) -> 11.2 | Z43: =Tabell8[[#This Row],[Antal]]*Tabell8[[#This Row],[Kolumn5]] -> 0 | AA43: =Y43+(Y43*$W$4/100) -> 11.2 | AB43: =Tabell8[[#This Row],[Antal]]*Tabell8[[#This Row],[Pris efter rabatt]] -> 0 | AC43: =IF(Tabell8[[#This Row],[Grönt2]]=19.37,Tabell8[[#This Row],[Totalt pris]],0) -> 0 | AD43: =IF(Tabell8[[#This Row],[Grönt1]]=48.5,Tabell8[[#This Row],[Totalt pris]],0) -> 0 | AE43: x
B44: =IF(M44<1,"",MAX(B$1:B43)+1) ->  | C44: 9981001-4500 | D44: Kabel 4mm2 DC Svart 500 m | E44: 4 | F44: =IF(Formler!$J$45=TRUE,48.5,0) -> 0 | G44: =IF(Formler!$J$46=TRUE,19.37,0) -> 19.37 | H44: =Tabell8[[#This Row],[Grönt1]]+G44 -> 19.37 | K44: =IF(Indata!H43="Allt på DC-sidan",Formler!S29,0) -> 0 | L44: ='Ändringar-Kompletteringar'!E43 -> 0 | M44: =Tabell8[[#This Row],[Kalkyl]]+Tabell8[[#This Row],[Ändring]] -> 0 | N44: 2500 | P44: 4500 | Q44: =P44-N44 -> 2000 | S44: 4675 | T44: =S44-N44 -> 2175 | U44: 9 | V44: =IF(Indata!$D$10="BUTP",Anpassning!$E$9+Beräkningar!$I$3,$I$3) -> 1 | W44: =Tabell8[[#This Row],[Pris ÅF]]*Tabell8[[#This Row],[% K]] -> 4675 | X44: =W44-N44 -> 2175 | Y44: =IFERROR(IF($W$3=1,Tabell8[[#This Row],[IKP]],IF($W$3=2,Tabell8[[#This Row],[ES-pris]],IF($W$3=3,Tabell8[[#This Row],[Pris ÅF]],IF($W$3=4,Tabell8[[#This Row],[Pris K]])))),) -> 4675 | Z44: =Tabell8[[#This Row],[Antal]]*Tabell8[[#This Row],[Kolumn5]] -> 0 | AA44: 4675 | AB44: =Tabell8[[#This Row],[Antal]]*Tabell8[[#This Row],[Pris efter rabatt]] -> 0 | AC44: =IF(Tabell8[[#This Row],[Grönt2]]=19.37,Tabell8[[#This Row],[Totalt pris]],0) -> 0 | AD44: =IF(Tabell8[[#This Row],[Grönt1]]=48.5,Tabell8[[#This Row],[Totalt pris]],0) -> 0 | AE44: x
B45: =IF(M45<1,"",MAX(B$1:B44)+1) ->  | C45: 9982001-minus | D45: Kontakt MC4 PV-Stick Hona | E45: 4 | F45: 0 | G45: =IF(Indata!$D$11="Ja",19.37,0) -> 19.37 | H45: =Tabell8[[#This Row],[Grönt1]]+G45 -> 19.37 | K45: =IF(Indata!H43="Allt på DC-sidan",Formler!R26,0) -> 0 | L45: ='Ändringar-Kompletteringar'!E44 -> 0 | M45: =Tabell8[[#This Row],[Kalkyl]]+Tabell8[[#This Row],[Ändring]] -> 0 | N45: 7 | P45: 13.08 | Q45: =P45-N45 -> 6.08 | S45: 14.72 | T45: =S45-N45 -> 7.72 | U45: 9 | V45: =IF(Indata!$D$10="BUTP",Anpassning!$E$9+Beräkningar!$I$3,$I$3) -> 1 | W45: =Tabell8[[#This Row],[Pris ÅF]]*Tabell8[[#This Row],[% K]] -> 14.72 | X45: =W45-N45 -> 7.72 | Y45: =IFERROR(IF($W$3=1,Tabell8[[#This Row],[IKP]],IF($W$3=2,Tabell8[[#This Row],[ES-pris]],IF($W$3=3,Tabell8[[#This Row],[Pris ÅF]],IF($W$3=4,Tabell8[[#This Row],[Pris K]])))),) -> 14.72 | Z45: =Tabell8[[#This Row],[Antal]]*Tabell8[[#This Row],[Kolumn5]] -> 0 | AA45: 14.72 | AB45: =Tabell8[[#This Row],[Antal]]*Tabell8[[#This Row],[Pris efter rabatt]] -> 0 | AC45: =IF(Tabell8[[#This Row],[Grönt2]]=19.37,Tabell8[[#This Row],[Totalt pris]],0) -> 0 | AD45: =IF(Tabell8[[#This Row],[Grönt1]]=48.5,Tabell8[[#This Row],[Totalt pris]],0) -> 0 | AE45: x
B46: =IF(M46<1,"",MAX(B$1:B45)+1) ->  | C46: 9982001-plus | D46: Kontakt MC4 PV-Stick Hane | E46: 4 | F46: 0 | G46: =IF(Indata!$D$11="Ja",19.37,0) -> 19.37 | H46: =Tabell8[[#This Row],[Grönt1]]+G46 -> 19.37 | K46: =IF(Indata!H43="Allt på DC-sidan",Formler!R26,0) -> 0 | L46: ='Ändringar-Kompletteringar'!E45 -> 0 | M46: =Tabell8[[#This Row],[Kalkyl]]+Tabell8[[#This Row],[Ändring]] -> 0 | N46: 7 | P46: 13.08 | Q46: =P46-N46 -> 6.08 | S46: 14.72 | T46: =S46-N46 -> 7.72 | U46: 9 | V46: =IF(Indata!$D$10="BUTP",Anpassning!$E$9+Beräkningar!$I$3,$I$3) -> 1 | W46: =Tabell8[[#This Row],[Pris ÅF]]*Tabell8[[#This Row],[% K]] -> 14.72 | X46: =W46-N46 -> 7.72 | Y46: =IFERROR(IF($W$3=1,Tabell8[[#This Row],[IKP]],IF($W$3=2,Tabell8[[#This Row],[ES-pris]],IF($W$3=3,Tabell8[[#This Row],[Pris ÅF]],IF($W$3=4,Tabell8[[#This Row],[Pris K]])))),) -> 14.72 | Z46: =Tabell8[[#This Row],[Antal]]*Tabell8[[#This Row],[Kolumn5]] -> 0 | AA46: 14.72 | AB46: =Tabell8[[#This Row],[Antal]]*Tabell8[[#This Row],[Pris efter rabatt]] -> 0 | AC46: =IF(Tabell8[[#This Row],[Grönt2]]=19.37,Tabell8[[#This Row],[Totalt pris]],0) -> 0 | AD46: =IF(Tabell8[[#This Row],[Grönt1]]=48.5,Tabell8[[#This Row],[Totalt pris]],0) -> 0 | AE46: x
B47: =IF(M47<1,"",MAX(B$1:B46)+1) -> 1 | C47: 9990001-05 | D47: Märkskylt Set | E47: 4 | F47: 0 | G47: =IF(Indata!$D$11="Ja",19.37,0) -> 19.37 | H47: =Tabell8[[#This Row],[Grönt1]]+G47 -> 19.37 | K47: =IF(Formler!Z16="JA",0,1) -> 1 | L47: ='Ändringar-Kompletteringar'!E46 -> 0 | M47: =Tabell8[[#This Row],[Kalkyl]]+Tabell8[[#This Row],[Ändring]] -> 1 | N47: 53 | P47: 124 | Q47: =P47-N47 -> 71 | S47: 133 | T47: =S47-N47 -> 80 | U47: 9 | V47: =IF(Indata!$D$10="BUTP",Anpassning!$E$9+Beräkningar!$I$3,$I$3) -> 1 | W47: =Tabell8[[#This Row],[Pris ÅF]]*Tabell8[[#This Row],[% K]] -> 133 | X47: =W47-N47 -> 80 | Y47: =IFERROR(IF($W$3=1,Tabell8[[#This Row],[IKP]],IF($W$3=2,Tabell8[[#This Row],[ES-pris]],IF($W$3=3,Tabell8[[#This Row],[Pris ÅF]],IF($W$3=4,Tabell8[[#This Row],[Pris K]])))),) -> 133 | Z47: =Tabell8[[#This Row],[Antal]]*Tabell8[[#This Row],[Kolumn5]] -> 133 | AA47: 133 | AB47: =Tabell8[[#This Row],[Antal]]*Tabell8[[#This Row],[Pris efter rabatt]] -> 133 | AC47: =IF(Tabell8[[#This Row],[Grönt2]]=19.37,Tabell8[[#This Row],[Totalt pris]],0) -> 133 | AD47: =IF(Tabell8[[#This Row],[Grönt1]]=48.5,Tabell8[[#This Row],[Totalt pris]],0) -> 0
B48: =IF(M48<1,"",MAX(B$1:B47)+1) ->  | C48: 9981001-4100 | D48: Kabel 4mm2 DC Svart 100 m | E48: 4 | F48: 0 | G48: =IF(Indata!$D$11="Ja",19.37,0) -> 19.37 | H48: =Tabell8[[#This Row],[Grönt1]]+G48 -> 19.37 | K48: =IF(Indata!H43="Allt på DC-sidan",Formler!S31,0) -> 0 | L48: ='Ändringar-Kompletteringar'!E47 -> 0 | M48: =Tabell8[[#This Row],[Kalkyl]]+Tabell8[[#This Row],[Ändring]] -> 0 | N48: 500 | P48: 950 | Q48: =P48-N48 -> 450 | S48: 980 | T48: =S48-N48 -> 480 | U48: 9 | V48: =IF(Indata!$D$10="BUTP",Anpassning!$E$9+Beräkningar!$I$3,$I$3) -> 1 | W48: =Tabell8[[#This Row],[Pris ÅF]]*Tabell8[[#This Row],[% K]] -> 980 | X48: =W48-N48 -> 480 | Y48: =IFERROR(IF($W$3=1,Tabell8[[#This Row],[IKP]],IF($W$3=2,Tabell8[[#This Row],[ES-pris]],IF($W$3=3,Tabell8[[#This Row],[Pris ÅF]],IF($W$3=4,Tabell8[[#This Row],[Pris K]])))),) -> 980 | Z48: =Tabell8[[#This Row],[Antal]]*Tabell8[[#This Row],[Kolumn5]] -> 0 | AA48: 980 | AB48: =Tabell8[[#This Row],[Antal]]*Tabell8[[#This Row],[Pris efter rabatt]] -> 0 | AC48: =IF(Tabell8[[#This Row],[Grönt2]]=19.37,Tabell8[[#This Row],[Totalt pris]],0) -> 0 | AD48: =IF(Tabell8[[#This Row],[Grönt1]]=48.5,Tabell8[[#This Row],[Totalt pris]],0) -> 0
B49: =IF(M49<1,"",MAX(B$1:B48)+1) ->  | C49: 9981003-100 | D49: Buntband, fixeringsklämma 100 st. | E49: 4 | F49: 0 | G49: =IF(Indata!$D$11="Ja",19.37,0) -> 19.37 | H49: =Tabell8[[#This Row],[Grönt1]]+G49 -> 19.37 | K49: =Formler!S84 -> 0 | L49: ='Ändringar-Kompletteringar'!E48 -> 0 | M49: =Tabell8[[#This Row],[Kalkyl]]+Tabell8[[#This Row],[Ändring]] -> 0 | N49: 220 | P49: 252 | Q49: =P49-N49 -> 32 | S49: 266 | T49: =S49-N49 -> 46 | U49: 9 | V49: =IF(Indata!$D$10="BUTP",Anpassning!$E$9+Beräkningar!$I$3,$I$3) -> 1 | W49: =Tabell8[[#This Row],[Pris ÅF]]*Tabell8[[#This Row],[% K]] -> 266 | X49: =W49-N49 -> 46 | Y49: =IFERROR(IF($W$3=1,Tabell8[[#This Row],[IKP]],IF($W$3=2,Tabell8[[#This Row],[ES-pris]],IF($W$3=3,Tabell8[[#This Row],[Pris ÅF]],IF($W$3=4,Tabell8[[#This Row],[Pris K]])))),) -> 266 | Z49: =Tabell8[[#This Row],[Antal]]*Tabell8[[#This Row],[Kolumn5]] -> 0 | AA49: 266 | AB49: =Tabell8[[#This Row],[Antal]]*Tabell8[[#This Row],[Pris efter rabatt]] -> 0 | AC49: =IF(Tabell8[[#This Row],[Grönt2]]=19.37,Tabell8[[#This Row],[Totalt pris]],0) -> 0 | AD49: =IF(Tabell8[[#This Row],[Grönt1]]=48.5,Tabell8[[#This Row],[Totalt pris]],0) -> 0
B50: =IF(M50<1,"",MAX(B$1:B49)+1) ->  | C50: 9981001-4250 | D50: Kabel 4mm2 DC Svart 250 m | E50: 4 | F50: =IF(Formler!$J$45=TRUE,48.5,0) -> 0 | G50: =IF(Formler!$J$46=TRUE,19.37,0) -> 19.37 | H50: =Tabell8[[#This Row],[Grönt1]]+G50 -> 19.37 | K50: =IF(Indata!H43="Allt på DC-sidan",Formler!S30,0) -> 0 | L50: ='Ändringar-Kompletteringar'!E49 -> 0 | M50: =Tabell8[[#This Row],[Kalkyl]]+Tabell8[[#This Row],[Ändring]] -> 0 | N50: 1250 | P50: 2312.5 | Q50: =P50-N50 -> 1062.5 | S50: 2400 | T50: =S50-N50 -> 1150 | U50: 9 | V50: =IF(Indata!$D$10="BUTP",Anpassning!$E$9+Beräkningar!$I$3,$I$3) -> 1 | W50: =Tabell8[[#This Row],[Pris ÅF]]*Tabell8[[#This Row],[% K]] -> 2400 | X50: =W50-N50 -> 1150 | Y50: =IFERROR(IF($W$3=1,Tabell8[[#This Row],[IKP]],IF($W$3=2,Tabell8[[#This Row],[ES-pris]],IF($W$3=3,Tabell8[[#This Row],[Pris ÅF]],IF($W$3=4,Tabell8[[#This Row],[Pris K]])))),) -> 2400 | Z50: =Tabell8[[#This Row],[Antal]]*Tabell8[[#This Row],[Kolumn5]] -> 0 | AA50: 2400 | AB50: =Tabell8[[#This Row],[Antal]]*Tabell8[[#This Row],[Pris efter rabatt]] -> 0 | AC50: =IF(Tabell8[[#This Row],[Grönt2]]=19.37,Tabell8[[#This Row],[Totalt pris]],0) -> 0 | AD50: =IF(Tabell8[[#This Row],[Grönt1]]=48.5,Tabell8[[#This Row],[Totalt pris]],0) -> 0
B51: =IF(M51<1,"",MAX(B$1:B50)+1) ->  | C51: 9981001-4500R | D51: Kabel 4mm2 DC Röd 500 m | E51: 4 | F51: =IF(Formler!$J$45=TRUE,48.5,0) -> 0 | G51: =IF(Formler!$J$46=TRUE,19.37,0) -> 19.37 | H51: =Tabell8[[#This Row],[Grönt1]]+G51 -> 19.37 | K51: 0 | L51: ='Ändringar-Kompletteringar'!E50 -> 0 | M51: =Tabell8[[#This Row],[Kalkyl]]+Tabell8[[#This Row],[Ändring]] -> 0 | N51: 2500 | P51: 4500 | Q51: =P51-N51 -> 2000 | S51: 4675 | T51: =S51-N51 -> 2175 | U51: 9 | V51: =IF(Indata!$D$10="BUTP",Anpassning!$E$9+Beräkningar!$I$3,$I$3) -> 1 | W51: =Tabell8[[#This Row],[Pris ÅF]]*Tabell8[[#This Row],[% K]] -> 4675 | X51: =W51-N51 -> 2175 | Y51: =IFERROR(IF($W$3=1,Tabell8[[#This Row],[IKP]],IF($W$3=2,Tabell8[[#This Row],[ES-pris]],IF($W$3=3,Tabell8[[#This Row],[Pris ÅF]],IF($W$3=4,Tabell8[[#This Row],[Pris K]])))),) -> 4675 | Z51: =Tabell8[[#This Row],[Antal]]*Tabell8[[#This Row],[Kolumn5]] -> 0 | AA51: 4675 | AB51: =Tabell8[[#This Row],[Antal]]*Tabell8[[#This Row],[Pris efter rabatt]] -> 0 | AC51: =IF(Tabell8[[#This Row],[Grönt2]]=19.37,Tabell8[[#This Row],[Totalt pris]],0) -> 0 | AD51: =IF(Tabell8[[#This Row],[Grönt1]]=48.5,Tabell8[[#This Row],[Totalt pris]],0) -> 0
B52: =IF(M52<1,"",MAX(B$1:B51)+1) ->  | C52: 8085001-25232 | D52: Tigo optimerare TS4-A-O 700W | E52: 4 | F52: 0 | G52: =IF(Indata!$D$11="Ja",19.37,0) -> 19.37 | H52: =Tabell8[[#This Row],[Grönt1]]+G52 -> 19.37 | K52: 0 | L52: ='Ändringar-Kompletteringar'!E51 -> 0 | M52: =Tabell8[[#This Row],[Ändring]] -> 0 | N52: 333 | P52: 406 | Q52: =P52-N52 -> 73 | S52: 426 | T52: =S52-N52 -> 93 | U52: 9 | V52: =IF(Indata!$D$10="BUTP",Anpassning!$E$9+Beräkningar!$I$3,$I$3) -> 1 | W52: =Tabell8[[#This Row],[Pris ÅF]]*Tabell8[[#This Row],[% K]] -> 426 | X52: =W52-N52 -> 93 | Y52: =IFERROR(IF($W$3=1,Tabell8[[#This Row],[IKP]],IF($W$3=2,Tabell8[[#This Row],[ES-pris]],IF($W$3=3,Tabell8[[#This Row],[Pris ÅF]],IF($W$3=4,Tabell8[[#This Row],[Pris K]])))),) -> 426 | Z52: =Tabell8[[#This Row],[Antal]]*Tabell8[[#This Row],[Kolumn5]] -> 0 | AA52: 426 | AB52: =Tabell8[[#This Row],[Antal]]*Tabell8[[#This Row],[Pris efter rabatt]] -> 0 | AC52: =IF(Tabell8[[#This Row],[Grönt2]]=19.37,Tabell8[[#This Row],[Totalt pris]],0) -> 0 | AD52: =IF(Tabell8[[#This Row],[Grönt1]]=48.5,Tabell8[[#This Row],[Totalt pris]],0) -> 0
B53: =IF(M53<1,"",MAX(B$1:B52)+1) ->  | C53: 8086001-34452 | D53: Tigo CCA Kit | E53: 4 | F53: 0 | G53: =IF(Indata!$D$11="Ja",19.37,0) -> 19.37 | H53: =Tabell8[[#This Row],[Grönt1]]+G53 -> 19.37 | K53: 0 | L53: ='Ändringar-Kompletteringar'!E52 -> 0 | M53: =Tabell8[[#This Row],[Ändring]] -> 0 | N53: 1451 | P53: 1799 | Q53: =P53-N53 -> 348 | S53: 1886 | T53: =S53-N53 -> 435 | U53: 9 | V53: =IF(Indata!$D$10="BUTP",Anpassning!$E$9+Beräkningar!$I$3,$I$3) -> 1 | W53: =Tabell8[[#This Row],[Pris ÅF]]*Tabell8[[#This Row],[% K]] -> 1886 | X53: =W53-N53 -> 435 | Y53: =IFERROR(IF($W$3=1,Tabell8[[#This Row],[IKP]],IF($W$3=2,Tabell8[[#This Row],[ES-pris]],IF($W$3=3,Tabell8[[#This Row],[Pris ÅF]],IF($W$3=4,Tabell8[[#This Row],[Pris K]])))),) -> 1886 | Z53: =Tabell8[[#This Row],[Antal]]*Tabell8[[#This Row],[Kolumn5]] -> 0 | AA53: 1886 | AB53: =Tabell8[[#This Row],[Antal]]*Tabell8[[#This Row],[Pris efter rabatt]] -> 0 | AC53: =IF(Tabell8[[#This Row],[Grönt2]]=19.37,Tabell8[[#This Row],[Totalt pris]],0) -> 0 | AD53: =IF(Tabell8[[#This Row],[Grönt1]]=48.5,Tabell8[[#This Row],[Totalt pris]],0) -> 0
B54: =IF(M54<1,"",MAX(B$1:B53)+1) ->  | C54: 5057002-KPL | D54: Falsplåtsklämma kompl m vinkel | E54: 5 | F54: 0 | G54: =IF(Indata!$D$11="Ja",19.37,0) -> 19.37 | H54: =Tabell8[[#This Row],[Grönt1]]+G54 -> 19.37 | I54: =IF(AND($L$3=1,$N$3=4),Formler!D18,0) -> 0 | J54: =IF(AND($L$4=2,$N$4=4),Formler!E18,0) -> 0 | K54: =Tabell8[[#This Row],[Tak 1]]+Tabell8[[#This Row],[Tak 2]] -> 0 | L54: ='Ändringar-Kompletteringar'!E53 -> 0 | M54: =Tabell8[[#This Row],[Kalkyl]]+Tabell8[[#This Row],[Ändring]] -> 0 | N54: 19.5 | P54: 37.83 | Q54: =P54-N54 -> 18.33 | S54: 41.93 | T54: =S54-N54 -> 22.43 | U54: 8 | V54: =IF(Indata!$D$10="BUTP",Anpassning!$E$8+Beräkningar!$I$3,$I$3) -> 1 | W54: =Tabell8[[#This Row],[Pris ÅF]]*Tabell8[[#This Row],[% K]] -> 41.93 | X54: =W54-N54 -> 22.43 | Y54: =IFERROR(IF($W$3=1,Tabell8[[#This Row],[IKP]],IF($W$3=2,Tabell8[[#This Row],[ES-pris]],IF($W$3=3,Tabell8[[#This Row],[Pris ÅF]],IF($W$3=4,Tabell8[[#This Row],[Pris K]])))),) -> 41.93 | Z54: =Tabell8[[#This Row],[Antal]]*Tabell8[[#This Row],[Kolumn5]] -> 0 | AA54: 41.93 | AB54: =Tabell8[[#This Row],[Antal]]*Tabell8[[#This Row],[Pris efter rabatt]] -> 0 | AC54: =IF(Tabell8[[#This Row],[Grönt2]]=19.37,Tabell8[[#This Row],[Totalt pris]],0) -> 0 | AD54: =IF(Tabell8[[#This Row],[Grönt1]]=48.5,Tabell8[[#This Row],[Totalt pris]],0) -> 0
B55: =IF(M55<1,"",MAX(B$1:B54)+1) ->  | C55: 5051001-R04200 | D55: Montageskena Svart 4200mm | E55: 5 | F55: 0 | G55: =IF(Indata!$D$11="Ja",19.37,0) -> 19.37 | H55: =Tabell8[[#This Row],[Grönt1]]+G55 -> 19.37 | I55: =IF($N$3=1,0,Formler!F8) -> 0 | J55: =IF($N$4=1,0,Formler!G8) -> 0 | K55: =Tabell8[[#This Row],[Tak 1]]+Tabell8[[#This Row],[Tak 2]] -> 0 | L55: ='Ändringar-Kompletteringar'!E54 -> 0 | M55: =Tabell8[[#This Row],[Kalkyl]]+Tabell8[[#This Row],[Ändring]] -> 0 | N55: 137 | P55: 260.3 | Q55: =P55-N55 -> 123.3 | S55: 287.7 | T55: =S55-N55 -> 150.7 | U55: 8 | V55: =IF(Indata!$D$10="BUTP",Anpassning!$E$8+Beräkningar!$I$3,$I$3) -> 1 | W55: =Tabell8[[#This Row],[Pris ÅF]]*Tabell8[[#This Row],[% K]] -> 287.7 | X55: =W55-N55 -> 150.7 | Y55: =IFERROR(IF($W$3=1,Tabell8[[#This Row],[IKP]],IF($W$3=2,Tabell8[[#This Row],[ES-pris]],IF($W$3=3,Tabell8[[#This Row],[Pris ÅF]],IF($W$3=4,Tabell8[[#This Row],[Pris K]])))),) -> 287.7 | Z55: =Tabell8[[#This Row],[Antal]]*Tabell8[[#This Row],[Kolumn5]] -> 0 | AA55: 287.7 | AB55: =Tabell8[[#This Row],[Antal]]*Tabell8[[#This Row],[Pris efter rabatt]] -> 0 | AC55: =IF(Tabell8[[#This Row],[Grönt2]]=19.37,Tabell8[[#This Row],[Totalt pris]],0) -> 0 | AD55: =IF(Tabell8[[#This Row],[Grönt1]]=48.5,Tabell8[[#This Row],[Totalt pris]],0) -> 0
B56: =IF(M56<1,"",MAX(B$1:B55)+1) ->  | C56: 5053001-EC30 | D56: Ändklämma Svart 30 mm | E56: 5 | F56: 0 | G56: =IF(Indata!$D$11="Ja",19.37,0) -> 19.37 | H56: =Tabell8[[#This Row],[Grönt1]]+G56 -> 19.37 | I56: =Formler!D5 -> 0 | J56: =Formler!E5 -> 0 | K56: =Tabell8[[#This Row],[Tak 1]]+Tabell8[[#This Row],[Tak 2]] -> 0 | L56: ='Ändringar-Kompletteringar'!E55 -> 0 | M56: =Tabell8[[#This Row],[Kalkyl]]+Tabell8[[#This Row],[Ändring]] -> 0 | N56: 5.8 | P56: 13.34 | Q56: =P56-N56 -> 7.54 | S56: 16.53 | T56: =S56-N56 -> 10.73 | U56: 8 | V56: =IF(Indata!$D$10="BUTP",Anpassning!$E$8+Beräkningar!$I$3,$I$3) -> 1 | W56: =Tabell8[[#This Row],[Pris ÅF]]*Tabell8[[#This Row],[% K]] -> 16.53 | X56: =W56-N56 -> 10.73 | Y56: =IFERROR(IF($W$3=1,Tabell8[[#This Row],[IKP]],IF($W$3=2,Tabell8[[#This Row],[ES-pris]],IF($W$3=3,Tabell8[[#This Row],[Pris ÅF]],IF($W$3=4,Tabell8[[#This Row],[Pris K]])))),) -> 16.53 | Z56: =Tabell8[[#This Row],[Antal]]*Tabell8[[#This Row],[Kolumn5]] -> 0 | AA56: 16.53 | AB56: =Tabell8[[#This Row],[Antal]]*Tabell8[[#This Row],[Pris efter rabatt]] -> 0 | AC56: =IF(Tabell8[[#This Row],[Grönt2]]=19.37,Tabell8[[#This Row],[Totalt pris]],0) -> 0 | AD56: =IF(Tabell8[[#This Row],[Grönt1]]=48.5,Tabell8[[#This Row],[Totalt pris]],0) -> 0
B57: =IF(M57<1,"",MAX(B$1:B56)+1) ->  | C57: 5053002-IC35 | D57: Mittklämma Svart 30-51mm | E57: 5 | F57: 0 | G57: =IF(Indata!$D$11="Ja",19.37,0) -> 19.37 | H57: =Tabell8[[#This Row],[Grönt1]]+G57 -> 19.37 | I57: =Formler!D7 -> 0 | J57: =Formler!E7 -> 0 | K57: =Tabell8[[#This Row],[Tak 1]]+Tabell8[[#This Row],[Tak 2]] -> 0 | L57: ='Ändringar-Kompletteringar'!E56 -> 0 | M57: =Tabell8[[#This Row],[Kalkyl]]+Tabell8[[#This Row],[Ändring]] -> 0 | N57: 6.19 | P57: 14.24 | Q57: =P57-N57 -> 8.05 | S57: 17.64 | T57: =S57-N57 -> 11.45 | U57: 8 | V57: =IF(Indata!$D$10="BUTP",Anpassning!$E$8+Beräkningar!$I$3,$I$3) -> 1 | W57: =Tabell8[[#This Row],[Pris ÅF]]*Tabell8[[#This Row],[% K]] -> 17.64 | X57: =W57-N57 -> 11.45 | Y57: =IFERROR(IF($W$3=1,Tabell8[[#This Row],[IKP]],IF($W$3=2,Tabell8[[#This Row],[ES-pris]],IF($W$3=3,Tabell8[[#This Row],[Pris ÅF]],IF($W$3=4,Tabell8[[#This Row],[Pris K]])))),) -> 17.64 | Z57: =Tabell8[[#This Row],[Antal]]*Tabell8[[#This Row],[Kolumn5]] -> 0 | AA57: 17.64 | AB57: =Tabell8[[#This Row],[Antal]]*Tabell8[[#This Row],[Pris efter rabatt]] -> 0 | AC57: =IF(Tabell8[[#This Row],[Grönt2]]=19.37,Tabell8[[#This Row],[Totalt pris]],0) -> 0 | AD57: =IF(Tabell8[[#This Row],[Grönt1]]=48.5,Tabell8[[#This Row],[Totalt pris]],0) -> 0
B58: =IF(M58<1,"",MAX(B$1:B57)+1) ->  | C58: 5052001-RS01 | D58: Skarvprofil för montageskena | E58: 5 | F58: 0 | G58: =IF(Indata!$D$11="Ja",19.37,0) -> 19.37 | H58: =Tabell8[[#This Row],[Grönt1]]+G58 -> 19.37 | I58: =IF($N$3=1,0,Formler!F8) -> 0 | J58: =IF($N$4=1,0,Formler!G8) -> 0 | K58: =Tabell8[[#This Row],[Tak 1]]+Tabell8[[#This Row],[Tak 2]] -> 0 | L58: ='Ändringar-Kompletteringar'!E57 -> 0 | M58: =Tabell8[[#This Row],[Kalkyl]]+Tabell8[[#This Row],[Ändring]] -> 0 | N58: 8.37 | P58: 18.41 | Q58: =P58-N58 -> 10.04 | S58: 21.76 | T58: =S58-N58 -> 13.39 | U58: 8 | V58: =IF(Indata!$D$10="BUTP",Anpassning!$E$8+Beräkningar!$I$3,$I$3) -> 1 | W58: =Tabell8[[#This Row],[Pris ÅF]]*Tabell8[[#This Row],[% K]] -> 21.76 | X58: =W58-N58 -> 13.39 | Y58: =IFERROR(IF($W$3=1,Tabell8[[#This Row],[IKP]],IF($W$3=2,Tabell8[[#This Row],[ES-pris]],IF($W$3=3,Tabell8[[#This Row],[Pris ÅF]],IF($W$3=4,Tabell8[[#This Row],[Pris K]])))),) -> 21.76 | Z58: =Tabell8[[#This Row],[Antal]]*Tabell8[[#This Row],[Kolumn5]] -> 0 | AA58: 21.76 | AB58: =Tabell8[[#This Row],[Antal]]*Tabell8[[#This Row],[Pris efter rabatt]] -> 0 | AC58: =IF(Tabell8[[#This Row],[Grönt2]]=19.37,Tabell8[[#This Row],[Totalt pris]],0) -> 0 | AD58: =IF(Tabell8[[#This Row],[Grönt1]]=48.5,Tabell8[[#This Row],[Totalt pris]],0) -> 0
B59: =IF(M59<1,"",MAX(B$1:B58)+1) ->  | C59: 5055002-SN | D59: Kopplingssats, Skruv+Glidlås | E59: 5 | F59: 0 | G59: =IF(Indata!$D$11="Ja",19.37,0) -> 19.37 | H59: =Tabell8[[#This Row],[Grönt1]]+G59 -> 19.37 | K59: 0 | L59: ='Ändringar-Kompletteringar'!E58 -> 0 | M59: =Tabell8[[#This Row],[Kalkyl]]+Tabell8[[#This Row],[Ändring]] -> 0 | N59: 2.12 | P59: 4.24 | Q59: =P59-N59 -> 2.12 | S59: 4.88 | T59: =S59-N59 -> 2.76 | U59: 8 | V59: =IF(Indata!$D$10="BUTP",Anpassning!$E$8+Beräkningar!$I$3,$I$3) -> 1 | W59: =Tabell8[[#This Row],[Pris ÅF]]*Tabell8[[#This Row],[% K]] -> 4.88 | X59: =W59-N59 -> 2.76 | Y59: =IFERROR(IF($W$3=1,Tabell8[[#This Row],[IKP]],IF($W$3=2,Tabell8[[#This Row],[ES-pris]],IF($W$3=3,Tabell8[[#This Row],[Pris ÅF]],IF($W$3=4,Tabell8[[#This Row],[Pris K]])))),) -> 4.88 | Z59: =Tabell8[[#This Row],[Antal]]*Tabell8[[#This Row],[Kolumn5]] -> 0 | AA59: 4.88 | AB59: =Tabell8[[#This Row],[Antal]]*Tabell8[[#This Row],[Pris efter rabatt]] -> 0 | AC59: =IF(Tabell8[[#This Row],[Grönt2]]=19.37,Tabell8[[#This Row],[Totalt pris]],0) -> 0 | AD59: =IF(Tabell8[[#This Row],[Grönt1]]=48.5,Tabell8[[#This Row],[Totalt pris]],0) -> 0
B60: =IF(M60<1,"",MAX(B$1:B59)+1) ->  | C60: 5055001-TC04200 | D60: Stockskruv M10x200mm, Komplett set | E60: 5 | F60: 0 | G60: =IF(Indata!$D$11="Ja",19.37,0) -> 19.37 | H60: =Tabell8[[#This Row],[Grönt1]]+G60 -> 19.37 | I60: =Formler!G21 -> 0 | J60: =Formler!G22 -> 0 | K60: =Tabell8[[#This Row],[Tak 1]]+Tabell8[[#This Row],[Tak 2]] -> 0 | L60: ='Ändringar-Kompletteringar'!E59 -> 0 | M60: =Tabell8[[#This Row],[Kalkyl]]+Tabell8[[#This Row],[Ändring]] -> 0 | N60: 17.61 | P60: 31.7 | Q60: =P60-N60 -> 14.09 | S60: 35.22 | T60: =S60-N60 -> 17.61 | U60: 8 | V60: =IF(Indata!$D$10="BUTP",Anpassning!$E$8+Beräkningar!$I$3,$I$3) -> 1 | W60: =Tabell8[[#This Row],[Pris ÅF]]*Tabell8[[#This Row],[% K]] -> 35.22 | X60: =W60-N60 -> 17.61 | Y60: =IFERROR(IF($W$3=1,Tabell8[[#This Row],[IKP]],IF($W$3=2,Tabell8[[#This Row],[ES-pris]],IF($W$3=3,Tabell8[[#This Row],[Pris ÅF]],IF($W$3=4,Tabell8[[#This Row],[Pris K]])))),) -> 35.22 | Z60: =Tabell8[[#This Row],[Antal]]*Tabell8[[#This Row],[Kolumn5]] -> 0 | AA60: 35.22 | AB60: =Tabell8[[#This Row],[Antal]]*Tabell8[[#This Row],[Pris efter rabatt]] -> 0 | AC60: =IF(Tabell8[[#This Row],[Grönt2]]=19.37,Tabell8[[#This Row],[Totalt pris]],0) -> 0 | AD60: =IF(Tabell8[[#This Row],[Grönt1]]=48.5,Tabell8[[#This Row],[Totalt pris]],0) -> 0
B61: =IF(M61<1,"",MAX(B$1:B60)+1) ->  | C61: 5054001-M10200 | D61: Stockskruv M10x200mm Enbart skruv | E61: 5 | F61: 0 | G61: =IF(Indata!$D$11="Ja",19.37,0) -> 19.37 | H61: =Tabell8[[#This Row],[Grönt1]]+G61 -> 19.37 | K61: 0 | L61: ='Ändringar-Kompletteringar'!E60 -> 0 | M61: =Tabell8[[#This Row],[Kalkyl]]+Tabell8[[#This Row],[Ändring]] -> 0 | N61: 10.9 | P61: 19.62 | Q61: =P61-N61 -> 8.72 | S61: 21.8 | T61: =S61-N61 -> 10.9 | U61: 8 | V61: =IF(Indata!$D$10="BUTP",Anpassning!$E$8+Beräkningar!$I$3,$I$3) -> 1 | W61: =Tabell8[[#This Row],[Pris ÅF]]*Tabell8[[#This Row],[% K]] -> 21.8 | X61: =W61-N61 -> 10.9 | Y61: =IFERROR(IF($W$3=1,Tabell8[[#This Row],[IKP]],IF($W$3=2,Tabell8[[#This Row],[ES-pris]],IF($W$3=3,Tabell8[[#This Row],[Pris ÅF]],IF($W$3=4,Tabell8[[#This Row],[Pris K]])))),) -> 21.8 | Z61: =Tabell8[[#This Row],[Antal]]*Tabell8[[#This Row],[Kolumn5]] -> 0 | AA61: 21.8 | AB61: =Tabell8[[#This Row],[Antal]]*Tabell8[[#This Row],[Pris efter rabatt]] -> 0 | AC61: =IF(Tabell8[[#This Row],[Grönt2]]=19.37,Tabell8[[#This Row],[Totalt pris]],0) -> 0 | AD61: =IF(Tabell8[[#This Row],[Grönt1]]=48.5,Tabell8[[#This Row],[Totalt pris]],0) -> 0
B62: =IF(M62<1,"",MAX(B$1:B61)+1) ->  | C62: 5055001-TC04300 | D62: Stockskruv M10x300mm, Komplett set | E62: 5 | F62: 0 | G62: =IF(Indata!$D$11="Ja",19.37,0) -> 19.37 | H62: =Tabell8[[#This Row],[Grönt1]]+G62 -> 19.37 | I62: =Formler!I21 -> 0 | J62: =Formler!I22 -> 0 | K62: =Tabell8[[#This Row],[Tak 1]]+Tabell8[[#This Row],[Tak 2]] -> 0 | L62: ='Ändringar-Kompletteringar'!E61 -> 0 | M62: =Tabell8[[#This Row],[Kalkyl]]+Tabell8[[#This Row],[Ändring]] -> 0 | N62: 17.61 | P62: 31.7 | Q62: =P62-N62 -> 14.09 | S62: 35.22 | T62: =S62-N62 -> 17.61 | U62: 8 | V62: =IF(Indata!$D$10="BUTP",Anpassning!$E$8+Beräkningar!$I$3,$I$3) -> 1 | W62: =Tabell8[[#This Row],[Pris ÅF]]*Tabell8[[#This Row],[% K]] -> 35.22 | X62: =W62-N62 -> 17.61 | Y62: =IFERROR(IF($W$3=1,Tabell8[[#This Row],[IKP]],IF($W$3=2,Tabell8[[#This Row],[ES-pris]],IF($W$3=3,Tabell8[[#This Row],[Pris ÅF]],IF($W$3=4,Tabell8[[#This Row],[Pris K]])))),) -> 35.22 | Z62: =Tabell8[[#This Row],[Antal]]*Tabell8[[#This Row],[Kolumn5]] -> 0 | AA62: 35.22 | AB62: =Tabell8[[#This Row],[Antal]]*Tabell8[[#This Row],[Pris efter rabatt]] -> 0 | AC62: =IF(Tabell8[[#This Row],[Grönt2]]=19.37,Tabell8[[#This Row],[Totalt pris]],0) -> 0 | AD62: =IF(Tabell8[[#This Row],[Grönt1]]=48.5,Tabell8[[#This Row],[Totalt pris]],0) -> 0
B63: =IF(M63<1,"",MAX(B$1:B62)+1) ->  | C63: 5054001-M10300 | D63: Stockskruv M10x300mm Enbart skruv | E63: 5 | F63: 0 | G63: =IF(Indata!$D$11="Ja",19.37,0) -> 19.37 | H63: =Tabell8[[#This Row],[Grönt1]]+G63 -> 19.37 | K63: =Tabell8[[#This Row],[Tak 1]]+Tabell8[[#This Row],[Tak 2]] -> 0 | L63: ='Ändringar-Kompletteringar'!E62 -> 0 | M63: =Tabell8[[#This Row],[Kalkyl]]+Tabell8[[#This Row],[Ändring]] -> 0 | N63: 10.9 | P63: 19.62 | Q63: =P63-N63 -> 8.72 | S63: 21.8 | T63: =S63-N63 -> 10.9 | U63: 8 | V63: =IF(Indata!$D$10="BUTP",Anpassning!$E$8+Beräkningar!$I$3,$I$3) -> 1 | W63: =Tabell8[[#This Row],[Pris ÅF]]*Tabell8[[#This Row],[% K]] -> 21.8 | X63: =W63-N63 -> 10.9 | Y63: =IFERROR(IF($W$3=1,Tabell8[[#This Row],[IKP]],IF($W$3=2,Tabell8[[#This Row],[ES-pris]],IF($W$3=3,Tabell8[[#This Row],[Pris ÅF]],IF($W$3=4,Tabell8[[#This Row],[Pris K]])))),) -> 21.8 | Z63: =Tabell8[[#This Row],[Antal]]*Tabell8[[#This Row],[Kolumn5]] -> 0 | AA63: 21.8 | AB63: =Tabell8[[#This Row],[Antal]]*Tabell8[[#This Row],[Pris efter rabatt]] -> 0 | AC63: =IF(Tabell8[[#This Row],[Grönt2]]=19.37,Tabell8[[#This Row],[Totalt pris]],0) -> 0 | AD63: =IF(Tabell8[[#This Row],[Grönt1]]=48.5,Tabell8[[#This Row],[Totalt pris]],0) -> 0
B64: =IF(M64<1,"",MAX(B$1:B63)+1) ->  | C64: 5058003-L50 | D64: Vinkel för stockskruv 50 mm | E64: 5 | F64: 0 | G64: =IF(Indata!$D$11="Ja",19.37,0) -> 19.37 | H64: =Tabell8[[#This Row],[Grönt1]]+G64 -> 19.37 | I64: =IF(AND($L$3=1,$N$3=5),Formler!D16,0) -> 0 | J64: =IF(AND($L$4=2,$N$4=5),Formler!E16,0) -> 0 | K64: =Tabell8[[#This Row],[Tak 1]]+Tabell8[[#This Row],[Tak 2]] -> 0 | L64: ='Ändringar-Kompletteringar'!E63 -> 0 | M64: =Tabell8[[#This Row],[Kalkyl]]+Tabell8[[#This Row],[Ändring]] -> 0 | N64: 6.99 | P64: 13.98 | Q64: =P64-N64 -> 6.99 | S64: 15.38 | T64: =S64-N64 -> 8.39 | U64: 8 | V64: =IF(Indata!$D$10="BUTP",Anpassning!$E$8+Beräkningar!$I$3,$I$3) -> 1 | W64: =Tabell8[[#This Row],[Pris ÅF]]*Tabell8[[#This Row],[% K]] -> 15.38 | X64: =W64-N64 -> 8.39 | Y64: =IFERROR(IF($W$3=1,Tabell8[[#This Row],[IKP]],IF($W$3=2,Tabell8[[#This Row],[ES-pris]],IF($W$3=3,Tabell8[[#This Row],[Pris ÅF]],IF($W$3=4,Tabell8[[#This Row],[Pris K]])))),) -> 15.38 | Z64: =Tabell8[[#This Row],[Antal]]*Tabell8[[#This Row],[Kolumn5]] -> 0 | AA64: 15.38 | AB64: =Tabell8[[#This Row],[Antal]]*Tabell8[[#This Row],[Pris efter rabatt]] -> 0 | AC64: =IF(Tabell8[[#This Row],[Grönt2]]=19.37,Tabell8[[#This Row],[Totalt pris]],0) -> 0 | AD64: =IF(Tabell8[[#This Row],[Grönt1]]=48.5,Tabell8[[#This Row],[Totalt pris]],0) -> 0
B65: =IF(M65<1,"",MAX(B$1:B64)+1) ->  | C65: 5056001-TH01 | D65: Tegelkrok Horisontellt | E65: 5 | F65: 0 | G65: =IF(Indata!$D$11="Ja",19.37,0) -> 19.37 | H65: =Tabell8[[#This Row],[Grönt1]]+G65 -> 19.37 | I65: =IF(AND($L$3=1,$N$3=3),Formler!D13,0) -> 0 | J65: =IF(AND($L$4=2,$N$4=3),Formler!E13,0) -> 0 | K65: =Tabell8[[#This Row],[Tak 1]]+Tabell8[[#This Row],[Tak 2]] -> 0 | L65: ='Ändringar-Kompletteringar'!E64 -> 0 | M65: =Tabell8[[#This Row],[Kalkyl]]+Tabell8[[#This Row],[Ändring]] -> 0 | N65: 28.22 | P65: 57.85 | Q65: =P65-N65 -> 29.63 | S65: 62.08 | T65: =S65-N65 -> 33.86 | U65: 8 | V65: =IF(Indata!$D$10="BUTP",Anpassning!$E$8+Beräkningar!$I$3,$I$3) -> 1 | W65: =Tabell8[[#This Row],[Pris ÅF]]*Tabell8[[#This Row],[% K]] -> 62.08 | X65: =W65-N65 -> 33.86 | Y65: =IFERROR(IF($W$3=1,Tabell8[[#This Row],[IKP]],IF($W$3=2,Tabell8[[#This Row],[ES-pris]],IF($W$3=3,Tabell8[[#This Row],[Pris ÅF]],IF($W$3=4,Tabell8[[#This Row],[Pris K]])))),) -> 62.08 | Z65: =Tabell8[[#This Row],[Antal]]*Tabell8[[#This Row],[Kolumn5]] -> 0 | AA65: 62.08 | AB65: =Tabell8[[#This Row],[Antal]]*Tabell8[[#This Row],[Pris efter rabatt]] -> 0 | AC65: =IF(Tabell8[[#This Row],[Grönt2]]=19.37,Tabell8[[#This Row],[Totalt pris]],0) -> 0 | AD65: =IF(Tabell8[[#This Row],[Grönt1]]=48.5,Tabell8[[#This Row],[Totalt pris]],0) -> 0
B66: =IF(M66<1,"",MAX(B$1:B65)+1) ->  | C66: 5056001-TH04 | D66: Tegelkrok Vertikalt | E66: 5 | F66: 0 | G66: =IF(Indata!$D$11="Ja",19.37,0) -> 19.37 | H66: =Tabell8[[#This Row],[Grönt1]]+G66 -> 19.37 | I66: =IF(AND($L$3=1,$N$3=7),Formler!D12,0) -> 0 | J66: =IF(AND($L$4=2,$N$4=7),Formler!E12,0) -> 0 | K66: =Tabell8[[#This Row],[Tak 1]]+Tabell8[[#This Row],[Tak 2]] -> 0 | L66: ='Ändringar-Kompletteringar'!E65 -> 0 | M66: =Tabell8[[#This Row],[Kalkyl]]+Tabell8[[#This Row],[Ändring]] -> 0 | N66: 32.47 | P66: 58.45 | Q66: =P66-N66 -> 25.98 | S66: 64.94 | T66: =S66-N66 -> 32.47 | U66: 8 | V66: =IF(Indata!$D$10="BUTP",Anpassning!$E$8+Beräkningar!$I$3,$I$3) -> 1 | W66: =Tabell8[[#This Row],[Pris ÅF]]*Tabell8[[#This Row],[% K]] -> 64.94 | X66: =W66-N66 -> 32.47 | Y66: =IFERROR(IF($W$3=1,Tabell8[[#This Row],[IKP]],IF($W$3=2,Tabell8[[#This Row],[ES-pris]],IF($W$3=3,Tabell8[[#This Row],[Pris ÅF]],IF($W$3=4,Tabell8[[#This Row],[Pris K]])))),) -> 64.94 | Z66: =Tabell8[[#This Row],[Antal]]*Tabell8[[#This Row],[Kolumn5]] -> 0 | AA66: 64.94 | AB66: =Tabell8[[#This Row],[Antal]]*Tabell8[[#This Row],[Pris efter rabatt]] -> 0 | AC66: =IF(Tabell8[[#This Row],[Grönt2]]=19.37,Tabell8[[#This Row],[Totalt pris]],0) -> 0 | AD66: =IF(Tabell8[[#This Row],[Grönt1]]=48.5,Tabell8[[#This Row],[Totalt pris]],0) -> 0
B67: =IF(M67<1,"",MAX(B$1:B66)+1) ->  | C67: 5056001-TH02 | D67: Takkrok låg | E67: 5 | F67: 0 | G67: =IF(Indata!$D$11="Ja",19.37,0) -> 19.37 | H67: =Tabell8[[#This Row],[Grönt1]]+G67 -> 19.37 | K67: 0 | L67: ='Ändringar-Kompletteringar'!E66 -> 0 | M67: =Tabell8[[#This Row],[Kalkyl]]+Tabell8[[#This Row],[Ändring]] -> 0 | N67: 24.6 | P67: 39.36 | Q67: =P67-N67 -> 14.76 | S67: 44.28 | T67: =S67-N67 -> 19.68 | U67: 8 | V67: =IF(Indata!$D$10="BUTP",Anpassning!$E$8+Beräkningar!$I$3,$I$3) -> 1 | W67: =Tabell8[[#This Row],[Pris ÅF]]*Tabell8[[#This Row],[% K]] -> 44.28 | X67: =W67-N67 -> 19.68 | Y67: =IFERROR(IF($W$3=1,Tabell8[[#This Row],[IKP]],IF($W$3=2,Tabell8[[#This Row],[ES-pris]],IF($W$3=3,Tabell8[[#This Row],[Pris ÅF]],IF($W$3=4,Tabell8[[#This Row],[Pris K]])))),) -> 44.28 | Z67: =Tabell8[[#This Row],[Antal]]*Tabell8[[#This Row],[Kolumn5]] -> 0 | AA67: 44.28 | AB67: =Tabell8[[#This Row],[Antal]]*Tabell8[[#This Row],[Pris efter rabatt]] -> 0 | AC67: =IF(Tabell8[[#This Row],[Grönt2]]=19.37,Tabell8[[#This Row],[Totalt pris]],0) -> 0 | AD67: =IF(Tabell8[[#This Row],[Grönt1]]=48.5,Tabell8[[#This Row],[Totalt pris]],0) -> 0
B68: =IF(M68<1,"",MAX(B$1:B67)+1) ->  | C68: 5054002-S | D68: Skruv för takkrok | E68: 5 | F68: 0 | G68: =IF(Indata!$D$11="Ja",19.37,0) -> 19.37 | H68: =Tabell8[[#This Row],[Grönt1]]+G68 -> 19.37 | K68: 0 | L68: ='Ändringar-Kompletteringar'!E67 -> 0 | M68: =Tabell8[[#This Row],[Kalkyl]]+Tabell8[[#This Row],[Ändring]] -> 0 | N68: 0.87 | P68: 1.48 | Q68: =P68-N68 -> 0.61 | S68: 1.65 | T68: =S68-N68 -> 0.78 | U68: 8 | V68: =IF(Indata!$D$10="BUTP",Anpassning!$E$8+Beräkningar!$I$3,$I$3) -> 1 | W68: =Tabell8[[#This Row],[Pris ÅF]]*Tabell8[[#This Row],[% K]] -> 1.65 | X68: =W68-N68 -> 0.78 | Y68: =IFERROR(IF($W$3=1,Tabell8[[#This Row],[IKP]],IF($W$3=2,Tabell8[[#This Row],[ES-pris]],IF($W$3=3,Tabell8[[#This Row],[Pris ÅF]],IF($W$3=4,Tabell8[[#This Row],[Pris K]])))),) -> 1.65 | Z68: =Tabell8[[#This Row],[Antal]]*Tabell8[[#This Row],[Kolumn5]] -> 0 | AA68: 1.65 | AB68: =Tabell8[[#This Row],[Antal]]*Tabell8[[#This Row],[Pris efter rabatt]] -> 0 | AC68: =IF(Tabell8[[#This Row],[Grönt2]]=19.37,Tabell8[[#This Row],[Totalt pris]],0) -> 0 | AD68: =IF(Tabell8[[#This Row],[Grönt1]]=48.5,Tabell8[[#This Row],[Totalt pris]],0) -> 0
B69: =IF(M69<1,"",MAX(B$1:B68)+1) ->  | C69: 5051002-TC15 | D69: Kortskena för plåtmont. Svart, 140 mm | E69: 5 | F69: 0 | G69: =IF(Indata!$D$11="Ja",19.37,0) -> 19.37 | H69: =Tabell8[[#This Row],[Grönt1]]+G69 -> 19.37 | I69: =IF(AND($L$3=1,$N$3=1),Formler!D19,0) -> 0 | J69: =IF(AND($L$4=2,$N$4=1),Formler!E19,0) -> 0 | K69: =Tabell8[[#This Row],[Tak 1]]+Tabell8[[#This Row],[Tak 2]] -> 0 | L69: ='Ändringar-Kompletteringar'!E68 -> 0 | M69: =Tabell8[[#This Row],[Kalkyl]]+Tabell8[[#This Row],[Ändring]] -> 0 | N69: 15.11 | P69: 27.2 | Q69: =P69-N69 -> 12.09 | S69: 34.75 | T69: =S69-N69 -> 19.64 | U69: 8 | V69: =IF(Indata!$D$10="BUTP",Anpassning!$E$8+Beräkningar!$I$3,$I$3) -> 1 | W69: =Tabell8[[#This Row],[Pris ÅF]]*Tabell8[[#This Row],[% K]] -> 34.75 | X69: =W69-N69 -> 19.64 | Y69: =IFERROR(IF($W$3=1,Tabell8[[#This Row],[IKP]],IF($W$3=2,Tabell8[[#This Row],[ES-pris]],IF($W$3=3,Tabell8[[#This Row],[Pris ÅF]],IF($W$3=4,Tabell8[[#This Row],[Pris K]])))),) -> 34.75 | Z69: =Tabell8[[#This Row],[Antal]]*Tabell8[[#This Row],[Kolumn5]] -> 0 | AA69: 34.75 | AB69: =Tabell8[[#This Row],[Antal]]*Tabell8[[#This Row],[Pris efter rabatt]] -> 0 | AC69: =IF(Tabell8[[#This Row],[Grönt2]]=19.37,Tabell8[[#This Row],[Totalt pris]],0) -> 0 | AD69: =IF(Tabell8[[#This Row],[Grönt1]]=48.5,Tabell8[[#This Row],[Totalt pris]],0) -> 0
B70: =IF(M70<1,"",MAX(B$1:B69)+1) ->  | C70: 5057002-TCNPC1 | D70: Falsplåtsklämma | E70: 5 | F70: 0 | G70: =IF(Indata!$D$11="Ja",19.37,0) -> 19.37 | H70: =Tabell8[[#This Row],[Grönt1]]+G70 -> 19.37 | I70: 0 | J70: 0 | K70: =Tabell8[[#This Row],[Tak 1]]+Tabell8[[#This Row],[Tak 2]] -> 0 | L70: ='Ändringar-Kompletteringar'!E69 -> 0 | M70: =Tabell8[[#This Row],[Kalkyl]]+Tabell8[[#This Row],[Ändring]] -> 0 | N70: 11.5 | P70: 21.85 | Q70: =P70-N70 -> 10.35 | S70: 25.3 | T70: =S70-N70 -> 13.8 | U70: 8 | V70: =IF(Indata!$D$10="BUTP",Anpassning!$E$8+Beräkningar!$I$3,$I$3) -> 1 | W70: =Tabell8[[#This Row],[Pris ÅF]]*Tabell8[[#This Row],[% K]] -> 25.3 | X70: =W70-N70 -> 13.8 | Y70: =IFERROR(IF($W$3=1,Tabell8[[#This Row],[IKP]],IF($W$3=2,Tabell8[[#This Row],[ES-pris]],IF($W$3=3,Tabell8[[#This Row],[Pris ÅF]],IF($W$3=4,Tabell8[[#This Row],[Pris K]])))),) -> 25.3 | Z70: =Tabell8[[#This Row],[Antal]]*Tabell8[[#This Row],[Kolumn5]] -> 0 | AA70: 25.3 | AB70: =Tabell8[[#This Row],[Antal]]*Tabell8[[#This Row],[Pris efter rabatt]] -> 0 | AC70: =IF(Tabell8[[#This Row],[Grönt2]]=19.37,Tabell8[[#This Row],[Totalt pris]],0) -> 0 | AD70: =IF(Tabell8[[#This Row],[Grönt1]]=48.5,Tabell8[[#This Row],[Totalt pris]],0) -> 0
B71: =IF(M71<1,"",MAX(B$1:B70)+1) ->  | C71: 9257001-100185 | D71: CWL Infästningsplatta 375x375 | E71: 5 | F71: 0 | G71: =IF(Indata!$D$11="Ja",19.37,0) -> 19.37 | H71: =Tabell8[[#This Row],[Grönt1]]+G71 -> 19.37 | I71: =IF(AND($L$3=1,$N$3=5),Formler!D16,0) -> 0 | J71: =IF(AND($L$4=2,$N$4=5),Formler!E16,0) -> 0 | K71: =Tabell8[[#This Row],[Tak 1]]+Tabell8[[#This Row],[Tak 2]] -> 0 | L71: ='Ändringar-Kompletteringar'!E70 -> 0 | M71: =Tabell8[[#This Row],[Kalkyl]]+Tabell8[[#This Row],[Ändring]] -> 0 | N71: 150.53 | P71: 193 | Q71: =P71-N71 -> 42.47 | S71: 203 | T71: =S71-N71 -> 52.47 | U71: 8 | V71: =IF(Indata!$D$10="BUTP",Anpassning!$E$8+Beräkningar!$I$3,$I$3) -> 1 | W71: =Tabell8[[#This Row],[Pris ÅF]]*Tabell8[[#This Row],[% K]] -> 203 | X71: =W71-N71 -> 52.47 | Y71: =IFERROR(IF($W$3=1,Tabell8[[#This Row],[IKP]],IF($W$3=2,Tabell8[[#This Row],[ES-pris]],IF($W$3=3,Tabell8[[#This Row],[Pris ÅF]],IF($W$3=4,Tabell8[[#This Row],[Pris K]])))),) -> 203 | Z71: =Tabell8[[#This Row],[Antal]]*Tabell8[[#This Row],[Kolumn5]] -> 0 | AA71: 203 | AB71: =Tabell8[[#This Row],[Antal]]*Tabell8[[#This Row],[Pris efter rabatt]] -> 0 | AC71: =IF(Tabell8[[#This Row],[Grönt2]]=19.37,Tabell8[[#This Row],[Totalt pris]],0) -> 0 | AD71: =IF(Tabell8[[#This Row],[Grönt1]]=48.5,Tabell8[[#This Row],[Totalt pris]],0) -> 0
B72: =IF(M72<1,"",MAX(B$1:B71)+1) ->  | C72: 9255001-420012P | D72: CWL Monteringssats | E72: 5 | F72: 0 | G72: =IF(Indata!$D$11="Ja",19.37,0) -> 19.37 | H72: =Tabell8[[#This Row],[Grönt1]]+G72 -> 19.37 | I72: =IF(AND($L$3=1,$N$3=5),Formler!D17,0) -> 0 | J72: =IF(AND($L$4=2,$N$4=5),Formler!E17,0) -> 0 | K72: =Tabell8[[#This Row],[Tak 1]]+Tabell8[[#This Row],[Tak 2]] -> 0 | L72: ='Ändringar-Kompletteringar'!E71 -> 0 | M72: =Tabell8[[#This Row],[Kalkyl]]+Tabell8[[#This Row],[Ändring]] -> 0 | N72: 28.83 | P72: 35.75 | Q72: =P72-N72 -> 6.92 | S72: 39.5 | T72: =S72-N72 -> 10.67 | U72: 8 | V72: =IF(Indata!$D$10="BUTP",Anpassning!$E$8+Beräkningar!$I$3,$I$3) -> 1 | W72: =Tabell8[[#This Row],[Pris ÅF]]*Tabell8[[#This Row],[% K]] -> 39.5 | X72: =W72-N72 -> 10.67 | Y72: =IFERROR(IF($W$3=1,Tabell8[[#This Row],[IKP]],IF($W$3=2,Tabell8[[#This Row],[ES-pris]],IF($W$3=3,Tabell8[[#This Row],[Pris ÅF]],IF($W$3=4,Tabell8[[#This Row],[Pris K]])))),) -> 39.5 | Z72: =Tabell8[[#This Row],[Antal]]*Tabell8[[#This Row],[Kolumn5]] -> 0 | AA72: 39.5 | AB72: =Tabell8[[#This Row],[Antal]]*Tabell8[[#This Row],[Pris efter rabatt]] -> 0 | AC72: =IF(Tabell8[[#This Row],[Grönt2]]=19.37,Tabell8[[#This Row],[Totalt pris]],0) -> 0 | AD72: =IF(Tabell8[[#This Row],[Grönt1]]=48.5,Tabell8[[#This Row],[Totalt pris]],0) -> 0
B73: =IF(M73<1,"",MAX(B$1:B72)+1) ->  | C73: 5059001-CLIPS | D73: Kabelklips för Panelram | E73: 5 | F73: 0 | G73: =IF(Indata!$D$11="Ja",19.37,0) -> 19.37 | H73: =Tabell8[[#This Row],[Grönt1]]+G73 -> 19.37 | I73: 0 | J73: 0 | K73: =Formler!C11 -> 0 | L73: ='Ändringar-Kompletteringar'!E72 -> 0 | M73: =Tabell8[[#This Row],[Kalkyl]]+Tabell8[[#This Row],[Ändring]] -> 0 | N73: 0.54 | P73: 1.4 | Q73: =P73-N73 -> 0.86 | S73: 2 | T73: =S73-N73 -> 1.46 | U73: 8 | V73: =IF(Indata!$D$10="BUTP",Anpassning!$E$8+Beräkningar!$I$3,$I$3) -> 1 | W73: =Tabell8[[#This Row],[Pris ÅF]]*Tabell8[[#This Row],[% K]] -> 2 | X73: =W73-N73 -> 1.46 | Y73: =IFERROR(IF($W$3=1,Tabell8[[#This Row],[IKP]],IF($W$3=2,Tabell8[[#This Row],[ES-pris]],IF($W$3=3,Tabell8[[#This Row],[Pris ÅF]],IF($W$3=4,Tabell8[[#This Row],[Pris K]])))),) -> 2 | Z73: =Tabell8[[#This Row],[Antal]]*Tabell8[[#This Row],[Kolumn5]] -> 0 | AA73: 2 | AB73: =Tabell8[[#This Row],[Antal]]*Tabell8[[#This Row],[Pris efter rabatt]] -> 0 | AC73: =IF(Tabell8[[#This Row],[Grönt2]]=19.37,Tabell8[[#This Row],[Totalt pris]],0) -> 0 | AD73: =IF(Tabell8[[#This Row],[Grönt1]]=48.5,Tabell8[[#This Row],[Totalt pris]],0) -> 0
B74: =IF(M74<1,"",MAX(B$1:B73)+1) ->  | C74: 5055003-L40 | D74: Vinkel 40mm för Falsplåtsklämma m skruv | E74: 5 | F74: 0 | G74: =IF(Indata!$D$11="Ja",19.37,0) -> 19.37 | H74: =Tabell8[[#This Row],[Grönt1]]+G74 -> 19.37 | I74: 0 | J74: 0 | K74: =Tabell8[[#This Row],[Tak 1]]+Tabell8[[#This Row],[Tak 2]] -> 0 | L74: ='Ändringar-Kompletteringar'!E73 -> 0 | M74: =Tabell8[[#This Row],[Kalkyl]]+Tabell8[[#This Row],[Ändring]] -> 0 | N74: 8 | P74: 16 | Q74: =P74-N74 -> 8 | S74: 17.6 | T74: =S74-N74 -> 9.6 | U74: 8 | V74: =IF(Indata!$D$10="BUTP",Anpassning!$E$8+Beräkningar!$I$3,$I$3) -> 1 | W74: =Tabell8[[#This Row],[Pris ÅF]]*Tabell8[[#This Row],[% K]] -> 17.6 | X74: =W74-N74 -> 9.6 | Y74: =IFERROR(IF($W$3=1,Tabell8[[#This Row],[IKP]],IF($W$3=2,Tabell8[[#This Row],[ES-pris]],IF($W$3=3,Tabell8[[#This Row],[Pris ÅF]],IF($W$3=4,Tabell8[[#This Row],[Pris K]])))),) -> 17.6 | Z74: =Tabell8[[#This Row],[Antal]]*Tabell8[[#This Row],[Kolumn5]] -> 0 | AA74: 17.6 | AB74: =Tabell8[[#This Row],[Antal]]*Tabell8[[#This Row],[Pris efter rabatt]] -> 0 | AC74: =IF(Tabell8[[#This Row],[Grönt2]]=19.37,Tabell8[[#This Row],[Totalt pris]],0) -> 0 | AD74: =IF(Tabell8[[#This Row],[Grönt1]]=48.5,Tabell8[[#This Row],[Totalt pris]],0) -> 0
B75: =IF(M75<1,"",MAX(B$1:B74)+1) ->  | C75: 5053001-EC35 | D75: Ändklämma Svart 35 mm | E75: 5 | F75: 0 | G75: =IF(Indata!$D$11="Ja",19.37,0) -> 19.37 | H75: =Tabell8[[#This Row],[Grönt1]]+G75 -> 19.37 | K75: =Formler!S85 -> 0 | L75: ='Ändringar-Kompletteringar'!E74 -> 0 | M75: =Tabell8[[#This Row],[Kalkyl]]+Tabell8[[#This Row],[Ändring]] -> 0 | N75: 5.8 | P75: 13.34 | Q75: =P75-N75 -> 7.54 | S75: 16.53 | T75: =S75-N75 -> 10.73 | U75: 8 | V75: =IF(Indata!$D$10="BUTP",Anpassning!$E$8+Beräkningar!$I$3,$I$3) -> 1 | W75: =Tabell8[[#This Row],[Pris ÅF]]*Tabell8[[#This Row],[% K]] -> 16.53 | X75: =W75-N75 -> 10.73 | Y75: =IFERROR(IF($W$3=1,Tabell8[[#This Row],[IKP]],IF($W$3=2,Tabell8[[#This Row],[ES-pris]],IF($W$3=3,Tabell8[[#This Row],[Pris ÅF]],IF($W$3=4,Tabell8[[#This Row],[Pris K]])))),) -> 16.53 | Z75: =Tabell8[[#This Row],[Antal]]*Tabell8[[#This Row],[Kolumn5]] -> 0 | AA75: =Y75+(Y75*$W$4/100) -> 16.53 | AB75: =Tabell8[[#This Row],[Antal]]*Tabell8[[#This Row],[Pris efter rabatt]] -> 0 | AC75: =IF(Tabell8[[#This Row],[Grönt2]]=19.37,Tabell8[[#This Row],[Totalt pris]],0) -> 0 | AD75: =IF(Tabell8[[#This Row],[Grönt1]]=48.5,Tabell8[[#This Row],[Totalt pris]],0) -> 0 | AE75: x
B76: =IF(M76<1,"",MAX(B$1:B75)+1) ->  | C76: 5056001-TH12 | D76: Tegelkrok justerbar | E76: 5 | F76: 0 | G76: =IF(Indata!$D$11="Ja",19.37,0) -> 19.37 | H76: =Tabell8[[#This Row],[Grönt1]]+G76 -> 19.37 | K76: 0 | L76: ='Ändringar-Kompletteringar'!E75 -> 0 | M76: =Tabell8[[#This Row],[Kalkyl]]+Tabell8[[#This Row],[Ändring]] -> 0 | N76: 34.15 | P76: 69.67 | Q76: =P76-N76 -> 35.52 | S76: 75.13 | T76: =S76-N76 -> 40.98 | U76: 8 | V76: =IF(Indata!$D$10="BUTP",Anpassning!$E$8+Beräkningar!$I$3,$I$3) -> 1 | W76: =Tabell8[[#This Row],[Pris ÅF]]*Tabell8[[#This Row],[% K]] -> 75.13 | X76: =W76-N76 -> 40.98 | Y76: =IFERROR(IF($W$3=1,Tabell8[[#This Row],[IKP]],IF($W$3=2,Tabell8[[#This Row],[ES-pris]],IF($W$3=3,Tabell8[[#This Row],[Pris ÅF]],IF($W$3=4,Tabell8[[#This Row],[Pris K]])))),) -> 75.13 | Z76: =Tabell8[[#This Row],[Antal]]*Tabell8[[#This Row],[Kolumn5]] -> 0 | AA76: 75.13 | AB76: =Tabell8[[#This Row],[Antal]]*Tabell8[[#This Row],[Pris efter rabatt]] -> 0 | AC76: =IF(Tabell8[[#This Row],[Grönt2]]=19.37,Tabell8[[#This Row],[Totalt pris]],0) -> 0 | AD76: =IF(Tabell8[[#This Row],[Grönt1]]=48.5,Tabell8[[#This Row],[Totalt pris]],0) -> 0 | AE76: x
B77: =IF(M77<1,"",MAX(B$1:B76)+1) ->  | C77: 5059002-REC | D77: Ändskydd monteringsskena | E77: 5 | F77: 0 | G77: =IF(Indata!$D$11="Ja",19.37,0) -> 19.37 | H77: =Tabell8[[#This Row],[Grönt1]]+G77 -> 19.37 | K77: =Formler!C5 -> 0 | L77: ='Ändringar-Kompletteringar'!E76 -> 0 | M77: =Tabell8[[#This Row],[Kalkyl]]+Tabell8[[#This Row],[Ändring]] -> 0 | N77: 1.05 | P77: 2 | Q77: =P77-N77 -> 0.95 | S77: 2.25 | T77: =S77-N77 -> 1.2 | U77: 8 | V77: =IF(Indata!$D$10="BUTP",Anpassning!$E$8+Beräkningar!$I$3,$I$3) -> 1 | W77: =Tabell8[[#This Row],[Pris ÅF]]*Tabell8[[#This Row],[% K]] -> 2.25 | X77: =W77-N77 -> 1.2 | Y77: =IFERROR(IF($W$3=1,Tabell8[[#This Row],[IKP]],IF($W$3=2,Tabell8[[#This Row],[ES-pris]],IF($W$3=3,Tabell8[[#This Row],[Pris ÅF]],IF($W$3=4,Tabell8[[#This Row],[Pris K]])))),) -> 2.25 | Z77: =Tabell8[[#This Row],[Antal]]*Tabell8[[#This Row],[Kolumn5]] -> 0 | AA77: 2.25 | AB77: =Tabell8[[#This Row],[Antal]]*Tabell8[[#This Row],[Pris efter rabatt]] -> 0 | AC77: =IF(Tabell8[[#This Row],[Grönt2]]=19.37,Tabell8[[#This Row],[Totalt pris]],0) -> 0 | AD77: =IF(Tabell8[[#This Row],[Grönt1]]=48.5,Tabell8[[#This Row],[Totalt pris]],0) -> 0 | AE77: x
B78: =IF(M78<1,"",MAX(B$1:B77)+1) ->  | C78: 5051002-MN5 | D78: Kortskena för plåt, svart, 300 mm, alu | E78: 5 | F78: 0 | G78: =IF(Indata!$D$11="Ja",19.37,0) -> 19.37 | H78: =Tabell8[[#This Row],[Grönt1]]+G78 -> 19.37 | K78: 0 | L78: ='Ändringar-Kompletteringar'!E77 -> 0 | M78: =Tabell8[[#This Row],[Kalkyl]]+Tabell8[[#This Row],[Ändring]] -> 0 | N78: 24.15 | P78: 45.89 | Q78: =P78-N78 -> 21.74 | S78: 51 | T78: =S78-N78 -> 26.85 | U78: 8 | V78: =IF(Indata!$D$10="BUTP",Anpassning!$E$8+Beräkningar!$I$3,$I$3) -> 1 | W78: =Tabell8[[#This Row],[Pris ÅF]]*Tabell8[[#This Row],[% K]] -> 51 | X78: =W78-N78 -> 26.85 | Y78: =IFERROR(IF($W$3=1,Tabell8[[#This Row],[IKP]],IF($W$3=2,Tabell8[[#This Row],[ES-pris]],IF($W$3=3,Tabell8[[#This Row],[Pris ÅF]],IF($W$3=4,Tabell8[[#This Row],[Pris K]])))),) -> 51 | Z78: =Tabell8[[#This Row],[Antal]]*Tabell8[[#This Row],[Kolumn5]] -> 0 | AA78: 51 | AB78: =Tabell8[[#This Row],[Antal]]*Tabell8[[#This Row],[Pris efter rabatt]] -> 0 | AC78: =IF(Tabell8[[#This Row],[Grönt2]]=19.37,Tabell8[[#This Row],[Totalt pris]],0) -> 0 | AD78: =IF(Tabell8[[#This Row],[Grönt1]]=48.5,Tabell8[[#This Row],[Totalt pris]],0) -> 0 | AE78: x
B79: =IF(M79<1,"",MAX(B$1:B78)+1) ->  | C79: 5051002-SK | D79: Specialskruv kortskena, sats, 4 st | E79: 5 | F79: 0 | G79: =IF(Indata!$D$11="Ja",19.37,0) -> 19.37 | H79: =Tabell8[[#This Row],[Grönt1]]+G79 -> 19.37 | K79: 0 | L79: ='Ändringar-Kompletteringar'!E78 -> 0 | M79: =Tabell8[[#This Row],[Kalkyl]]+Tabell8[[#This Row],[Ändring]] -> 0 | N79: 12 | P79: 16.2 | Q79: =P79-N79 -> 4.2 | S79: 18 | T79: =S79-N79 -> 6 | U79: 8 | V79: =IF(Indata!$D$10="BUTP",Anpassning!$E$8+Beräkningar!$I$3,$I$3) -> 1 | W79: =Tabell8[[#This Row],[Pris ÅF]]*Tabell8[[#This Row],[% K]] -> 18 | X79: =W79-N79 -> 6 | Y79: =IFERROR(IF($W$3=1,Tabell8[[#This Row],[IKP]],IF($W$3=2,Tabell8[[#This Row],[ES-pris]],IF($W$3=3,Tabell8[[#This Row],[Pris ÅF]],IF($W$3=4,Tabell8[[#This Row],[Pris K]])))),) -> 18 | Z79: =Tabell8[[#This Row],[Antal]]*Tabell8[[#This Row],[Kolumn5]] -> 0 | AA79: 18 | AB79: =Tabell8[[#This Row],[Antal]]*Tabell8[[#This Row],[Pris efter rabatt]] -> 0 | AC79: =IF(Tabell8[[#This Row],[Grönt2]]=19.37,Tabell8[[#This Row],[Totalt pris]],0) -> 0 | AD79: =IF(Tabell8[[#This Row],[Grönt1]]=48.5,Tabell8[[#This Row],[Totalt pris]],0) -> 0 | AE79: x
B80: =IF(M80<1,"",MAX(B$1:B79)+1) ->  | C80: 9057001-120548R | D80: MPB Infästn.platta 120x400 FZB Svart | E80: 5 | F80: 0 | G80: =IF(Indata!$D$11="Ja",19.37,0) -> 19.37 | H80: =Tabell8[[#This Row],[Grönt1]]+G80 -> 19.37 | K80: 0 | L80: ='Ändringar-Kompletteringar'!E79 -> 0 | M80: =Tabell8[[#This Row],[Kalkyl]]+Tabell8[[#This Row],[Ändring]] -> 0 | N80: 209 | P80: 259 | Q80: =P80-N80 -> 50 | S80: 276 | T80: =S80-N80 -> 67 | U80: 8 | V80: =IF(Indata!$D$10="BUTP",Anpassning!$E$8+Beräkningar!$I$3,$I$3) -> 1 | W80: =Tabell8[[#This Row],[Pris ÅF]]*Tabell8[[#This Row],[% K]] -> 276 | X80: =W80-N80 -> 67 | Y80: =IFERROR(IF($W$3=1,Tabell8[[#This Row],[IKP]],IF($W$3=2,Tabell8[[#This Row],[ES-pris]],IF($W$3=3,Tabell8[[#This Row],[Pris ÅF]],IF($W$3=4,Tabell8[[#This Row],[Pris K]])))),) -> 276 | Z80: =Tabell8[[#This Row],[Antal]]*Tabell8[[#This Row],[Kolumn5]] -> 0 | AA80: 276 | AB80: =Tabell8[[#This Row],[Antal]]*Tabell8[[#This Row],[Pris efter rabatt]] -> 0 | AC80: =IF(Tabell8[[#This Row],[Grönt2]]=19.37,Tabell8[[#This Row],[Totalt pris]],0) -> 0 | AD80: =IF(Tabell8[[#This Row],[Grönt1]]=48.5,Tabell8[[#This Row],[Totalt pris]],0) -> 0 | AE80: x
B81: =IF(M81<1,"",MAX(B$1:B80)+1) ->  | C81: 7070001-01 | D81: Eyacht PDU-enhet för batteri | E81: 7 | F81: =IF(Indata!$D$11="Ja",48.5,0) -> 48.5 | G81: 0 | H81: =Tabell8[[#This Row],[Grönt1]]+G81 -> 48.5 | K81: 0 | L81: ='Ändringar-Kompletteringar'!E80 -> 0 | M81: =Tabell8[[#This Row],[Kalkyl]]+Tabell8[[#This Row],[Ändring]] -> 0 | N81: 5128 | P81: 6378 | Q81: =P81-N81 -> 1250 | S81: 6412 | T81: =S81-N81 -> 1284 | U81: 6 | V81: =IF(Indata!$D$10="BUTP",Anpassning!$E$6+Beräkningar!$I$3,$I$3) -> 1 | W81: =Tabell8[[#This Row],[Pris ÅF]]*Tabell8[[#This Row],[% K]] -> 6412 | X81: =W81-N81 -> 1284 | Y81: =IFERROR(IF($W$3=1,Tabell8[[#This Row],[IKP]],IF($W$3=2,Tabell8[[#This Row],[ES-pris]],IF($W$3=3,Tabell8[[#This Row],[Pris ÅF]],IF($W$3=4,Tabell8[[#This Row],[Pris K]])))),) -> 6412 | Z81: =Tabell8[[#This Row],[Antal]]*Tabell8[[#This Row],[Kolumn5]] -> 0 | AA81: 6412 | AB81: =Tabell8[[#This Row],[Antal]]*Tabell8[[#This Row],[Pris efter rabatt]] -> 0 | AC81: =IF(Tabell8[[#This Row],[Grönt2]]=19.37,Tabell8[[#This Row],[Totalt pris]],0) -> 0 | AD81: =IF(Tabell8[[#This Row],[Grönt1]]=48.5,Tabell8[[#This Row],[Totalt pris]],0) -> 0 | AE81: x
B82: =IF(M82<1,"",MAX(B$1:B81)+1) ->  | C82: 7071001-02500 | D82: Eyacht Batteri 2,5 KW | E82: 7 | F82: =IF(Indata!$D$11="Ja",48.5,0) -> 48.5 | G82: 0 | H82: =Tabell8[[#This Row],[Grönt1]]+G82 -> 48.5 | K82: 0 | L82: ='Ändringar-Kompletteringar'!E81 -> 0 | M82: =Tabell8[[#This Row],[Kalkyl]]+Tabell8[[#This Row],[Ändring]] -> 0 | N82: 5955 | P82: 9667 | Q82: =P82-N82 -> 3712 | S82: 8965 | T82: =S82-N82 -> 3010 | U82: 6 | V82: =IF(Indata!$D$10="BUTP",Anpassning!$E$6+Beräkningar!$I$3,$I$3) -> 1 | W82: =Tabell8[[#This Row],[Pris ÅF]]*Tabell8[[#This Row],[% K]] -> 8965 | X82: =W82-N82 -> 3010 | Y82: =IFERROR(IF($W$3=1,Tabell8[[#This Row],[IKP]],IF($W$3=2,Tabell8[[#This Row],[ES-pris]],IF($W$3=3,Tabell8[[#This Row],[Pris ÅF]],IF($W$3=4,Tabell8[[#This Row],[Pris K]])))),) -> 8965 | Z82: =Tabell8[[#This Row],[Antal]]*Tabell8[[#This Row],[Kolumn5]] -> 0 | AA82: 8965 | AB82: =Tabell8[[#This Row],[Antal]]*Tabell8[[#This Row],[Pris efter rabatt]] -> 0 | AC82: =IF(Tabell8[[#This Row],[Grönt2]]=19.37,Tabell8[[#This Row],[Totalt pris]],0) -> 0 | AD82: =IF(Tabell8[[#This Row],[Grönt1]]=48.5,Tabell8[[#This Row],[Totalt pris]],0) -> 0 | AE82: x
B83: =IF(M83<1,"",MAX(B$1:B82)+1) ->  | C83: 7079001-07500 | D83: Eyacht Batteri kompl inkl PDU 7,5KW | E83: 7 | F83: =IF(Indata!$D$11="Ja",48.5,0) -> 48.5 | G83: 0 | H83: =Tabell8[[#This Row],[Grönt1]]+G83 -> 48.5 | K83: 0 | L83: ='Ändringar-Kompletteringar'!E82 -> 0 | M83: =Tabell8[[#This Row],[Kalkyl]]+Tabell8[[#This Row],[Ändring]] -> 0 | N83: 0 | P83: 0 | Q83: =P83-N83 -> 0 | S83: 0 | T83: =S83-N83 -> 0 | U83: 6 | V83: =IF(Indata!$D$10="BUTP",Anpassning!$E$6+Beräkningar!$I$3,$I$3) -> 1 | W83: =Tabell8[[#This Row],[Pris ÅF]]*Tabell8[[#This Row],[% K]] -> 0 | X83: =W83-N83 -> 0 | Y83: =IFERROR(IF($W$3=1,Tabell8[[#This Row],[IKP]],IF($W$3=2,Tabell8[[#This Row],[ES-pris]],IF($W$3=3,Tabell8[[#This Row],[Pris ÅF]],IF($W$3=4,Tabell8[[#This Row],[Pris K]])))),) -> 0 | Z83: =Tabell8[[#This Row],[Antal]]*Tabell8[[#This Row],[Kolumn5]] -> 0 | AA83: 0 | AB83: =Tabell8[[#This Row],[Antal]]*Tabell8[[#This Row],[Pris efter rabatt]] -> 0 | AC83: =IF(Tabell8[[#This Row],[Grönt2]]=19.37,Tabell8[[#This Row],[Totalt pris]],0) -> 0 | AD83: =IF(Tabell8[[#This Row],[Grönt1]]=48.5,Tabell8[[#This Row],[Totalt pris]],0) -> 0
B84: =IF(M84<1,"",MAX(B$1:B83)+1) ->  | C84: 7079001-10000 | D84: Eyacht Batteri kompl inkl PDU 10KW | E84: 7 | F84: =IF(Indata!$D$11="Ja",48.5,0) -> 48.5 | G84: 0 | H84: =Tabell8[[#This Row],[Grönt1]]+G84 -> 48.5 | K84: =IF(Indata!M40=Formler!F44,Indata!Q40,0) -> 0 | L84: ='Ändringar-Kompletteringar'!E83 -> 0 | M84: =Tabell8[[#This Row],[Kalkyl]]+Tabell8[[#This Row],[Ändring]] -> 0 | N84: 28948 | P84: 44146 | Q84: =P84-N84 -> 15198 | S84: 41400 | T84: =S84-N84 -> 12452 | U84: 6 | V84: =IF(Indata!$D$10="BUTP",Anpassning!$E$6+Beräkningar!$I$3,$I$3) -> 1 | W84: =Tabell8[[#This Row],[Pris ÅF]]*Tabell8[[#This Row],[% K]] -> 41400 | X84: =W84-N84 -> 12452 | Y84: =IFERROR(IF($W$3=1,Tabell8[[#This Row],[IKP]],IF($W$3=2,Tabell8[[#This Row],[ES-pris]],IF($W$3=3,Tabell8[[#This Row],[Pris ÅF]],IF($W$3=4,Tabell8[[#This Row],[Pris K]])))),) -> 41400 | Z84: =Tabell8[[#This Row],[Antal]]*Tabell8[[#This Row],[Kolumn5]] -> 0 | AA84: 41400 | AB84: =Tabell8[[#This Row],[Antal]]*Tabell8[[#This Row],[Pris efter rabatt]] -> 0 | AC84: =IF(Tabell8[[#This Row],[Grönt2]]=19.37,Tabell8[[#This Row],[Totalt pris]],0) -> 0 | AD84: =IF(Tabell8[[#This Row],[Grönt1]]=48.5,Tabell8[[#This Row],[Totalt pris]],0) -> 0
B85: =IF(M85<1,"",MAX(B$1:B84)+1) ->  | C85: 7079001-12500 | D85: Eyacht Batteri kompl inkl PDU 12,5KW | E85: 7 | F85: =IF(Indata!$D$11="Ja",48.5,0) -> 48.5 | G85: 0 | H85: =Tabell8[[#This Row],[Grönt1]]+G85 -> 48.5 | K85: =IF(Indata!M40=Formler!F45,Indata!Q40,0) -> 0 | L85: ='Ändringar-Kompletteringar'!E84 -> 0 | M85: =Tabell8[[#This Row],[Kalkyl]]+Tabell8[[#This Row],[Ändring]] -> 0 | N85: 34903 | P85: 53180 | Q85: =P85-N85 -> 18277 | S85: 50200 | T85: =S85-N85 -> 15297 | U85: 6 | V85: =IF(Indata!$D$10="BUTP",Anpassning!$E$6+Beräkningar!$I$3,$I$3) -> 1 | W85: =Tabell8[[#This Row],[Pris ÅF]]*Tabell8[[#This Row],[% K]] -> 50200 | X85: =W85-N85 -> 15297 | Y85: =IFERROR(IF($W$3=1,Tabell8[[#This Row],[IKP]],IF($W$3=2,Tabell8[[#This Row],[ES-pris]],IF($W$3=3,Tabell8[[#This Row],[Pris ÅF]],IF($W$3=4,Tabell8[[#This Row],[Pris K]])))),) -> 50200 | Z85: =Tabell8[[#This Row],[Antal]]*Tabell8[[#This Row],[Kolumn5]] -> 0 | AA85: 50200 | AB85: =Tabell8[[#This Row],[Antal]]*Tabell8[[#This Row],[Pris efter rabatt]] -> 0 | AC85: =IF(Tabell8[[#This Row],[Grönt2]]=19.37,Tabell8[[#This Row],[Totalt pris]],0) -> 0 | AD85: =IF(Tabell8[[#This Row],[Grönt1]]=48.5,Tabell8[[#This Row],[Totalt pris]],0) -> 0
B86: =IF(M86<1,"",MAX(B$1:B85)+1) ->  | C86: 7079001-15000 | D86: Eyacht Batteri kompl inkl PDU 15KW | E86: 7 | F86: =IF(Indata!$D$11="Ja",48.5,0) -> 48.5 | G86: 0 | H86: =Tabell8[[#This Row],[Grönt1]]+G86 -> 48.5 | K86: =IF(Indata!M40=Formler!F46,Indata!Q40,0) -> 0 | L86: ='Ändringar-Kompletteringar'!E85 -> 0 | M86: =Tabell8[[#This Row],[Kalkyl]]+Tabell8[[#This Row],[Ändring]] -> 0 | N86: 40858 | P86: 62214 | Q86: =P86-N86 -> 21356 | S86: 59000 | T86: =S86-N86 -> 18142 | U86: 6 | V86: =IF(Indata!$D$10="BUTP",Anpassning!$E$6+Beräkningar!$I$3,$I$3) -> 1 | W86: =Tabell8[[#This Row],[Pris ÅF]]*Tabell8[[#This Row],[% K]] -> 59000 | X86: =W86-N86 -> 18142 | Y86: =IFERROR(IF($W$3=1,Tabell8[[#This Row],[IKP]],IF($W$3=2,Tabell8[[#This Row],[ES-pris]],IF($W$3=3,Tabell8[[#This Row],[Pris ÅF]],IF($W$3=4,Tabell8[[#This Row],[Pris K]])))),) -> 59000 | Z86: =Tabell8[[#This Row],[Antal]]*Tabell8[[#This Row],[Kolumn5]] -> 0 | AA86: 59000 | AB86: =Tabell8[[#This Row],[Antal]]*Tabell8[[#This Row],[Pris efter rabatt]] -> 0 | AC86: =IF(Tabell8[[#This Row],[Grönt2]]=19.37,Tabell8[[#This Row],[Totalt pris]],0) -> 0 | AD86: =IF(Tabell8[[#This Row],[Grönt1]]=48.5,Tabell8[[#This Row],[Totalt pris]],0) -> 0
B87: =IF(M87<1,"",MAX(B$1:B86)+1) ->  | C87: 7079001-17500 | D87: Eyacht Batteri kompl inkl PDU 17,5KW | E87: 7 | F87: =IF(Indata!$D$11="Ja",48.5,0) -> 48.5 | G87: 0 | H87: =Tabell8[[#This Row],[Grönt1]]+G87 -> 48.5 | K87: =IF(Indata!M40=Formler!F47,Indata!Q40,0) -> 0 | L87: ='Ändringar-Kompletteringar'!E86 -> 0 | M87: =Tabell8[[#This Row],[Kalkyl]]+Tabell8[[#This Row],[Ändring]] -> 0 | N87: 46813 | P87: 70794 | Q87: =P87-N87 -> 23981 | S87: 67800 | T87: =S87-N87 -> 20987 | U87: 6 | V87: =IF(Indata!$D$10="BUTP",Anpassning!$E$6+Beräkningar!$I$3,$I$3) -> 1 | W87: =Tabell8[[#This Row],[Pris ÅF]]*Tabell8[[#This Row],[% K]] -> 67800 | X87: =W87-N87 -> 20987 | Y87: =IFERROR(IF($W$3=1,Tabell8[[#This Row],[IKP]],IF($W$3=2,Tabell8[[#This Row],[ES-pris]],IF($W$3=3,Tabell8[[#This Row],[Pris ÅF]],IF($W$3=4,Tabell8[[#This Row],[Pris K]])))),) -> 67800 | Z87: =Tabell8[[#This Row],[Antal]]*Tabell8[[#This Row],[Kolumn5]] -> 0 | AA87: 67800 | AB87: =Tabell8[[#This Row],[Antal]]*Tabell8[[#This Row],[Pris efter rabatt]] -> 0 | AC87: =IF(Tabell8[[#This Row],[Grönt2]]=19.37,Tabell8[[#This Row],[Totalt pris]],0) -> 0 | AD87: =IF(Tabell8[[#This Row],[Grönt1]]=48.5,Tabell8[[#This Row],[Totalt pris]],0) -> 0
B88: =IF(M88<1,"",MAX(B$1:B87)+1) ->  | C88: 7079001-20000 | D88: Eyacht Batteri kompl inkl PDU 20KW | E88: 7 | F88: =IF(Indata!$D$11="Ja",48.5,0) -> 48.5 | G88: 0 | H88: =Tabell8[[#This Row],[Grönt1]]+G88 -> 48.5 | K88: =IF(Indata!M40=Formler!F48,Indata!Q40,0) -> 0 | L88: ='Ändringar-Kompletteringar'!E87 -> 0 | M88: =Tabell8[[#This Row],[Kalkyl]]+Tabell8[[#This Row],[Ändring]] -> 0 | N88: 52768 | P88: 79529 | Q88: =P88-N88 -> 26761 | S88: 76600 | T88: =S88-N88 -> 23832 | U88: 6 | V88: =IF(Indata!$D$10="BUTP",Anpassning!$E$6+Beräkningar!$I$3,$I$3) -> 1 | W88: =Tabell8[[#This Row],[Pris ÅF]]*Tabell8[[#This Row],[% K]] -> 76600 | X88: =W88-N88 -> 23832 | Y88: =IFERROR(IF($W$3=1,Tabell8[[#This Row],[IKP]],IF($W$3=2,Tabell8[[#This Row],[ES-pris]],IF($W$3=3,Tabell8[[#This Row],[Pris ÅF]],IF($W$3=4,Tabell8[[#This Row],[Pris K]])))),) -> 76600 | Z88: =Tabell8[[#This Row],[Antal]]*Tabell8[[#This Row],[Kolumn5]] -> 0 | AA88: 76600 | AB88: =Tabell8[[#This Row],[Antal]]*Tabell8[[#This Row],[Pris efter rabatt]] -> 0 | AC88: =IF(Tabell8[[#This Row],[Grönt2]]=19.37,Tabell8[[#This Row],[Totalt pris]],0) -> 0 | AD88: =IF(Tabell8[[#This Row],[Grönt1]]=48.5,Tabell8[[#This Row],[Totalt pris]],0) -> 0
B89: =IF(M89<1,"",MAX(B$1:B88)+1) ->  | C89: =Anpassning!D17 ->  | D89: =Anpassning!F17 ->  | E89: 10 | F89: 0 | G89: =IF(Indata!$D$11="Ja",19.37,0) -> 19.37 | H89: =Tabell8[[#This Row],[Grönt1]]+G89 -> 19.37 | M89: =Anpassning!E17 -> 0 | P89: =(N89*O89)+N89 -> 0 | Q89: =P89-N89 -> 0 | S89: =Anpassning!J17 -> 0 | T89: =S89-N89 -> 0 | W89: =Anpassning!O17 -> 0 | Y89: 0 | Z89: =Tabell8[[#This Row],[Antal]]*Tabell8[[#This Row],[Pris K]] -> 0 | AA89: =Anpassning!O17 -> 0 | AB89: =Tabell8[[#This Row],[Antal]]*Tabell8[[#This Row],[Pris efter rabatt]] -> 0 | AC89: =IF(Tabell8[[#This Row],[Grönt2]]=19.37,Tabell8[[#This Row],[Totalt pris]],0) -> 0 | AD89: =IF(Tabell8[[#This Row],[Grönt1]]=48.5,Tabell8[[#This Row],[Totalt pris]],0) -> 0
B90: =IF(M90<1,"",MAX(B$1:B89)+1) ->  | C90: =Anpassning!D18 ->  | D90: =Anpassning!F18 ->  | E90: 10 | F90: 0 | G90: =IF(Indata!$D$11="Ja",19.37,0) -> 19.37 | H90: =Tabell8[[#This Row],[Grönt1]]+G90 -> 19.37 | M90: =Anpassning!E18 -> 0 | P90: =(N90*O90)+N90 -> 0 | Q90: =P90-N90 -> 0 | S90: =Anpassning!J18 -> 0 | T90: =S90-N90 -> 0 | W90: =Anpassning!O18 -> 0 | Y90: 0 | Z90: =Tabell8[[#This Row],[Antal]]*Tabell8[[#This Row],[Pris K]] -> 0 | AA90: =Anpassning!O18 -> 0 | AB90: =Tabell8[[#This Row],[Antal]]*Tabell8[[#This Row],[Pris efter rabatt]] -> 0 | AC90: =IF(Tabell8[[#This Row],[Grönt2]]=19.37,Tabell8[[#This Row],[Totalt pris]],0) -> 0 | AD90: =IF(Tabell8[[#This Row],[Grönt1]]=48.5,Tabell8[[#This Row],[Totalt pris]],0) -> 0
B91: =IF(M91<1,"",MAX(B$1:B90)+1) ->  | C91: =Anpassning!D19 ->  | D91: =Anpassning!F19 ->  | E91: 10 | F91: 0 | G91: =IF(Indata!$D$11="Ja",19.37,0) -> 19.37 | H91: =Tabell8[[#This Row],[Grönt1]]+G91 -> 19.37 | M91: =Anpassning!E19 -> 0 | P91: =(N91*O91)+N91 -> 0 | Q91: =P91-N91 -> 0 | S91: =Anpassning!J19 -> 0 | T91: =S91-N91 -> 0 | W91: =Anpassning!O19 -> 0 | Y91: 0 | Z91: =Tabell8[[#This Row],[Antal]]*Tabell8[[#This Row],[Pris K]] -> 0 | AA91: =Anpassning!O19 -> 0 | AB91: =Tabell8[[#This Row],[Antal]]*Tabell8[[#This Row],[Pris efter rabatt]] -> 0 | AC91: =IF(Tabell8[[#This Row],[Grönt2]]=19.37,Tabell8[[#This Row],[Totalt pris]],0) -> 0 | AD91: =IF(Tabell8[[#This Row],[Grönt1]]=48.5,Tabell8[[#This Row],[Totalt pris]],0) -> 0
B92: =IF(M92<1,"",MAX(B$1:B91)+1) ->  | C92: =Anpassning!D20 ->  | D92: =Anpassning!F20 ->  | E92: 10 | F92: 0 | G92: =IF(Indata!$D$11="Ja",19.37,0) -> 19.37 | H92: =Tabell8[[#This Row],[Grönt1]]+G92 -> 19.37 | M92: =Anpassning!E20 -> 0 | P92: =(N92*O92)+N92 -> 0 | Q92: =P92-N92 -> 0 | S92: =Anpassning!J20 -> 0 | T92: =S92-N92 -> 0 | W92: =Anpassning!O20 -> 0 | Y92: 0 | Z92: =Tabell8[[#This Row],[Antal]]*Tabell8[[#This Row],[Pris K]] -> 0 | AA92: =Anpassning!O20 -> 0 | AB92: =Tabell8[[#This Row],[Antal]]*Tabell8[[#This Row],[Pris efter rabatt]] -> 0 | AC92: =IF(Tabell8[[#This Row],[Grönt2]]=19.37,Tabell8[[#This Row],[Totalt pris]],0) -> 0 | AD92: =IF(Tabell8[[#This Row],[Grönt1]]=48.5,Tabell8[[#This Row],[Totalt pris]],0) -> 0
B93: =IF(M93<1,"",MAX(B$1:B92)+1) ->  | C93: =Anpassning!D21 ->  | D93: =Anpassning!F21 ->  | E93: 10 | F93: 0 | G93: =IF(Indata!$D$11="Ja",19.37,0) -> 19.37 | H93: =Tabell8[[#This Row],[Grönt1]]+G93 -> 19.37 | M93: =Anpassning!E21 -> 0 | P93: =(N93*O93)+N93 -> 0 | Q93: =P93-N93 -> 0 | S93: =Anpassning!J21 -> 0 | T93: =S93-N93 -> 0 | W93: =Anpassning!O21 -> 0 | Y93: 0 | Z93: =Tabell8[[#This Row],[Antal]]*Tabell8[[#This Row],[Pris K]] -> 0 | AA93: =Anpassning!O21 -> 0 | AB93: =Tabell8[[#This Row],[Antal]]*Tabell8[[#This Row],[Pris efter rabatt]] -> 0 | AC93: =IF(Tabell8[[#This Row],[Grönt2]]=19.37,Tabell8[[#This Row],[Totalt pris]],0) -> 0 | AD93: =IF(Tabell8[[#This Row],[Grönt1]]=48.5,Tabell8[[#This Row],[Totalt pris]],0) -> 0
C95: Gula rader = Värden kommer från "Anpassning" ÄNDRAS EJ. | Y95: Bruttosumma | Z95: =SUM(Z9:Z94) -> 133 | AA95: Slutsumma | AB95: =SUM(Tabell8[Totalt pris]) -> 133 | AC95: =SUM(Tabell8[14,55%]) -> 133 | AD95: =SUM(Tabell8[48,50%]) -> 0

Sheet Azimut (hidden)
H3: Azimut | AB3: Tak 1
B4: Taklutning | D4: Azimut | G4: -90 | H4: -80 | I4: -70 | J4: -60 | K4: -50 | L4: -40 | M4: -30 | N4: -20 | O4: -10 | P4: 0 | Q4: 10 | R4: 20 | S4: 30 | T4: 40 | U4: 50 | V4: 60 | W4: 70 | X4: 80 | Y4: 90 | AB4: Lutning
B5: 0 | D5: -90 | E5: Lutning | F5: 90 | G5: 52 | H5: 57 | I5: 61 | J5: 65 | K5: 68 | L5: 71 | M5: 73 | N5: 74 | O5: 75 | P5: 75 | Q5: 75 | R5: 74 | S5: 72 | T5: 70 | U5: 68 | V5: 64 | W5: 60 | X5: 56 | Y5: 51 | AB5: =Indata!D20 -> 25
B6: 5 | D6: -80 | F6: 85 | G6: 56 | H6: 61 | I6: 65 | J6: 69 | K6: 73 | L6: 75 | M6: 78 | N6: 79 | O6: 80 | P6: 80 | Q6: 79 | R6: 78 | S6: 77 | T6: 75 | U6: 72 | V6: 68 | W6: 64 | X6: 60 | Y6: 55
B7: 10 | D7: -70 | F7: 80 | G7: 59 | H7: 64 | I7: 69 | J7: 73 | K7: 77 | L7: 80 | M7: 82 | N7: 83 | O7: 84 | P7: 84 | Q7: 84 | R7: 83 | S7: 81 | T7: 79 | U7: 76 | V7: 72 | W7: 68 | X7: 63 | Y7: 58 | AB7: Azimut
B8: 15 | D8: -60 | F8: 75 | G8: 63 | H8: 68 | I8: 72 | J8: 77 | K8: 80 | L8: 83 | M8: 85 | N8: 87 | O8: 88 | P8: 88 | Q8: 88 | R8: 86 | S8: 85 | T8: 82 | U8: 79 | V8: 75 | W8: 71 | X8: 66 | Y8: 61 | AB8: =Indata!D21 -> 0
B9: 20 | D9: -50 | F9: 70 | G9: 65 | H9: 71 | I9: 75 | J9: 80 | K9: 83 | L9: 86 | M9: 89 | N9: 90 | O9: 91 | P9: 91 | Q9: 91 | R9: 90 | S9: 88 | T9: 85 | U9: 82 | V9: 79 | W9: 74 | X9: 70 | Y9: 65
B10: 25 | D10: -40 | F10: 65 | G10: 68 | H10: 73 | I10: 78 | J10: 82 | K10: 86 | L10: 89 | M10: 91 | N10: 93 | O10: 94 | P10: 94 | Q10: 94 | R10: 92 | S10: 91 | T10: 88 | U10: 85 | V10: 81 | W10: 77 | X10: 72 | Y10: 67 | AB10: Installerad effekt
B11: 30 | D11: -30 | F11: 60 | G11: 71 | H11: 76 | I11: 80 | J11: 85 | K11: 88 | L11: 91 | M11: 94 | N11: 95 | O11: 96 | P11: 96 | Q11: 96 | R11: 95 | S11: 93 | T11: 90 | U11: 87 | V11: 84 | W11: 79 | X11: 75 | Y11: 70 | AB11: =Indata!E34 -> 0
B12: 35 | D12: -20 | F12: 55 | G12: 73 | H12: 78 | I12: 82 | J12: 87 | K12: 90 | L12: 93 | M12: 95 | N12: 97 | O12: 98 | P12: 98 | Q12: 98 | R12: 96 | S12: 95 | T12: 92 | U12: 89 | V12: 86 | W12: 81 | X12: 77 | Y12: 72
B13: 40 | D13: -10 | F13: 50 | G13: 75 | H13: 80 | I13: 84 | J13: 88 | K13: 91 | L13: 94 | M13: 96 | N13: 98 | O13: 99 | P13: 99 | Q13: 99 | R13: 98 | S13: 96 | T13: 94 | U13: 91 | V13: 87 | W13: 83 | X13: 79 | Y13: 74 | AB13: Verkn.grad
B14: 45 | D14: 0 | F14: 45 | G14: 76 | H14: 81 | I14: 85 | J14: 89 | K14: 92 | L14: 95 | M14: 97 | N14: 99 | O14: 100 | P14: 100 | Q14: 99 | R14: 98 | S14: 97 | T14: 95 | U14: 92 | V14: 88 | W14: 84 | X14: 80 | Y14: 75 | AB14: =INDEX(G5:Y23,MATCH(AB5,F5:F23,0),MATCH(AB8,G4:Y4,0)) -> 97
B15: 50 | D15: 10 | F15: 40 | G15: 78 | H15: 82 | I15: 86 | J15: 90 | K15: 93 | L15: 96 | M15: 97 | N15: 99 | O15: 100 | P15: 100 | Q15: 100 | R15: 99 | S15: 97 | T15: 95 | U15: 92 | V15: 89 | W15: 85 | X15: 81 | Y15: 77
B16: 55 | D16: 20 | F16: 35 | G16: 79 | H16: 83 | I16: 87 | J16: 90 | K16: 93 | L16: 95 | M16: 97 | N16: 99 | O16: 99 | P16: 100 | Q16: 99 | R16: 98 | S16: 97 | T16: 95 | U16: 92 | V16: 89 | W16: 86 | X16: 82 | Y16: 78 | AB16: Teoretisk KWh/år
B17: 60 | D17: 30 | F17: 30 | G17: 80 | H17: 83 | I17: 87 | J17: 90 | K17: 92 | L17: 95 | M17: 96 | N17: 98 | O17: 98 | P17: 99 | Q17: 98 | R17: 97 | S17: 96 | T17: 94 | U17: 92 | V17: 89 | W17: 86 | X17: 83 | Y17: 79 | AB17: =AB11*AB14/100*0.95 -> 0
B18: 65 | D18: 40 | F18: 25 | G18: 80 | H18: 83 | I18: 86 | J18: 89 | K18: 92 | L18: 94 | M18: 95 | N18: 96 | O18: 97 | P18: 97 | Q18: 97 | R18: 96 | S18: 95 | T18: 93 | U18: 91 | V18: 89 | W18: 86 | X18: 83 | Y18: 80
B19: 70 | D19: 50 | F19: 20 | G19: 81 | H19: 83 | I19: 86 | J19: 88 | K19: 90 | L19: 92 | M19: 93 | N19: 94 | O19: 95 | P19: 95 | Q19: 95 | R19: 94 | S19: 93 | T19: 92 | U19: 90 | V19: 88 | W19: 86 | X19: 83 | Y19: 80 | AB19: Tak 2
B20: 75 | D20: 60 | F20: 15 | G20: 81 | H20: 83 | I20: 85 | J20: 87 | K20: 89 | L20: 90 | M20: 91 | N20: 92 | O20: 92 | P20: 93 | Q20: 92 | R20: 92 | S20: 91 | T20: 90 | U20: 88 | V20: 87 | W20: 85 | X20: 83 | Y20: 81 | AB20: Lutning
B21: 80 | D21: 70 | F21: 10 | G21: 81 | H21: 83 | I21: 84 | J21: 86 | K21: 88 | L21: 88 | M21: 88 | N21: 89 | O21: 89 | P21: 89 | Q21: 89 | R21: 89 | S21: 88 | T21: 88 | U21: 86 | V21: 85 | W21: 84 | X21: 83 | Y21: 81 | AB21: =Indata!D29 -> 25
B22: 85 | D22: 80 | F22: 5 | G22: 81 | H22: 82 | I22: 83 | J22: 84 | K22: 84 | L22: 85 | M22: 85 | N22: 86 | O22: 86 | P22: 86 | Q22: 86 | R22: 86 | S22: 85 | T22: 85 | U22: 84 | V22: 84 | W22: 83 | X22: 82 | Y22: 81
B23: 90 | D23: 90 | F23: 0 | G23: 82 | H23: 82 | I23: 82 | J23: 82 | K23: 82 | L23: 82 | M23: 82 | N23: 82 | O23: 82 | P23: 82 | Q23: 82 | R23: 82 | S23: 82 | T23: 82 | U23: 82 | V23: 82 | W23: 82 | X23: 82 | Y23: 82 | AB23: Azimut
AB24: =Indata!D30 -> 0
AB26: Installerad effekt
AB27: =Indata!F34 -> 0
AB29: Verkn.grad
AB30: =INDEX(G5:Y23,MATCH(AB21,F5:F23,0),MATCH(AB24,G4:Y4,0)) -> 97
AB32: Teoretisk KWh/år
AB33: =AB27*AB30/100*0.95 -> 0
